Body Name,Service Area,Expenses Type,Invoice Payment Date,Transaction Number,Net Amount,Supplier Name
Manchester City Council,Manchester Leisure,Equipment,03.04.2018,5100970372,"1,850.00",Ferrious Ltd
Manchester City Council,Manchester Leisure,Equipment,03.04.2018,5100970368,683.33,North West Timber Treatments Ltd
Manchester City Council,Manchester Leisure,Equipment,03.04.2018,5100970437,519.40,Hemingways Marketing Services Ltd
Manchester City Council,Manchester Leisure,Professional fees,03.04.2018,5100970393,"3,991.30",Manchester Working Ltd
Manchester City Council,Manchester Leisure,Professional fees,03.04.2018,5100970432,"1,227.00",Contact Photographic Services Ltd
Manchester City Council,Manchester Leisure,Professional fees,03.04.2018,5100970399,"1,050.00",Redacted Personal Information
Manchester City Council,Manchester Leisure,Professional fees,03.04.2018,5100970324,"1,036.65",Experian  Ltd
Manchester City Council,Manchester Leisure,Professional fees,03.04.2018,5100970404,970.00,London Calling Arts Ltd
Manchester City Council,Manchester Leisure,Professional fees,03.04.2018,5100970400,750.00,Redacted Personal Information
Manchester City Council,Manchester Leisure,Professional fees,03.04.2018,5100970357,720.25,Framing Manchester Ltd
Manchester City Council,Adult Social Care,Training and Development,03.04.2018,5100970330,"1,000.00",Redacted Personal Information
Manchester City Council,Adult Social Care,Storage Costs,03.04.2018,5100970421,518.00,Imagestor
Manchester City Council,Adult Social Care,Professional fees,03.04.2018,5100970318,"1,920.00",Rainbow Surprise
Manchester City Council,Adult Social Care,Professional fees,03.04.2018,5100970440,515.67,The Mechanics Centre Ltd
Manchester City Council,Adult Social Care,I T Provision,03.04.2018,5100970358,"2,995.00",Idox Software Ltd
Manchester City Council,Adult Social Care,Removal and Storage of Furniture,03.04.2018,5100970435,"2,184.86",BCL
Manchester City Council,Adult Social Care,Third party payments relating to Voluntary Organisations,03.04.2018,5100970321,"47,447.40",Eastlands Homes Partnership Ltd
Manchester City Council,Adult Social Care,Third party payments relating to Voluntary Organisations,03.04.2018,5100970321,"26,643.54",Eastlands Homes Partnership Ltd
Manchester City Council,Adult Social Care,Third party payments relating to Voluntary Organisations,03.04.2018,5100970320,"8,295.77",City South Manchester Housing Trust
Manchester City Council,Adult Social Care,Third party payments relating to Voluntary Organisations,03.04.2018,5100970418,"1,612.50",GMCVO
Manchester City Council,Adult Social Care,Third party payments relating to Voluntary Organisations,03.04.2018,5100970395,"1,383.00",Manchester Deaf Centre Ltd
Manchester City Council,Adult Social Care,Third party payments relating to Voluntary Organisations,03.04.2018,5100970322,"1,125.00",George House Trust
Manchester City Council,Adult Social Care,Supporting People Payments,03.04.2018,5100970337,"3,750.00",Safe Families for Children
Manchester City Council,Adult Social Care,Supporting People Payments,03.04.2018,5100970340,"3,750.00",Safe Families for Children
Manchester City Council,Adult Social Care,Home Care ,03.04.2018,5100970407,"2,988.00",Standwalk Ltd
Manchester City Council,Adult Social Care,Home Care ,03.04.2018,5100970408,"1,575.00",Standwalk Ltd
Manchester City Council,Adult Social Care,Supported Accommodation,03.04.2018,5100970388,540.00,Redacted Personal Information
Manchester City Council,Corporate Services,Car Parking Permits,03.04.2018,5100970336,"1,043.33",National Car Parks Ltd Season Ticke
Manchester City Council,Corporate Services,Audit Commission Fees,03.04.2018,5100970370,"2,750.00",Grant Thornton Uk LLP
Manchester City Council,Corporate Services,CRB Fees,03.04.2018,5100970373,"1,155.00",United Medicare Ltd
Manchester City Council,Corporate Services,Works and associated costs for Land and Buildings,03.04.2018,5100970350,"8,369.00",Eversheds Llp
Manchester City Council,Corporate Services,Works and associated costs for Land and Buildings,03.04.2018,5100970349,"6,502.50",Eversheds Llp
Manchester City Council,Corporate Services,Works and associated costs for Land and Buildings,03.04.2018,5100970376,"4,400.00",Edgerton Management Services
Manchester City Council,Housing General Fund,Building Works,03.04.2018,5100970414,"75,820.15",One Manchester Limited
Manchester City Council,Housing General Fund,Building Works,03.04.2018,1905997139,"26,106.74",UPS Building & Maintenance Ltd
Manchester City Council,Housing General Fund,Building Works,03.04.2018,1905997144,"11,080.44",UPS Building & Maintenance Ltd
Manchester City Council,Housing General Fund,Building Works,03.04.2018,1905997142,"6,492.58",UPS Building & Maintenance Ltd
Manchester City Council,Housing General Fund,Building Works,03.04.2018,1905997143,"6,234.94",UPS Building & Maintenance Ltd
Manchester City Council,Housing General Fund,Building Works,03.04.2018,1905997140,"5,612.02",UPS Building & Maintenance Ltd
Manchester City Council,Housing General Fund,Building Works,03.04.2018,1905997145,"4,286.97",UPS Building & Maintenance Ltd
Manchester City Council,Housing General Fund,Building Works,03.04.2018,1905997138,"3,532.30",UPS Building & Maintenance Ltd
Manchester City Council,Chief Executives,Agency staff provision,03.04.2018,1905997208,"16,840.45",Eden Brown Synergy
Manchester City Council,Chief Executives,Agency staff provision,03.04.2018,1905997215,"12,257.65",Eden Brown Synergy
Manchester City Council,Chief Executives,Agency staff provision,03.04.2018,1905997210,"11,064.83",Eden Brown Synergy
Manchester City Council,Chief Executives,Agency staff provision,03.04.2018,5100970527,"9,487.50",Caritas Recruitment
Manchester City Council,Chief Executives,Agency staff provision,03.04.2018,5100970424,"4,448.52",Michael Page International
Manchester City Council,Chief Executives,Agency staff provision,03.04.2018,5100970426,"1,941.88",Michael Page International
Manchester City Council,Chief Executives,Equipment,03.04.2018,5100970410,"2,625.00",Wonder and Reason
Manchester City Council,Chief Executives,Equipment,03.04.2018,5100970411,"2,400.00",Wonder and Reason
Manchester City Council,Chief Executives,Grant Payments,03.04.2018,5100970367,"5,521.00",Manchester Craft and Design Ltd
Manchester City Council,Chief Executives,Professional fees,03.04.2018,5100970423,"5,654.13",Foreign and Commonwealth Office
Manchester City Council,Chief Executives,Funeral and coroner related services,03.04.2018,5100970427,540.00,Redacted Personal Information
Manchester City Council,Chief Executives,I T Provision,03.04.2018,5100970383,"2,705.92",Insight Direct (Uk) Ltd
Manchester City Council,Chief Executives,Funeral and coroner related services,03.04.2018,5100970429,"4,639.26",Salford Royal Hospitals Nhs Trust
Manchester City Council,Chief Executives,Works and associated costs for Land and Buildings,03.04.2018,5100970356,"1,750.00",Our Studio Ltd
Manchester City Council,Regeneration Finance,Rents,03.04.2018,5100970346,"2,910.70",Manchester Health Academy
Manchester City Council,Regeneration Finance,Rents,03.04.2018,5100970398,"-2,910.70",Manchester Health Academy
Manchester City Council,Highways Services,Security,03.04.2018,5100970332,"3,000.00",AECOM Limited
Manchester City Council,Highways Services,Payments to Contractors,03.04.2018,5100970343,"5,758.08",NSL Ltd
Manchester City Council,Manchester Leisure,Refuse Collection,04.04.2018,5100970610,"2,422.00",Dickinson Environmental
Manchester City Council,Manchester Leisure,Refuse Collection,04.04.2018,5100970606,955.00,Dickinson Environmental
Manchester City Council,Manchester Leisure,Hire of Premises,04.04.2018,5100970639,"1,146.88",Cresta World Travel Ltd
Manchester City Council,Manchester Leisure,Hire of Premises,04.04.2018,5100970447,549.16,Chancellors Hotel & Conf Centre
Manchester City Council,Manchester Leisure,Transport and Driver Hire,04.04.2018,5100970448,784.00,Constantine Ltd
Manchester City Council,Manchester Leisure,Furniture,04.04.2018,5100970501,900.00,Opening The Book Furniture Ltd
Manchester City Council,Manchester Leisure,Professional fees,04.04.2018,5100970442,"9,102.46",Redacted Personal Information
Manchester City Council,Manchester Leisure,Professional fees,04.04.2018,5100970743,"3,794.60",Contact Photographic Services Ltd
Manchester City Council,Manchester Leisure,Professional fees,04.04.2018,5100970766,"3,043.50",Redacted Personal Information
Manchester City Council,Manchester Leisure,Professional fees,04.04.2018,5100970493,"2,100.00",Redacted Personal Information
Manchester City Council,Manchester Leisure,Professional fees,04.04.2018,5100970533,"2,000.00",Zion Arts Centre Ltd
Manchester City Council,Manchester Leisure,Professional fees,04.04.2018,5100970443,"1,000.00",The British Library
Manchester City Council,Manchester Leisure,Professional fees,04.04.2018,5100970446,600.00,Redacted Personal Information
Manchester City Council,Manchester Leisure,Professional fees,04.04.2018,5100970747,600.00,Redacted Personal Information
Manchester City Council,Manchester Leisure,Grant and subscriptions awarded,04.04.2018,5100970577,"3,000.00",The Peace Museum
Manchester City Council,Manchester Leisure,Grant and subscriptions awarded,04.04.2018,5100970576,"2,100.00",The Peace Museum
Manchester City Council,Manchester Leisure,Grant and subscriptions awarded,04.04.2018,5100970632,"1,330.00",Justlife Foundation Limited
Manchester City Council,Manchester Leisure,Goods purchased for resale in Council outlets,04.04.2018,5100970590,"1,470.83",The School of Life
Manchester City Council,Manchester Leisure,Expenditure re Internal Trading Ordered Externally,04.04.2018,5100970579,700.00,Redacted Personal Information
Manchester City Council,Hospitality + Trading Services,Vehicle Hire Costs,04.04.2018,5100970633,"4,851.60",Specialist Vehicle rental
Manchester City Council,Hospitality + Trading Services,Hire of Machinery,04.04.2018,5100970478,"1,038.50",R & M Developments Ltd
Manchester City Council,Hospitality + Trading Services,Hire of Machinery,04.04.2018,5100970474,"1,012.50",R & M Developments Ltd
Manchester City Council,Hospitality + Trading Services,Hire of Machinery,04.04.2018,5100970482,"1,012.50",R & M Developments Ltd
Manchester City Council,Hospitality + Trading Services,Hire of Machinery,04.04.2018,5100970479,830.80,R & M Developments Ltd
Manchester City Council,Hospitality + Trading Services,Hire of Machinery,04.04.2018,5100970629,830.80,R & M Developments Ltd
Manchester City Council,Hospitality + Trading Services,Catering Provisions,04.04.2018,1906001143,767.62,Brake Bros Foodservice Ltd
Manchester City Council,Hospitality + Trading Services,Catering Provisions,04.04.2018,1906001209,582.04,Brake Bros Foodservice Ltd
Manchester City Council,Hospitality + Trading Services,Catering Provisions,04.04.2018,1906001085,558.82,Brake Bros Foodservice Ltd
Manchester City Council,Hospitality + Trading Services,Catering Provisions,04.04.2018,1906001091,520.11,Brake Bros Foodservice Ltd
Manchester City Council,Hospitality + Trading Services,Catering Provisions,04.04.2018,1906001099,511.43,Brake Bros Foodservice Ltd
Manchester City Council,Adult Social Care,Training and Development,04.04.2018,5100970593,600.00,Disabled Living
Manchester City Council,Adult Social Care,External repairs and maintenance for buildings,04.04.2018,5100970735,"6,913.16",Torus Property Solutions
Manchester City Council,Adult Social Care,Rents,04.04.2018,1905997180,520.00,Atwel James
Manchester City Council,Adult Social Care,Contract Cleaning External,04.04.2018,5100970587,"1,940.55",Brighter Beginnings Day Nursery
Manchester City Council,Adult Social Care,Contract Cleaning External,04.04.2018,5100970588,"1,455.41",Brighter Beginnings Day Nursery
Manchester City Council,Adult Social Care,Hire of Premises,04.04.2018,5100970725,"1,584.50",Fabulous Fan Fayre Limited
Manchester City Council,Adult Social Care,Hire of Premises,04.04.2018,5100970529,568.50,GMCA
Manchester City Council,Adult Social Care,Transport Coach Hire,04.04.2018,5100970495,-624.70,Hastings Private Hire
Manchester City Council,Adult Social Care,Transport Coach Hire,04.04.2018,5100970496,-690.00,Hastings Private Hire
Manchester City Council,Adult Social Care,Furniture,04.04.2018,5100970697,"1,620.48",Banner Group Limited
Manchester City Council,Adult Social Care,Professional fees,04.04.2018,5100970458,"3,502.12",Stockport Metropolitan Borough
Manchester City Council,Adult Social Care,Subsistence and Conference Expenses,04.04.2018,5100970611,"1,536.46",The Monastery Manchester Ltd
Manchester City Council,Adult Social Care,Bed and Breakfast Accommodation Expenditure,04.04.2018,5100970596,"16,228.00",Redacted Personal Information
Manchester City Council,Adult Social Care,Bed and Breakfast Accommodation Expenditure,04.04.2018,5100970599,"10,926.00",Redacted Personal Information
Manchester City Council,Adult Social Care,Bed and Breakfast Accommodation Expenditure,04.04.2018,5100970604,"6,369.00",Redacted Personal Information
Manchester City Council,Adult Social Care,Third party payments to other Local Authorities,04.04.2018,5100970614,"11,802.15",Oldham Borough Council
Manchester City Council,Adult Social Care,Third party payments to other Local Authorities,04.04.2018,5100970615,"11,802.15",Oldham Borough Council
Manchester City Council,Adult Social Care,Third party payments to other Local Authorities,04.04.2018,5100970567,"4,559.25",Cheshire West and Chester
Manchester City Council,Adult Social Care,Third party payments to other Local Authorities,04.04.2018,5100970554,"1,888.25",Hardy Mill Primary School
Manchester City Council,Adult Social Care,Third party payments to other Local Authorities,04.04.2018,5100970566,662.25,St.John's CE Primary School
Manchester City Council,Adult Social Care,Third party payments to Health Authority,04.04.2018,5100970613,"7,429.96",Uni Hospital of South Mcr
Manchester City Council,Adult Social Care,Third party payments relating to Voluntary Organisations,04.04.2018,5100970731,633.00,African & Caribbean Mental Health
Manchester City Council,Adult Social Care,Payments for services,04.04.2018,5100970528,"2,675.50",Redacted Personal Information
Manchester City Council,Adult Social Care,Payments for services,04.04.2018,5100970742,"1,518.25",NT&AS
Manchester City Council,Adult Social Care,Payments for services,04.04.2018,5100970745,665.00,NT&AS
Manchester City Council,Adult Social Care,Payments for services,04.04.2018,5100970744,555.25,NT&AS
Manchester City Council,Adult Social Care,Extra Care Sheltered Housing Payments,04.04.2018,5100970612,"17,326.69",Creative Support Ltd
Manchester City Council,Adult Social Care,Legal Fees,04.04.2018,5100970597,525.00,Kings Chambers
Manchester City Council,Childrens Services,Works and associated costs for Land and Buildings,04.04.2018,5100970627,"49,468.62",Laing O'Rourke Construction Ltd
Manchester City Council,Corporate Services,Training and Development,04.04.2018,5100970460,"8,400.00",Acuma Solutions Ltd
Manchester City Council,Corporate Services,Professional fees,04.04.2018,5100970591,"5,000.00",Jones Lang LaSalle Limited
Manchester City Council,Corporate Services,Works and associated costs for Land and Buildings,04.04.2018,5100970601,"102,010.39",Wiggett Homes Ltd
Manchester City Council,Corporate Services,Works and associated costs for Land and Buildings,04.04.2018,5100970753,"26,003.05",Ramboll UK Limited
Manchester City Council,Corporate Services,Works and associated costs for Land and Buildings,04.04.2018,5100970622,"2,425.00",Heritage Architecture Ltd
Manchester City Council,Corporate Services,Works and associated costs for Land and Buildings,04.04.2018,5100970736,"2,254.20",Atkins Limited
Manchester City Council,Corporate Services,Works and associated costs for Land and Buildings,04.04.2018,5100970751,"-26,003.05",Ramboll UK Limited
Manchester City Council,Corporate Services,Long Term Debtors,04.04.2018,5100970621,"206,827.87",Nook & Key Ltd
Manchester City Council,Corporate Services,Long Term Debtors,04.04.2018,5100970609,"133,087.91",Blue Dog Property 2 Ltd
Manchester City Council,Housing General Fund,Building Works,04.04.2018,1905997141,"17,835.62",UPS Building & Maintenance Ltd
Manchester City Council,Housing General Fund,Building Works,04.04.2018,5100970738,"2,372.45",One Manchester Limited
Manchester City Council,Housing Revenue Account,I T Provision,04.04.2018,5100970580,885.00,Aareon UK Ltd
Manchester City Council,Housing Revenue Account,I T Provision,04.04.2018,5100970581,750.00,Aareon UK Ltd
Manchester City Council,Housing Revenue Account,Council Dwellings - Demolition,04.04.2018,5100970463,"1,583.98",Northwards Housing Limited
Manchester City Council,Chief Executives,Agency staff provision,04.04.2018,5100970489,"2,450.24",Search Consultancy Ltd
Manchester City Council,Chief Executives,Printing,04.04.2018,5100970724,"6,145.00",Astra Signs
Manchester City Council,Chief Executives,Printing,04.04.2018,5100970700,"1,235.00",Astra Signs
Manchester City Council,Chief Executives,Professional fees,04.04.2018,5100970761,"1,312.50",Oldham Borough Council
Manchester City Council,Chief Executives,Professional fees,04.04.2018,5100970526,625.00,Manchester Bike Hire
Manchester City Council,Chief Executives,Examination Fees,04.04.2018,5100970456,"3,490.00",ROAR Forensics Ltd
Manchester City Council,Chief Executives,Funeral and coroner related services,04.04.2018,5100970470,"6,165.00",The Pennine Acute Hospital Nhs Trus
Manchester City Council,Chief Executives,Funeral and coroner related services,04.04.2018,5100970467,"-1,233.00",The Pennine Acute Hospital Nhs Trus
Manchester City Council,Chief Executives,Works and associated costs for Land and Buildings,04.04.2018,5100970452,"6,160.00",Turner & Townsend Cost
Manchester City Council,Chief Executives,Works and associated costs for Land and Buildings,04.04.2018,5100970445,"3,500.00",Deloitte & Touche Llp
Manchester City Council,Chief Executives,Works and associated costs for Land and Buildings,04.04.2018,5100970728,"3,097.00",Deloitte & Touche Llp
Manchester City Council,Chief Executives,Works and associated costs for Land and Buildings,04.04.2018,5100970515,"-6,160.00",Turner & Townsend Cost
Manchester City Council,Chief Executives,Legal Fees,04.04.2018,5100970573,"1,085.00",Redacted Personal Information
Manchester City Council,Chief Executives,Legal Fees,04.04.2018,5100970574,945.00,Redacted Personal Information
Manchester City Council,Regeneration Finance,Rents,04.04.2018,5100970402,"3,268.44",Manchester Health Academy
Manchester City Council,Regeneration Finance,Rodent and Pest Control,04.04.2018,5100970459,"5,992.71",Victoria Baths Trust
Manchester City Council,Regeneration Finance,Car Parking Permits,04.04.2018,5100970524,"1,085.83",National Car Parks Ltd Season Ticke
Manchester City Council,Regeneration Finance,Furniture,04.04.2018,5100970691,"1,935.00",Egan Reid Stationery Co Ltd
Manchester City Council,Regeneration Finance,Furniture,04.04.2018,5100970676,978.00,Egan Reid Stationery Co Ltd
Manchester City Council,Regeneration Finance,Consultants Fees,04.04.2018,5100970518,"2,000.00",Ekos Consulting (Uk) Ltd
Manchester City Council,Regeneration Finance,Professional fees,04.04.2018,5100970523,"5,150.00",Manchester Professional
Manchester City Council,Regeneration Finance,Marine Insurance Premium,04.04.2018,1906001054,"6,885.57",Zurich Insurance
Manchester City Council,Highways Services,I T Provision,04.04.2018,5100970726,"9,071.78",Symology Limited
Manchester City Council,Manchester Leisure,Electricity,05.04.2018,1906002072,"3,054.97",British Gas Plc
Manchester City Council,Manchester Leisure,Electricity,05.04.2018,1906002073,995.09,British Gas Plc
Manchester City Council,Manchester Leisure,Water Service Charges - Unmetered,05.04.2018,1906002092,"8,324.56",Water Plus Limited
Manchester City Council,Manchester Leisure,Water Service Charges - Unmetered,05.04.2018,1906002109,"1,790.06",Water Plus Limited
Manchester City Council,Manchester Leisure,Water Service Charges - Unmetered,05.04.2018,1906002108,791.17,Water Plus Limited
Manchester City Council,Manchester Leisure,Cleaning Equipment and Materials,05.04.2018,5100970973,"4,693.00",Redgate Holdings Ltd
Manchester City Council,Manchester Leisure,Cleaning Equipment and Materials,05.04.2018,5100970962,"2,000.70",Redgate Holdings Ltd
Manchester City Council,Manchester Leisure,Car Parking Permits,05.04.2018,5100970930,"19,805.94",Q-Park Ltd
Manchester City Council,Manchester Leisure,Equipment,05.04.2018,5100970881,"1,433.97",Ferrious Ltd
Manchester City Council,Manchester Leisure,Payments to Sub-Contractors,05.04.2018,5100970417,"1,470.00",Greater M/cr Tree Station Limited
Manchester City Council,Manchester Leisure,Catering,05.04.2018,5100970830,"1,028.53",Manchester City Galleries Dev Co
Manchester City Council,Manchester Leisure,Professional fees,05.04.2018,5100970953,"3,730.00",Nicola Rowlands Creative
Manchester City Council,Manchester Leisure,Professional fees,05.04.2018,5100970789,"3,045.00",Redacted Personal Information
Manchester City Council,Manchester Leisure,Professional fees,05.04.2018,5100970888,"2,310.00",Redacted Personal Information
Manchester City Council,Manchester Leisure,Professional fees,05.04.2018,5100970919,"2,000.00",Ayla Suveren Consulting Ltd
Manchester City Council,Manchester Leisure,Professional fees,05.04.2018,5100970880,"2,000.00",Redacted Personal Information
Manchester City Council,Manchester Leisure,Professional fees,05.04.2018,5100970896,"2,000.00",t/a Grallator
Manchester City Council,Manchester Leisure,Professional fees,05.04.2018,5100970797,"1,980.00",Redacted Personal Information
Manchester City Council,Manchester Leisure,Professional fees,05.04.2018,5100970788,"1,350.00",Redacted Personal Information
Manchester City Council,Manchester Leisure,Professional fees,05.04.2018,5100970790,879.00,Redacted Personal Information
Manchester City Council,Manchester Leisure,Professional fees,05.04.2018,5100970787,782.25,Redacted Personal Information
Manchester City Council,Manchester Leisure,Professional fees,05.04.2018,5100970898,620.00,Noise Orchestra Ltd
Manchester City Council,Manchester Leisure,Professional fees,05.04.2018,5100970776,500.00,Redacted Personal Information
Manchester City Council,Manchester Leisure,Professional fees,05.04.2018,5100970779,500.00,Redacted Personal Information
Manchester City Council,Manchester Leisure,Grant and subscriptions awarded,05.04.2018,5100970970,"50,000.00",GM Business Support Ltd
Manchester City Council,Manchester Leisure,Grant and subscriptions awarded,05.04.2018,5100970825,"4,000.00",Troydale Tenants & Residents Assoc
Manchester City Council,Manchester Leisure,Grant and subscriptions awarded,05.04.2018,5100970582,"3,803.50",London Borough of Camden
Manchester City Council,Libraries and Theatres,Training and Development,05.04.2018,5100970422,"2,540.00",Keep Britain Tidy
Manchester City Council,Hospitality + Trading Services,Water Service Charges - Unmetered,05.04.2018,1906002080,"139,653.80",Water Plus Limited
Manchester City Council,Hospitality + Trading Services,Water Service Charges - Unmetered,05.04.2018,1906002082,"8,324.56",Water Plus Limited
Manchester City Council,Hospitality + Trading Services,Water Service Charges - Unmetered,05.04.2018,1906002123,"3,744.20",Water Plus Limited
Manchester City Council,Hospitality + Trading Services,Water Service Charges - Unmetered,05.04.2018,1906002086,"1,790.06",Water Plus Limited
Manchester City Council,Hospitality + Trading Services,Water Service Charges - Unmetered,05.04.2018,1906002121,"1,790.06",Water Plus Limited
Manchester City Council,Hospitality + Trading Services,Water Service Charges - Unmetered,05.04.2018,1906002148,"1,790.06",Water Plus Limited
Manchester City Council,Hospitality + Trading Services,"Clothes, Uniform and Laundry",05.04.2018,5100971007,"1,915.00",E & E Workwear
Manchester City Council,Hospitality + Trading Services,Catering Provisions,05.04.2018,1906002298,987.23,Brake Bros Foodservice Ltd
Manchester City Council,Hospitality + Trading Services,Catering Provisions,05.04.2018,1906002293,684.54,Brake Bros Foodservice Ltd
Manchester City Council,Hospitality + Trading Services,Catering Provisions,05.04.2018,1906002296,651.54,Brake Bros Foodservice Ltd
Manchester City Council,Hospitality + Trading Services,Catering Provisions,05.04.2018,1906002291,537.89,Chicken Joes Limited
Manchester City Council,Hospitality + Trading Services,Funeral and coroner related services,05.04.2018,5100970727,"1,142.54",Rigby Taylor Ltd
Manchester City Council,Hospitality + Trading Services,Legal Fees,05.04.2018,5100970829,875.00,Redacted Personal Information
Manchester City Council,Adult Social Care,Goods Received Invoice Received,05.04.2018,5100970846,-633.00,Manchester City Galleries Dev Co
Manchester City Council,Adult Social Care,Training and Development,05.04.2018,5100970594,600.00,Disabled Living
Manchester City Council,Adult Social Care,External repairs and maintenance for buildings,05.04.2018,5100970942,"44,280.48",G & J Seddon Ltd
Manchester City Council,Adult Social Care,Gas,05.04.2018,1906002212,680.59,British Gas Plc
Manchester City Council,Adult Social Care,Water Service Charges - Unmetered,05.04.2018,1906002098,"3,744.20",Water Plus Limited
Manchester City Council,Adult Social Care,Water Service Charges - Unmetered,05.04.2018,1906002096,791.17,Water Plus Limited
Manchester City Council,Adult Social Care,Water Service Charges - Unmetered,05.04.2018,1906002099,791.17,Water Plus Limited
Manchester City Council,Adult Social Care,Water Service Charges - Unmetered,05.04.2018,1906002141,791.17,Water Plus Limited
Manchester City Council,Adult Social Care,Water Service Charges - Unmetered,05.04.2018,1906002075,635.29,Water Plus Limited
Manchester City Council,Adult Social Care,Contract Cleaning External,05.04.2018,5100970835,"1,455.41",Brighter Beginnings Day Nursery
Manchester City Council,Adult Social Care,Transport Coach Hire,05.04.2018,5100970769,"4,170.00",Colin Rea Transport
Manchester City Council,Adult Social Care,Transport Coach Hire,05.04.2018,5100970903,"-5,319.00",T/A Schools Direct
Manchester City Council,Adult Social Care,"Consumable items eg Toilet rolls, soap etc",05.04.2018,5100970757,616.00,Camilla Carpets Ltd
Manchester City Council,Adult Social Care,Professional fees,05.04.2018,5100970957,"1,843.50",Edwina Grant Associates Ltd
Manchester City Council,Adult Social Care,Professional fees,05.04.2018,5100970957,"1,289.00",Edwina Grant Associates Ltd
Manchester City Council,Adult Social Care,Professional fees,05.04.2018,5100970947,905.00,Teaching Personnel Ltd
Manchester City Council,Adult Social Care,Professional fees,05.04.2018,5100970951,840.00,Teaching Personnel Ltd
Manchester City Council,Adult Social Care,Professional fees,05.04.2018,5100970936,600.00,Teaching Personnel Ltd
Manchester City Council,Adult Social Care,Professional fees,05.04.2018,5100970941,500.00,Teaching Personnel Ltd
Manchester City Council,Adult Social Care,Third party payments to other Local Authorities,05.04.2018,5100970568,"3,734.50",Kingfisher Special School
Manchester City Council,Adult Social Care,Third party payments relating to Voluntary Organisations,05.04.2018,5100970397,"3,200.00","CGL - Change, Grow, Live"
Manchester City Council,Adult Social Care,Third party payments relating to Voluntary Organisations,05.04.2018,5100970774,"1,901.25",The Enthusiasm Trust
Manchester City Council,Adult Social Care,Third party payments relating to Voluntary Organisations,05.04.2018,5100970808,567.00,City South Manchester Housing Trust
Manchester City Council,Adult Social Care,Third party payments relating to Voluntary Organisations,05.04.2018,5100970803,-567.00,City South Manchester Housing Trust
Manchester City Council,Adult Social Care,Payments for services,05.04.2018,5100970819,"20,846.44",The Together Trust
Manchester City Council,Adult Social Care,Payments for services,05.04.2018,5100970815,"5,086.30",The Together Trust
Manchester City Council,Adult Social Care,Payments for services,05.04.2018,5100970817,"4,945.92",The Together Trust
Manchester City Council,Adult Social Care,Payments for services,05.04.2018,5100970823,"3,897.23",The Together Trust
Manchester City Council,Adult Social Care,Payments for services,05.04.2018,5100970816,"2,885.12",The Together Trust
Manchester City Council,Adult Social Care,Payments for services,05.04.2018,5100970525,"2,200.00",Kaleidoscope Project
Manchester City Council,Adult Social Care,Payments for services,05.04.2018,5100970778,"1,927.36",The Together Trust
Manchester City Council,Adult Social Care,Payments for services,05.04.2018,5100970780,993.17,The Together Trust
Manchester City Council,Adult Social Care,Foster Payments,05.04.2018,1906003196,"2,128.00",Redacted Personal Information
Manchester City Council,Adult Social Care,Foster Payments,05.04.2018,1906003200,"1,008.00",Redacted Personal Information
Manchester City Council,Adult Social Care,Foster Payments,05.04.2018,1906003197,771.40,Redacted Personal Information
Manchester City Council,Adult Social Care,Foster Payments,05.04.2018,1906003203,639.40,Redacted Personal Information
Manchester City Council,Adult Social Care,Foster Payments,05.04.2018,1906003202,556.00,Redacted Personal Information
Manchester City Council,Adult Social Care,Foster Payments,05.04.2018,1906003198,506.52,Redacted Personal Information
Manchester City Council,Adult Social Care,Childminding Fee Payments,05.04.2018,1906003205,508.76,Redacted Personal Information
Manchester City Council,Adult Social Care,Legal Fees,05.04.2018,5100970821,"1,050.00",Redacted Personal Information
Manchester City Council,Corporate Services,Water Service Charges - Unmetered,05.04.2018,1906002174,791.17,Water Plus Limited
Manchester City Council,Corporate Services,Water Service Charges - Unmetered,05.04.2018,1906002169,702.07,Water Plus Limited
Manchester City Council,Corporate Services,Water Service Charges - Unmetered,05.04.2018,1906002102,522.88,Water Plus Limited
Manchester City Council,Corporate Services,Equipment,05.04.2018,5100970783,713.00,Back Care Solutions Ltd
Manchester City Council,Corporate Services,Professional fees,05.04.2018,5100970946,"6,500.00",Savills (UK) Ltd
Manchester City Council,Corporate Services,Professional fees,05.04.2018,5100970824,"2,000.00",Wilkinson Cowan Partnership Ltd
Manchester City Council,Corporate Services,Professional fees,05.04.2018,5100970831,925.00,Currie & Brown UK Ltd
Manchester City Council,Corporate Services,Professional fees,05.04.2018,5100970826,650.00,Naismiths Ltd
Manchester City Council,Corporate Services,Collection Commission,05.04.2018,5100970514,"2,425.95",Capacity Grid
Manchester City Council,Corporate Services,I T Provision,05.04.2018,5100970464,"2,550.00",Acuma Solutions Ltd
Manchester City Council,Corporate Services,Works and associated costs for Land and Buildings,05.04.2018,5100970416,"2,695.00",Turner & Townsend Cost
Manchester City Council,Corporate Services,Works and associated costs for Land and Buildings,05.04.2018,5100970940,"81,538.07",Conlon Construction Ltd
Manchester City Council,Corporate Services,Long Term Debtors,05.04.2018,5100970850,"178,116.00",First Step (Ancoats) Ltd
Manchester City Council,Housing General Fund,Investment Properties - Acquisition,05.04.2018,1906001851,"1,100.00",Countrywide Legal Indemnities
Manchester City Council,Housing General Fund,Surplus property Fees,05.04.2018,1906001852,960.00,Peter Cunliffe & Co
Manchester City Council,Housing Revenue Account,Rent Refund,05.04.2018,1906001917,"2,700.00",Redacted Personal Information
Manchester City Council,Housing Revenue Account,Rents,05.04.2018,5100970842,"9,463.86",M J Mapp
Manchester City Council,Housing Revenue Account,Council Dwelling Adaptations,05.04.2018,5100970864,"9,173.36",Pts Plumbing Trade Supplies
Manchester City Council,Housing Revenue Account,Council Dwelling Adaptations,05.04.2018,5100970856,"8,783.07",Nova Group Ltd
Manchester City Council,Housing Revenue Account,Council Dwelling Adaptations,05.04.2018,5100970862,"8,618.38",Pts Plumbing Trade Supplies
Manchester City Council,Housing Revenue Account,Council Dwelling Adaptations,05.04.2018,5100970865,"7,700.61",Pts Plumbing Trade Supplies
Manchester City Council,Housing Revenue Account,Council Dwelling Adaptations,05.04.2018,5100970861,"6,414.91",Pts Plumbing Trade Supplies
Manchester City Council,Housing Revenue Account,Council Dwelling Adaptations,05.04.2018,5100970860,"5,149.20",Pts Plumbing Trade Supplies
Manchester City Council,Housing Revenue Account,Council Dwelling Adaptations,05.04.2018,5100970859,"4,905.96",Pts Plumbing Trade Supplies
Manchester City Council,Housing Revenue Account,Council Dwelling Adaptations,05.04.2018,5100970867,"2,766.28",IG Doors Ltd
Manchester City Council,Housing Revenue Account,Council Dwelling Adaptations,05.04.2018,5100970868,"2,240.36",IG Doors Ltd
Manchester City Council,Housing Revenue Account,Council Dwelling Adaptations,05.04.2018,5100970857,"1,580.61",IG Doors Ltd
Manchester City Council,Chief Executives,Agency staff provision,05.04.2018,5100970491,"5,690.00",Medicare First
Manchester City Council,Chief Executives,Vehicle Hire Costs,05.04.2018,5100970999,750.75,Manchester Van Hire Ltd
Manchester City Council,Chief Executives,Equipment,05.04.2018,5100970950,"2,473.00",Universal Live
Manchester City Council,Chief Executives,Equipment,05.04.2018,5100970950,"1,636.50",Universal Live
Manchester City Council,Chief Executives,Equipment,05.04.2018,5100970950,"1,636.50",Universal Live
Manchester City Council,Chief Executives,Payments to Sub-Contractors,05.04.2018,5100970897,551.10,Redacted Personal Information
Manchester City Council,Chief Executives,Professional fees,05.04.2018,5100970964,"4,500.00",Improvement & Development Agency
Manchester City Council,Chief Executives,Professional fees,05.04.2018,5100970532,625.00,Manchester Bike Hire
Manchester City Council,Chief Executives,I T Provision,05.04.2018,5100970513,676.48,Insight Direct (Uk) Ltd
Manchester City Council,Chief Executives,ICT Support & Maintenance,05.04.2018,5100970546,"5,271.00",Jadu Ltd
Manchester City Council,Chief Executives,Advertising,05.04.2018,5100970775,"7,000.00",Clicky Media Ltd
Manchester City Council,Chief Executives,Advertising,05.04.2018,5100970944,715.00,Travel Weekly Group Ltd
Manchester City Council,Chief Executives,Personal needs of client,05.04.2018,5100970981,897.00,Trophyworld
Manchester City Council,Chief Executives,Works and associated costs for Land and Buildings,05.04.2018,5100970517,"6,160.00",Turner & Townsend Cost
Manchester City Council,Chief Executives,Works and associated costs for Land and Buildings,05.04.2018,5100970487,"5,650.00",Manchester Creative Digital Assets
Manchester City Council,Chief Executives,Works and associated costs for Land and Buildings,05.04.2018,5100970531,"2,536.00",Turner & Townsend Cost
Manchester City Council,Chief Executives,Compensation Payments,05.04.2018,5100970539,"2,500.00",11KBW
Manchester City Council,Regeneration Finance,External repairs and maintenance for buildings,05.04.2018,5100970843,"1,850.00",Failsworth Electrical Ltd
Manchester City Council,Regeneration Finance,External repairs and maintenance for buildings,05.04.2018,5100970802,"-1,850.00",Failsworth Electrical Ltd
Manchester City Council,Regeneration Finance,Rents,05.04.2018,1905997123,"80,248.39",Regus Management (UK) Ltd
Manchester City Council,Regeneration Finance,Rents,05.04.2018,5100970406,"2,910.70",Manchester Health Academy
Manchester City Council,Regeneration Finance,Rents,05.04.2018,1905997120,993.65,Regus Management (UK) Ltd
Manchester City Council,Regeneration Finance,Water Service Charges - Unmetered,05.04.2018,1906002093,"59,851.17",Water Plus Limited
Manchester City Council,Regeneration Finance,Water Service Charges - Unmetered,05.04.2018,1906002132,"34,314.33",Water Plus Limited
Manchester City Council,Regeneration Finance,Water Service Charges - Unmetered,05.04.2018,1906002166,"23,939.99",Water Plus Limited
Manchester City Council,Regeneration Finance,Water Service Charges - Unmetered,05.04.2018,1906002087,"8,324.56",Water Plus Limited
Manchester City Council,Regeneration Finance,Water Service Charges - Unmetered,05.04.2018,1906002089,"8,324.56",Water Plus Limited
Manchester City Council,Regeneration Finance,Water Service Charges - Unmetered,05.04.2018,1906002130,"8,324.56",Water Plus Limited
Manchester City Council,Regeneration Finance,Water Service Charges - Unmetered,05.04.2018,1906002164,"8,324.56",Water Plus Limited
Manchester City Council,Regeneration Finance,Water Service Charges - Unmetered,05.04.2018,1906002165,"8,324.56",Water Plus Limited
Manchester City Council,Regeneration Finance,Water Service Charges - Unmetered,05.04.2018,1906002170,"8,324.56",Water Plus Limited
Manchester City Council,Regeneration Finance,Water Service Charges - Unmetered,05.04.2018,1906002084,"3,744.20",Water Plus Limited
Manchester City Council,Regeneration Finance,Water Service Charges - Unmetered,05.04.2018,1906002091,"3,744.20",Water Plus Limited
Manchester City Council,Regeneration Finance,Water Service Charges - Unmetered,05.04.2018,1906002127,"3,744.20",Water Plus Limited
Manchester City Council,Regeneration Finance,Water Service Charges - Unmetered,05.04.2018,1906002175,"3,744.20",Water Plus Limited
Manchester City Council,Regeneration Finance,Water Service Charges - Unmetered,05.04.2018,1906002074,"1,790.06",Water Plus Limited
Manchester City Council,Regeneration Finance,Water Service Charges - Unmetered,05.04.2018,1906002100,"1,790.06",Water Plus Limited
Manchester City Council,Regeneration Finance,Water Service Charges - Unmetered,05.04.2018,1906002103,"1,790.06",Water Plus Limited
Manchester City Council,Regeneration Finance,Water Service Charges - Unmetered,05.04.2018,1906002104,"1,790.06",Water Plus Limited
Manchester City Council,Regeneration Finance,Water Service Charges - Unmetered,05.04.2018,1906002110,"1,790.06",Water Plus Limited
Manchester City Council,Regeneration Finance,Water Service Charges - Unmetered,05.04.2018,1906002142,"1,790.06",Water Plus Limited
Manchester City Council,Regeneration Finance,Water Service Charges - Unmetered,05.04.2018,1906002143,"1,790.06",Water Plus Limited
Manchester City Council,Regeneration Finance,Water Service Charges - Unmetered,05.04.2018,1906002144,"1,790.06",Water Plus Limited
Manchester City Council,Regeneration Finance,Water Service Charges - Unmetered,05.04.2018,1906002149,"1,790.06",Water Plus Limited
Manchester City Council,Regeneration Finance,Water Service Charges - Unmetered,05.04.2018,1906002153,"1,790.06",Water Plus Limited
Manchester City Council,Regeneration Finance,Water Service Charges - Unmetered,05.04.2018,1906002155,"1,790.06",Water Plus Limited
Manchester City Council,Regeneration Finance,Water Service Charges - Unmetered,05.04.2018,1906002167,"1,790.06",Water Plus Limited
Manchester City Council,Regeneration Finance,Water Service Charges - Unmetered,05.04.2018,1906002088,"1,208.03",Water Plus Limited
Manchester City Council,Regeneration Finance,Water Service Charges - Unmetered,05.04.2018,1906002151,791.17,Water Plus Limited
Manchester City Council,Regeneration Finance,Water Service Charges - Unmetered,05.04.2018,1906002156,791.17,Water Plus Limited
Manchester City Council,Regeneration Finance,Water Service Charges - Unmetered,05.04.2018,1906002157,791.17,Water Plus Limited
Manchester City Council,Regeneration Finance,Water Service Charges - Unmetered,05.04.2018,1906002158,791.17,Water Plus Limited
Manchester City Council,Regeneration Finance,Water Service Charges - Unmetered,05.04.2018,1906002159,791.17,Water Plus Limited
Manchester City Council,Regeneration Finance,Water Service Charges - Unmetered,05.04.2018,1906002162,791.17,Water Plus Limited
Manchester City Council,Regeneration Finance,Water Service Charges - Unmetered,05.04.2018,1906002172,791.17,Water Plus Limited
Manchester City Council,Regeneration Finance,Security,05.04.2018,5100970838,809.90,Chubb  Systems Limited
Manchester City Council,Highways Services,General Office expenses,05.04.2018,5100970510,"6,625.00",Utilities Design & Planning Ltd
Manchester City Council,Highways Services,Payments to Contractors,05.04.2018,5100970958,"5,758.08",NSL Ltd
Manchester City Council,Insurance Fund,Officials Indemnity Insurance Premium,05.04.2018,1906003223,"4,468.80",Aon Ltd
Manchester City Council,GMIST (Greater Mcr Integrated),Agency staff provision,05.04.2018,5100970924,"9,360.00",GMCA
Manchester City Council,Manchester Leisure,Rents,06.04.2018,5100971253,"5,759.22",Wythenshawe Forum Trust Ltd
Manchester City Council,Manchester Leisure,Grounds Maintenance Costs,06.04.2018,5100971116,"2,357.25",Iss Facility Services Limited
Manchester City Council,Manchester Leisure,Equipment,06.04.2018,5100971262,"6,606.00",Cromwell polythene limited
Manchester City Council,Manchester Leisure,Equipment,06.04.2018,5100971256,"2,275.00",Massey & Harris (Engrg) Ltd
Manchester City Council,Manchester Leisure,Equipment,06.04.2018,5100970840,"1,640.00",Universal Live
Manchester City Council,Manchester Leisure,Furniture,06.04.2018,5100970986,"1,975.00",thedesignconcept
Manchester City Council,Manchester Leisure,Building Materials for direct delivery,06.04.2018,5100971130,"3,414.50",Manchester Working Ltd
Manchester City Council,Manchester Leisure,Building Materials for direct delivery,06.04.2018,5100970564,880.00,Groundwork Landscapes Ltd
Manchester City Council,Manchester Leisure,Payments to Sub-Contractors,06.04.2018,5100971193,"3,873.32",Pleydell Smithyman Limited
Manchester City Council,Manchester Leisure,Payments to Sub-Contractors,06.04.2018,5100970561,"1,700.00",Groundwork Landscapes Ltd
Manchester City Council,Manchester Leisure,Payments to Sub-Contractors,06.04.2018,5100971180,"1,560.00",Scrutiny Cleaning Services
Manchester City Council,Manchester Leisure,Payments to Sub-Contractors,06.04.2018,5100971040,"1,500.00",Arboricultural Services Treework
Manchester City Council,Manchester Leisure,Payments to Sub-Contractors,06.04.2018,5100971036,"1,300.00",Arboricultural Services Treework
Manchester City Council,Manchester Leisure,Payments to Sub-Contractors,06.04.2018,5100970559,660.00,Groundwork Landscapes Ltd
Manchester City Council,Manchester Leisure,Payments to Sub-Contractors,06.04.2018,5100970560,654.00,Groundwork Landscapes Ltd
Manchester City Council,Manchester Leisure,Payments to Sub-Contractors,06.04.2018,5100970556,560.00,Groundwork Landscapes Ltd
Manchester City Council,Manchester Leisure,Payments to Sub-Contractors,06.04.2018,5100971038,560.00,Arboricultural Services Treework
Manchester City Council,Manchester Leisure,Payments to Sub-Contractors,06.04.2018,5100970558,550.00,Groundwork Landscapes Ltd
Manchester City Council,Manchester Leisure,"Clothes, Uniform and Laundry",06.04.2018,5100971179,"1,560.00",Scrutiny Cleaning Services
Manchester City Council,Manchester Leisure,Catering,06.04.2018,5100971254,"6,524.67",The Mechanics Centre Ltd
Manchester City Council,Manchester Leisure,Professional fees,06.04.2018,5100971094,"2,250.00",One Education Ltd
Manchester City Council,Manchester Leisure,Professional fees,06.04.2018,5100971108,"1,365.00",NewThinking.Tools Ltd
Manchester City Council,Manchester Leisure,Professional fees,06.04.2018,5100971070,985.00,Clearview Event Services Limited
Manchester City Council,Manchester Leisure,I T Provision,06.04.2018,5100970996,"5,110.00",Civica UK Ltd
Manchester City Council,Manchester Leisure,I T Provision,06.04.2018,5100970965,"1,803.75",Canford Audio Plc
Manchester City Council,Manchester Leisure,Cash Collection,06.04.2018,5100970549,"9,675.00",Manchester Metropolitan University
Manchester City Council,Manchester Leisure,Grant and subscriptions awarded,06.04.2018,5100971019,"11,410.50",Oldham Borough Council
Manchester City Council,Manchester Leisure,Grant and subscriptions awarded,06.04.2018,5100971022,"4,325.50",Oldham Borough Council
Manchester City Council,Manchester Leisure,Grant and subscriptions awarded,06.04.2018,5100971063,"3,570.18",St Vincents2 & Park Range RA
Manchester City Council,Manchester Leisure,Grant and subscriptions awarded,06.04.2018,5100971087,"3,550.00",Friends of Blackley Cemetery
Manchester City Council,Manchester Leisure,Grant and subscriptions awarded,06.04.2018,5100971060,"3,340.00",West Didsbury Estate Comm Group
Manchester City Council,Manchester Leisure,Grant and subscriptions awarded,06.04.2018,5100971141,"3,000.00",Odd Arts
Manchester City Council,Manchester Leisure,Grant and subscriptions awarded,06.04.2018,5100971151,"2,600.00",Manchester Digital Ltd
Manchester City Council,Manchester Leisure,Grant and subscriptions awarded,06.04.2018,5100971075,"1,992.00",Reform Radio CIC
Manchester City Council,Manchester Leisure,Grant and subscriptions awarded,06.04.2018,5100971080,"1,840.00",105th Manchester St Peter's Scout
Manchester City Council,Manchester Leisure,Grant and subscriptions awarded,06.04.2018,5100971084,"1,700.00",Friends of Blackley Cemetery
Manchester City Council,Manchester Leisure,Grant and subscriptions awarded,06.04.2018,5100971223,"1,472.15",Didsbury FM
Manchester City Council,Manchester Leisure,Grant and subscriptions awarded,06.04.2018,5100971083,"1,130.00",Friends of Blackley Forest
Manchester City Council,Manchester Leisure,Grant and subscriptions awarded,06.04.2018,5100971045,"1,085.00",New Longsight Housing Co-Op
Manchester City Council,Manchester Leisure,Grant and subscriptions awarded,06.04.2018,5100971056,570.00,Levenshulme Inspire
Manchester City Council,Manchester Leisure,Grant and subscriptions awarded,06.04.2018,5100970730,540.00,Barnet and Southgate College
Manchester City Council,Manchester Leisure,Goods purchased for resale in Council outlets,06.04.2018,5100971118,"1,604.88",Museums and Galleries Ltd
Manchester City Council,Manchester Leisure,Goods purchased for resale in Council outlets,06.04.2018,5100971206,"1,590.60",Littlehampton Book Services Ltd
Manchester City Council,Manchester Leisure,Goods purchased for resale in Council outlets,06.04.2018,5100971210,929.40,Art Angels Publishing Ltd
Manchester City Council,Manchester Leisure,Goods purchased for resale in Council outlets,06.04.2018,5100971123,922.40,Etnika
Manchester City Council,Manchester Leisure,Goods purchased for resale in Council outlets,06.04.2018,5100971244,886.50,Redacted Personal Information
Manchester City Council,Manchester Leisure,Goods purchased for resale in Council outlets,06.04.2018,5100971101,523.25,Littlehampton Book Services Ltd
Manchester City Council,Manchester Leisure,Special Events,06.04.2018,5100971062,700.00,Redacted Personal Information
Manchester City Council,Manchester Leisure,Third party payments to other Local Authorities,06.04.2018,5100971164,"3,803.50",PARCA
Manchester City Council,Manchester Leisure,Third party payments to other Local Authorities,06.04.2018,5100970763,"1,200.00",GMPLN
Manchester City Council,Manchester Leisure,Expenditure re Internal Trading Ordered Externally,06.04.2018,5100970764,"1,999.00",Universal Live
Manchester City Council,Manchester Leisure,Expenditure re Internal Trading Ordered Externally,06.04.2018,5100971026,"1,000.00",Redacted Personal Information
Manchester City Council,Manchester Leisure,Surplus property Fees,06.04.2018,5100971139,"5,043.30",Addleshaw Goddard Solicitors
Manchester City Council,Libraries and Theatres,Training and Development,06.04.2018,1906002282,"2,430.00",Bowden Ltd
Manchester City Council,Hospitality + Trading Services,External repairs and maintenance for buildings,06.04.2018,5100971133,"5,000.00",Manchester Working Ltd
Manchester City Council,Hospitality + Trading Services,Vehicle Repairs,06.04.2018,5100971225,875.00,Advanced Vehicle Technicians Ltd
Manchester City Council,Hospitality + Trading Services,Vehicle Repairs,06.04.2018,5100971177,692.29,Advanced Vehicle Technicians Ltd
Manchester City Council,Hospitality + Trading Services,Transport Coach Hire,06.04.2018,5100971145,"3,675.00",APTSL
Manchester City Council,Hospitality + Trading Services,Transport Coach Hire,06.04.2018,5100971149,"2,950.00",APTSL
Manchester City Council,Hospitality + Trading Services,Equipment,06.04.2018,5100971231,"5,256.24",Greater Manchester Police
Manchester City Council,Hospitality + Trading Services,Hire of Equipment,06.04.2018,5100970956,"3,365.02",One Stop Hire Limited
Manchester City Council,Hospitality + Trading Services,Catering Provisions,06.04.2018,1906003653,"66,095.89",Ralph Livesey Ltd
Manchester City Council,Adult Social Care,Training and Development,06.04.2018,5100971055,"3,150.00",Manchester Metropolitan University
Manchester City Council,Adult Social Care,Training and Development,06.04.2018,1905984544,"1,000.00",Tavistock Relationships
Manchester City Council,Adult Social Care,External repairs and maintenance for buildings,06.04.2018,5100971128,959.20,Manchester Working Ltd
Manchester City Council,Adult Social Care,Electricity,06.04.2018,5100971276,702.48,Ashbury Meadow Primary School
Manchester City Council,Adult Social Care,Rents,06.04.2018,1906001312,650.00,Medlock Estates
Manchester City Council,Adult Social Care,Transport Coach Hire,06.04.2018,5100971071,"3,780.00",Ricks Travel
Manchester City Council,Adult Social Care,Transport Coach Hire,06.04.2018,5100971196,"3,585.00",Redacted Personal Information
Manchester City Council,Adult Social Care,Equipment,06.04.2018,5100971190,975.00,Drive Devilbiss Healthcare Ltd
Manchester City Council,Adult Social Care,Equipment,06.04.2018,5100970782,693.61,Back Care Solutions Ltd
Manchester City Council,Adult Social Care,Grant Payments,06.04.2018,5100971186,"5,000.00",Tameside Metropolitan Bouough
Manchester City Council,Adult Social Care,Professional fees,06.04.2018,5100971226,"8,750.00",The Children'S Society Services Ltd
Manchester City Council,Adult Social Care,Professional fees,06.04.2018,5100970589,"2,025.00",Sloan Education Services Ltd
Manchester City Council,Adult Social Care,Professional fees,06.04.2018,5100970899,"1,697.40",Manchester Young Lives
Manchester City Council,Adult Social Care,Professional fees,06.04.2018,5100971088,"1,100.00",Afruca
Manchester City Council,Adult Social Care,Professional fees,06.04.2018,5100970901,"-1,697.40",Manchester Young Lives
Manchester City Council,Adult Social Care,I T Provision,06.04.2018,5100971031,"2,547.13",T.I.S. Limited
Manchester City Council,Adult Social Care,Subsistence and Conference Expenses,06.04.2018,5100971163,"7,009.00",Rochdale Mbc
Manchester City Council,Adult Social Care,Grant and subscriptions awarded,06.04.2018,5100971158,"7,500.00",Coffee4Craig Ltd
Manchester City Council,Adult Social Care,Bed and Breakfast Accommodation Expenditure,06.04.2018,5100970858,"7,865.00",Redacted Personal Information
Manchester City Council,Adult Social Care,Third party payments to Health Authority,06.04.2018,5100971295,"9,392.56",Uni Hospital of South Mcr
Manchester City Council,Adult Social Care,Third party payments relating to Voluntary Organisations,06.04.2018,5100971241,"15,277.76",Remedi
Manchester City Council,Adult Social Care,Third party payments relating to Voluntary Organisations,06.04.2018,5100971261,"4,000.00",The Proud Trust
Manchester City Council,Adult Social Care,Third party payments relating to Voluntary Organisations,06.04.2018,5100971268,"3,333.27",Riverside ECHG
Manchester City Council,Adult Social Care,Payments for services,06.04.2018,5100970563,880.00,Prime Care Ambulance Service
Manchester City Council,Adult Social Care,Home Care ,06.04.2018,5100971248,"18,190.37",Enterprise Care Group Ltd
Manchester City Council,Adult Social Care,Day Care Payments,06.04.2018,5100971155,681.75,Genesis Day Care
Manchester City Council,Adult Social Care,Temporary Care - Residential,06.04.2018,5100971203,"7,307.14",Potensial Ltd (T/A Potens)
Manchester City Council,Adult Social Care,Temporary Care - Residential,06.04.2018,5100971204,"6,600.00",Potensial Ltd (T/A Potens)
Manchester City Council,Adult Social Care,Legal Fees,06.04.2018,5100971146,"5,700.00",Byrom Street Chambers
Manchester City Council,Adult Social Care,Legal Fees,06.04.2018,5100971152,"2,150.00",Redacted Personal Information
Manchester City Council,Corporate Services,ICT Support & Maintenance,06.04.2018,5100970934,"1,100.00",Northgate Public Services (UK) Ltd
Manchester City Council,Corporate Services,ICT Support & Maintenance,06.04.2018,5100970937,"-1,100.00",Northgate Public Services (UK) Ltd
Manchester City Council,Corporate Services,Tele Conferencing,06.04.2018,1905997178,829.86,BT Conferencing Services
Manchester City Council,Corporate Services,Works and associated costs for Land and Buildings,06.04.2018,5100971129,500.00,Manchester Working Ltd
Manchester City Council,Corporate Services,Works and associated costs for Land and Buildings,06.04.2018,5100971185,"51,774.54",Manchester Working Ltd
Manchester City Council,Corporate Services,Works and associated costs for Land and Buildings,06.04.2018,5100971053,"-2,028.58",Manchester Working Ltd
Manchester City Council,Corporate Services,Construction Works,06.04.2018,5100971039,"8,500.00",Gaist Solutions Ltd
Manchester City Council,Housing Revenue Account,West Gorton Management Fee,06.04.2018,5100971288,"12,203.00",The Guinness Partnership Ltd
Manchester City Council,Housing Revenue Account,Council Dwelling Fees,06.04.2018,5100971260,"1,840.41",Northwards Housing Limited
Manchester City Council,Chief Executives,Agency staff provision,06.04.2018,5100971175,"20,393.34",Access Computer Consulting plc
Manchester City Council,Chief Executives,Agency staff provision,06.04.2018,5100970980,"5,690.00",Medicare First
Manchester City Council,Chief Executives,Agency staff provision,06.04.2018,5100970484,"1,404.22",Venn Group Ltd
Manchester City Council,Chief Executives,Training and Development,06.04.2018,5100971252,618.00,The Law Society
Manchester City Council,Chief Executives,Training and Development,06.04.2018,5100971249,"3,280.00",Manchester Mind
Manchester City Council,Chief Executives,Hire of Equipment,06.04.2018,5100971217,"6,888.84",Bowe Systec
Manchester City Council,Chief Executives,Printing,06.04.2018,5100971247,"3,315.00",NB Colour Print Limited
Manchester City Council,Chief Executives,Printing,06.04.2018,5100971051,"1,870.00",Browns CTP Ltd
Manchester City Council,Chief Executives,Printing,06.04.2018,5100971050,"1,220.00",Browns CTP Ltd
Manchester City Council,Chief Executives,Professional fees,06.04.2018,5100970822,"9,500.00",Softcat
Manchester City Council,Chief Executives,Professional fees,06.04.2018,5100970979,"5,275.56",Proventure Consulting
Manchester City Council,Chief Executives,Funeral and coroner related services,06.04.2018,1906001316,684.34,Redacted Personal Information
Manchester City Council,Chief Executives,Funeral and coroner related services,06.04.2018,1906001311,"1,112.00",Redacted Personal Information
Manchester City Council,Chief Executives,ICT Support & Maintenance,06.04.2018,5100970461,"8,879.50",CDR Group
Manchester City Council,Chief Executives,ICT Support & Maintenance,06.04.2018,5100970507,"6,000.00",Caci Ltd
Manchester City Council,Chief Executives,ICT Support & Maintenance,06.04.2018,5100970477,"3,237.00",GBM Digital Technologies Ltd
Manchester City Council,Chief Executives,Grant and subscriptions awarded,06.04.2018,5100971140,"5,000.00",Design Manchester Ltd
Manchester City Council,Chief Executives,Licences Purchase,06.04.2018,5100970499,"2,827.00",Trojan Consultants Ltd (CASPAR)
Manchester City Council,Chief Executives,Works and associated costs for Land and Buildings,06.04.2018,5100970847,"127,391.00",Office for Metropolitan Architectur
Manchester City Council,Chief Executives,Works and associated costs for Land and Buildings,06.04.2018,5100970945,"87,200.00",Building Design Partnership Limited
Manchester City Council,Chief Executives,Vehicle Plant Furniture and Equipment,06.04.2018,5100971032,"2,360.00",Bluefin Solutions Limited
Manchester City Council,Regeneration Finance,Internal Repairs and Maintenance for buildings,06.04.2018,5100971144,"66,439.89",Manchester Working Ltd
Manchester City Council,Regeneration Finance,External repairs and maintenance for buildings,06.04.2018,5100971137,"7,000.00",Northwards Housing Limited
Manchester City Council,Regeneration Finance,External repairs and maintenance for buildings,06.04.2018,5100970872,"1,800.00",Groundwork Landscapes Ltd
Manchester City Council,Regeneration Finance,External repairs and maintenance for buildings,06.04.2018,5100970565,"1,500.00",Groundwork Landscapes Ltd
Manchester City Council,Regeneration Finance,Contract Cleaning External,06.04.2018,5100971278,"6,565.38",Mitie Cleaning & Environmental
Manchester City Council,Regeneration Finance,Contract Cleaning External,06.04.2018,5100971291,727.52,Mitie Cleaning & Environmental
Manchester City Council,Regeneration Finance,Cleaning Equipment and Materials,06.04.2018,1906003784,589.42,PHS Group
Manchester City Council,Regeneration Finance,Grounds Maintenance Costs,06.04.2018,5100970871,"1,800.00",Groundwork Landscapes Ltd
Manchester City Council,Regeneration Finance,Grounds Maintenance Costs,06.04.2018,5100970875,"1,800.00",Groundwork Landscapes Ltd
Manchester City Council,Regeneration Finance,Grounds Maintenance Costs,06.04.2018,5100970876,"1,800.00",Groundwork Landscapes Ltd
Manchester City Council,Regeneration Finance,Grounds Maintenance Costs,06.04.2018,5100970878,"1,800.00",Groundwork Landscapes Ltd
Manchester City Council,Regeneration Finance,Grounds Maintenance Costs,06.04.2018,5100970873,"1,500.00",Groundwork Landscapes Ltd
Manchester City Council,Regeneration Finance,Professional fees,06.04.2018,5100971134,"46,970.61",Manchester Working Ltd
Manchester City Council,Regeneration Finance,Professional fees,06.04.2018,5100971085,"5,000.00",Philanthropy Company
Manchester City Council,Regeneration Finance,Payments for services,06.04.2018,5100971285,"4,322.00",Victoria Baths Trust
Manchester City Council,Highways Services,Grounds Maintenance Costs,06.04.2018,5100971107,500.00,The Fountain Company Ltd
Manchester City Council,Highways Services,Building Materials for direct delivery,06.04.2018,5100971170,"1,946.36",TARMAC
Manchester City Council,Highways Services,Building Materials for direct delivery,06.04.2018,5100971171,"1,815.42",TARMAC
Manchester City Council,Highways Services,Building Materials for direct delivery,06.04.2018,5100971174,"1,141.25",TARMAC
Manchester City Council,Highways Services,Building Materials for direct delivery,06.04.2018,5100971156,665.15,Aggregate Industries T/A Kennedy As
Manchester City Council,Highways Services,Building Materials for direct delivery,06.04.2018,5100971154,594.51,Aggregate Industries T/A Kennedy As
Manchester City Council,Highways Services,Building Materials for direct delivery,06.04.2018,1906003658,565.60,Ecomix Concrete Ltd
Manchester City Council,Highways Services,Building Materials for direct delivery,06.04.2018,5100971173,534.23,TARMAC
Manchester City Council,Highways Services,Building Materials for direct delivery,06.04.2018,1906003636,511.20,Benchmark Building Supplies Ltd
Manchester City Council,Highways Services,Payments to Sub-Contractors,06.04.2018,5100971090,"3,400.00",Northern Marking Limited
Manchester City Council,Highways Services,Payments to Sub-Contractors,06.04.2018,5100970562,"2,240.00",Groundwork Landscapes Ltd
Manchester City Council,Highways Services,Payments to Sub-Contractors,06.04.2018,5100971042,"1,301.92",Northern Marking Limited
Manchester City Council,Highways Services,I T Provision,06.04.2018,5100970453,626.50,WSP UK Ltd
Manchester City Council,Highways Services,Payments to Contractors,06.04.2018,5100970882,"7,008.84",NSL Ltd
Manchester City Council,Insurance Fund,Insurance,06.04.2018,5100971269,675.00,Redacted Personal Information
Manchester City Council,GMIST (Greater Mcr Integrated),Hire of Premises,06.04.2018,5100971166,"1,300.40",GMCA
Manchester City Council,Manchester Leisure,Agency staff provision,09.04.2018,5100971336,"4,003.50",Oldham Borough Council
Manchester City Council,Manchester Leisure,Agency staff provision,09.04.2018,5100971439,"1,105.13",Manchester Art Gallery Trust
Manchester City Council,Manchester Leisure,External repairs and maintenance for buildings,09.04.2018,5100971529,"1,500.00",Redgate Holdings Ltd
Manchester City Council,Manchester Leisure,Hire of Premises,09.04.2018,5100971351,"2,550.00",Khisra Mosque
Manchester City Council,Manchester Leisure,Transport and Driver Hire,09.04.2018,5100971507,"14,745.97",Constantine Ltd
Manchester City Council,Manchester Leisure,Equipment,09.04.2018,5100971592,"2,169.92",Preservation Equipment Ltd
Manchester City Council,Manchester Leisure,Payments to Sub-Contractors,09.04.2018,5100971559,"2,720.00",Arboricultural Services Treework
Manchester City Council,Manchester Leisure,Payments to Sub-Contractors,09.04.2018,5100971561,"1,510.00",Arboricultural Services Treework
Manchester City Council,Manchester Leisure,Printing,09.04.2018,5100971522,"8,416.38",VIP-System Ltd
Manchester City Council,Manchester Leisure,Professional fees,09.04.2018,5100971391,"6,000.00",University Of Manchester
Manchester City Council,Manchester Leisure,Professional fees,09.04.2018,5100971420,"6,000.00",University Of Manchester
Manchester City Council,Manchester Leisure,Professional fees,09.04.2018,5100970974,"6,000.00",Alan Higgins Ltd
Manchester City Council,Manchester Leisure,Professional fees,09.04.2018,5100971521,"4,450.00",Social Profit Calculator Ltd
Manchester City Council,Manchester Leisure,Professional fees,09.04.2018,5100970801,"3,000.00",Crowdfund UK
Manchester City Council,Manchester Leisure,Professional fees,09.04.2018,5100971330,"2,500.00",Bradford Metropolitan District
Manchester City Council,Manchester Leisure,Professional fees,09.04.2018,5100970978,"2,000.00",Platform Mcr
Manchester City Council,Manchester Leisure,Professional fees,09.04.2018,1905984362,"1,750.00",Sephton & Co Ltd
Manchester City Council,Manchester Leisure,Professional fees,09.04.2018,5100970912,"1,645.92",Framing Manchester Ltd
Manchester City Council,Manchester Leisure,Professional fees,09.04.2018,5100971422,"1,500.00",DigiEnable
Manchester City Council,Manchester Leisure,Professional fees,09.04.2018,5100971076,"1,050.00",DigiEnable
Manchester City Council,Manchester Leisure,Grant and subscriptions awarded,09.04.2018,5100971385,"10,700.00",The White Room Consultancy Ltd
Manchester City Council,Manchester Leisure,Grant and subscriptions awarded,09.04.2018,5100970983,"8,651.00",Bolton College
Manchester City Council,Manchester Leisure,Grant and subscriptions awarded,09.04.2018,5100971322,"2,000.00",Water Adventure Centre
Manchester City Council,Manchester Leisure,Grant and subscriptions awarded,09.04.2018,5100970928,"2,000.00",Odd Arts
Manchester City Council,Manchester Leisure,Grant and subscriptions awarded,09.04.2018,5100971389,"2,000.00",The Grosvenor Museum
Manchester City Council,Manchester Leisure,Grant and subscriptions awarded,09.04.2018,5100970756,"1,500.00",4CT Limited
Manchester City Council,Manchester Leisure,Grant and subscriptions awarded,09.04.2018,5100971337,"1,000.00",Barlow Moor Community Centre
Manchester City Council,Manchester Leisure,Grant and subscriptions awarded,09.04.2018,5100971415,960.00,Better Things
Manchester City Council,Manchester Leisure,Grant and subscriptions awarded,09.04.2018,5100971072,934.60,Northwards Housing Limited
Manchester City Council,Manchester Leisure,Goods purchased for resale in Council outlets,09.04.2018,5100971480,"2,051.41",Cornflower Ltd
Manchester City Council,Manchester Leisure,Goods purchased for resale in Council outlets,09.04.2018,5100971468,748.39,Canns Down Press Ltd
Manchester City Council,Manchester Leisure,Goods purchased for resale in Council outlets,09.04.2018,5100971479,729.00,Cornflower Ltd
Manchester City Council,Manchester Leisure,Goods purchased for resale in Council outlets,09.04.2018,5100971371,607.20,Lagom Design Limited
Manchester City Council,Manchester Leisure,Payments for services,09.04.2018,5100971159,"8,706.25",The Fitness Training Academy Ltd
Manchester City Council,Manchester Leisure,Payments for services,09.04.2018,5100971492,"1,535.00",Sporting Start Ltd T/a EdStart
Manchester City Council,Libraries and Theatres,Training and Development,09.04.2018,5100970972,800.00,The Skills Company
Manchester City Council,Libraries and Theatres,Training and Development,09.04.2018,5100970971,660.00,The Skills Company
Manchester City Council,Hospitality + Trading Services,Training and Development,09.04.2018,5100971227,"2,190.00",Seta Ltd
Manchester City Council,Hospitality + Trading Services,Training and Development,09.04.2018,5100971229,"1,095.00",Seta Ltd
Manchester City Council,Hospitality + Trading Services,Contract Cleaning External,09.04.2018,5100971531,"26,673.59",Biffa Municipal Limited
Manchester City Council,Hospitality + Trading Services,Equipment,09.04.2018,5100971588,562.50,Mahood Marquees Ltd
Manchester City Council,Hospitality + Trading Services,Hire of Machinery,09.04.2018,5100971378,"1,038.50",R & M Developments Ltd
Manchester City Council,Hospitality + Trading Services,Hire of Machinery,09.04.2018,5100971379,"1,038.50",R & M Developments Ltd
Manchester City Council,Hospitality + Trading Services,Hire of Machinery,09.04.2018,5100971377,"1,012.50",R & M Developments Ltd
Manchester City Council,Hospitality + Trading Services,Hire of Machinery,09.04.2018,5100971380,"1,012.50",R & M Developments Ltd
Manchester City Council,Hospitality + Trading Services,Hire of Machinery,09.04.2018,5100971098,641.20,Gibsons Garden Machinery Limited
Manchester City Council,Hospitality + Trading Services,Catering Provisions,09.04.2018,1906004746,753.78,Brake Bros Foodservice Ltd
Manchester City Council,Hospitality + Trading Services,Catering Provisions,09.04.2018,1906004749,685.95,Brake Bros Foodservice Ltd
Manchester City Council,Adult Social Care,Training and Development,09.04.2018,5100971364,800.00,The Skills Company
Manchester City Council,Adult Social Care,Training and Development,09.04.2018,5100971365,800.00,The Skills Company
Manchester City Council,Adult Social Care,Training and Development,09.04.2018,5100970338,500.00,Griffin Care Limited
Manchester City Council,Adult Social Care,Training and Development,09.04.2018,5100970338,500.00,Griffin Care Limited
Manchester City Council,Adult Social Care,Training and Development,09.04.2018,5100970338,500.00,Griffin Care Limited
Manchester City Council,Adult Social Care,Training and Development,09.04.2018,5100970338,500.00,Griffin Care Limited
Manchester City Council,Adult Social Care,Training and Development,09.04.2018,5100970338,500.00,Griffin Care Limited
Manchester City Council,Adult Social Care,Training and Development,09.04.2018,5100970977,"3,280.00",Manchester Mind
Manchester City Council,Adult Social Care,Gas,09.04.2018,5100971311,528.50,Ashbury Meadow Primary School
Manchester City Council,Adult Social Care,Contract Cleaning External,09.04.2018,5100971403,"1,497.00",Barnardo's North West
Manchester City Council,Adult Social Care,Contract Cleaning External,09.04.2018,5100971401,"1,488.00",Barnardo's North West
Manchester City Council,Adult Social Care,Transport Coach Hire,09.04.2018,5100970883,"17,655.00",Redacted Personal Information
Manchester City Council,Adult Social Care,Transport Coach Hire,09.04.2018,5100971110,"4,026.00",T/a K Travel
Manchester City Council,Adult Social Care,Transport Coach Hire,09.04.2018,5100971591,"2,300.00",Redacted Personal Information
Manchester City Council,Adult Social Care,Transport Coach Hire,09.04.2018,5100971562,"1,995.00",T/A Beresford Travel
Manchester City Council,Adult Social Care,Transport Coach Hire,09.04.2018,5100971608,"1,890.00",Exec-Coach Services
Manchester City Council,Adult Social Care,Transport Coach Hire,09.04.2018,5100971476,"1,365.00",DMC Travel
Manchester City Council,Adult Social Care,Catering,09.04.2018,5100970885,"14,979.30",Spie Limited
Manchester City Council,Adult Social Care,Professional fees,09.04.2018,5100970319,"2,080.00",Rainbow Surprise
Manchester City Council,Adult Social Care,Professional fees,09.04.2018,5100970902,"2,000.00",Manchester Young Lives
Manchester City Council,Adult Social Care,Professional fees,09.04.2018,5100970921,"2,000.00",Manchester Young Lives
Manchester City Council,Adult Social Care,Professional fees,09.04.2018,5100970906,"1,894.80",Manchester Young Lives
Manchester City Council,Adult Social Care,Professional fees,09.04.2018,5100970918,"1,894.80",Manchester Young Lives
Manchester City Council,Adult Social Care,Professional fees,09.04.2018,5100970908,"1,697.40",Manchester Young Lives
Manchester City Council,Adult Social Care,Professional fees,09.04.2018,5100970916,"1,697.40",Manchester Young Lives
Manchester City Council,Adult Social Care,Professional fees,09.04.2018,1906001857,"1,130.10",Advanced Child Care Assessments
Manchester City Council,Adult Social Care,Professional fees,09.04.2018,5100971257,"1,000.00",Afruca
Manchester City Council,Adult Social Care,Professional fees,09.04.2018,5100970890,"-1,697.40",Manchester Young Lives
Manchester City Council,Adult Social Care,Professional fees,09.04.2018,5100970915,"-1,697.40",Manchester Young Lives
Manchester City Council,Adult Social Care,Professional fees,09.04.2018,5100970894,"-1,894.80",Manchester Young Lives
Manchester City Council,Adult Social Care,Professional fees,09.04.2018,5100970913,"-1,894.80",Manchester Young Lives
Manchester City Council,Adult Social Care,Professional fees,09.04.2018,5100970895,"-2,000.00",Manchester Young Lives
Manchester City Council,Adult Social Care,Professional fees,09.04.2018,5100970911,"-2,000.00",Manchester Young Lives
Manchester City Council,Adult Social Care,Subsistence and Conference Expenses,09.04.2018,5100971616,"13,501.00",Wigan Metropolitan Borough Council
Manchester City Council,Adult Social Care,Subsistence and Conference Expenses,09.04.2018,5100971604,"11,749.00",Bolton Mbc
Manchester City Council,Adult Social Care,Subsistence and Conference Expenses,09.04.2018,5100970949,"5,225.00",Manchester Young Lives
Manchester City Council,Adult Social Care,Subsistence and Conference Expenses,09.04.2018,5100971620,600.00,Wigan Metropolitan Borough Council
Manchester City Council,Adult Social Care,Funeral and coroner related services,09.04.2018,5100971224,840.00,Greater Manchester Funeral Service
Manchester City Council,Adult Social Care,Bed and Breakfast Accommodation Expenditure,09.04.2018,5100971408,"5,050.90",K L Properties
Manchester City Council,Adult Social Care,Third party payments to other Local Authorities,09.04.2018,5100971452,"2,270.75",Lever Park School
Manchester City Council,Adult Social Care,Third party payments relating to Voluntary Organisations,09.04.2018,5100971183,"13,509.00",The Lesbian & Gay Foundation
Manchester City Council,Adult Social Care,Third party payments relating to Voluntary Organisations,09.04.2018,5100971527,"9,274.30",Man. Citizens Advice Bureaux
Manchester City Council,Adult Social Care,Third party payments relating to Voluntary Organisations,09.04.2018,5100971374,"7,250.00",The Depaul Trust
Manchester City Council,Adult Social Care,Third party payments relating to Voluntary Organisations,09.04.2018,5100971523,"5,087.14",Water Adventure Centre
Manchester City Council,Adult Social Care,Third party payments relating to Voluntary Organisations,09.04.2018,5100971376,"4,233.33",The Depaul Trust
Manchester City Council,Adult Social Care,Third party payments relating to Voluntary Organisations,09.04.2018,5100971520,"2,293.00",Water Adventure Centre
Manchester City Council,Adult Social Care,Third party payments relating to Voluntary Organisations,09.04.2018,5100971372,"1,583.33",The Depaul Trust
Manchester City Council,Adult Social Care,Third party payments relating to Voluntary Organisations,09.04.2018,5100971488,"1,200.00",Great Places Housing Association
Manchester City Council,Adult Social Care,Third party payments relating to Voluntary Organisations,09.04.2018,5100971320,851.13,The Edward Mayes Trust
Manchester City Council,Adult Social Care,Payments for services,09.04.2018,5100971484,"7,313.28",The Together Trust
Manchester City Council,Adult Social Care,Payments for services,09.04.2018,5100971362,"6,015.76",Bridge House Independent School
Manchester City Council,Adult Social Care,Payments for services,09.04.2018,5100971367,"6,015.76",Bridge House Independent School
Manchester City Council,Adult Social Care,Payments for services,09.04.2018,5100971368,"5,870.76",Bridge House Independent School
Manchester City Council,Adult Social Care,Payments for services,09.04.2018,5100971369,"5,870.76",Bridge House Independent School
Manchester City Council,Adult Social Care,Payments for services,09.04.2018,5100971357,"1,833.00",Diagrama Foundation
Manchester City Council,Adult Social Care,Supporting People Payments,09.04.2018,5100971352,"11,666.67",The Depaul Trust
Manchester City Council,Adult Social Care,Foster Payments,09.04.2018,1906004620,700.00,Redacted Personal Information
Manchester City Council,Adult Social Care,Supported Accommodation,09.04.2018,5100971463,"25,680.00",Manchester Settlement
Manchester City Council,Corporate Services,Training and Development,09.04.2018,5100971414,"3,000.00",MBL Seminars
Manchester City Council,Corporate Services,Travel Season Ticket Loan Scheme,09.04.2018,5100971111,570.00,Stagecoach Manchester
Manchester City Council,Corporate Services,Travel Season Ticket Loan Scheme,09.04.2018,5100971111,570.00,Stagecoach Manchester
Manchester City Council,Corporate Services,Travel Season Ticket Loan Scheme,09.04.2018,5100971624,513.00,First Bus
Manchester City Council,Corporate Services,Works and associated costs for Land and Buildings,09.04.2018,5100971419,"3,043.96",Manchester Working Ltd
Manchester City Council,Housing Revenue Account,Rents,09.04.2018,5100971549,"3,154.62",M J Mapp
Manchester City Council,Housing Revenue Account,Council Dwelling Adaptations,09.04.2018,5100971255,"15,760.99",Pts Plumbing Trade Supplies
Manchester City Council,Chief Executives,Agency staff provision,09.04.2018,5100971572,"4,987.50",Sanctuary Social Care
Manchester City Council,Chief Executives,Agency staff provision,09.04.2018,5100971578,"3,089.85",Cadence Resourcing Ltd
Manchester City Council,Chief Executives,Agency staff provision,09.04.2018,5100971184,"1,835.77",NonStop Recruitment Ltd
Manchester City Council,Chief Executives,Agency staff provision,09.04.2018,5100971566,"1,474.90",Ashberry Recruitment Ltd
Manchester City Council,Chief Executives,Agency staff provision,09.04.2018,5100971552,"1,445.16",Deekay Technical Recruitment Ltd
Manchester City Council,Chief Executives,Agency staff provision,09.04.2018,5100971329,"1,294.55",Venn Group Ltd
Manchester City Council,Chief Executives,Training and Development,09.04.2018,5100971470,"2,847.63",QA Ltd
Manchester City Council,Chief Executives,Grant Payments,09.04.2018,5100971573,"3,687.50",Venture Arts Ltd
Manchester City Council,Chief Executives,Printing,09.04.2018,5100971564,"2,594.00",NB Colour Print Limited
Manchester City Council,Chief Executives,Printing,09.04.2018,5100971308,"1,974.00",Allied Publicity Serv.(Manchester)
Manchester City Council,Chief Executives,Professional fees,09.04.2018,5100971086,"27,000.00",PA Consulting
Manchester City Council,Chief Executives,Professional fees,09.04.2018,1906003727,"9,987.50",Mustard Market Research Ltd
Manchester City Council,Chief Executives,Professional fees,09.04.2018,1906001921,"9,625.00",St James House
Manchester City Council,Chief Executives,Professional fees,09.04.2018,5100971526,"1,000.00",Greater Manchester Coalition Of Dis
Manchester City Council,Chief Executives,Professional fees,09.04.2018,5100971398,825.00,NPS North West Ltd
Manchester City Council,Chief Executives,I T Provision,09.04.2018,5100971589,"1,352.96",Insight Direct (Uk) Ltd
Manchester City Council,Chief Executives,I T Provision,09.04.2018,5100971194,635.00,Recycle IT 4U Ltd
Manchester City Council,Chief Executives,Grant and subscriptions awarded,09.04.2018,5100971584,"137,500.00",National Football Museum
Manchester City Council,Chief Executives,Advertising,09.04.2018,5100971347,"2,700.00",MediaCo Outdoor Limited
Manchester City Council,Chief Executives,Advertising,09.04.2018,5100971326,"1,400.00",Guardian News and Media Limited
Manchester City Council,Chief Executives,Advertising,09.04.2018,5100971332,"1,200.00",London Calling Arts Ltd
Manchester City Council,Chief Executives,Advertising,09.04.2018,5100971277,"1,125.00",TES Global Ltd
Manchester City Council,Chief Executives,Advertising,09.04.2018,5100971099,877.50,TES Global Ltd
Manchester City Council,Chief Executives,Advertising,09.04.2018,5100971338,720.00,MediaCo Outdoor Limited
Manchester City Council,Chief Executives,Advertising,09.04.2018,5100971344,720.00,MediaCo Outdoor Limited
Manchester City Council,Chief Executives,Advertising,09.04.2018,5100971312,630.00,Skyline Ltd
Manchester City Council,Chief Executives,Third party payments relating to Voluntary Organisations,09.04.2018,5100971615,"114,032.83",HOME
Manchester City Council,Chief Executives,Vehicle Plant Furniture and Equipment,09.04.2018,5100971605,"7,498.75",Insight Direct (Uk) Ltd
Manchester City Council,Chief Executives,Legal Fees,09.04.2018,5100971331,"7,558.50",Eversheds Llp
Manchester City Council,Chief Executives,Compensation Payments,09.04.2018,5100971515,"3,144.50",Eversheds Llp
Manchester City Council,Chief Executives,Compensation Payments,09.04.2018,1906003736,644.00,Anglia DNA Services
Manchester City Council,Chief Executives,Compensation Payments,09.04.2018,1906003724,537.05,Target Psychology Ltd
Manchester City Council,Regeneration Finance,External repairs and maintenance for buildings,09.04.2018,5100971577,"1,890.00",Victoria Baths Trust
Manchester City Council,Regeneration Finance,Contract Cleaning External,09.04.2018,5100971355,"6,565.38",Mitie Cleaning & Environmental
Manchester City Council,Regeneration Finance,Contract Cleaning External,09.04.2018,5100971353,727.52,Mitie Cleaning & Environmental
Manchester City Council,Regeneration Finance,Cleaning Equipment,09.04.2018,5100971737,679.60,Alliance Disposables Ltd
Manchester City Council,Regeneration Finance,"Clothes, Uniform and Laundry",09.04.2018,5100971636,"4,926.00",Slater Menswear
Manchester City Council,Regeneration Finance,Stationery,09.04.2018,5100970961,"8,000.00",Slater Menswear
Manchester City Council,Regeneration Finance,Professional fees,09.04.2018,5100971410,"5,949.45",Turner & Townsend Project
Manchester City Council,Regeneration Finance,Professional fees,09.04.2018,5100971410,"3,250.55",Turner & Townsend Project
Manchester City Council,Regeneration Finance,Professional fees,09.04.2018,5100971342,"2,338.13",GVA Grimley Ltd
Manchester City Council,Regeneration Finance,Professional fees,09.04.2018,5100971343,"1,985.61",GVA Grimley Ltd
Manchester City Council,Regeneration Finance,Professional fees,09.04.2018,5100971409,"-9,200.00",Turner & Townsend Project
Manchester City Council,Regeneration Finance,Distribution of Airport Rental,09.04.2018,1906002321,"115,629.52",Oldham Borough Council
Manchester City Council,Regeneration Finance,Distribution of Airport Rental,09.04.2018,1906003182,"115,629.52",Tameside Metropolitan Bouough
Manchester City Council,Regeneration Finance,Distribution of Airport Rental,09.04.2018,1906003187,"115,629.52",Wigan Metropolitan Borough Council
Manchester City Council,Regeneration Finance,Distribution of Airport Rental,09.04.2018,1906002322,"115,629.52",Rochdale Mbc
Manchester City Council,Regeneration Finance,Distribution of Airport Rental,09.04.2018,1906003094,"115,629.52",Stockport Metropolitan Borough
Manchester City Council,Regeneration Finance,Distribution of Airport Rental,09.04.2018,1906002319,"115,629.52",Bolton Mbc
Manchester City Council,Regeneration Finance,Distribution of Airport Rental,09.04.2018,1906002323,"115,629.52",Salford City Council
Manchester City Council,Regeneration Finance,Distribution of Airport Rental,09.04.2018,1906003185,"115,629.52",Trafford M B C
Manchester City Council,Regeneration Finance,Distribution of Airport Rental,09.04.2018,1906002317,"115,629.52",Bury M.B.C.
Manchester City Council,Regeneration Finance,Compensation Payments,09.04.2018,1906002279,"10,502.50",Browne Jacobson
Manchester City Council,Regeneration Finance,Compensation Payments,09.04.2018,1906002280,"3,556.00",Browne Jacobson
Manchester City Council,Highways Services,Building Materials for direct delivery,09.04.2018,5100971736,"9,193.09",Marshalls Mono Ltd
Manchester City Council,Highways Services,Building Materials for direct delivery,09.04.2018,5100971626,691.35,TARMAC
Manchester City Council,Highways Services,Building Materials for direct delivery,09.04.2018,5100971068,619.67,Aggregate Industries T/A Kennedy As
Manchester City Council,Highways Services,Building Materials for direct delivery,09.04.2018,5100971628,516.68,TARMAC
Manchester City Council,Highways Services,Payments to Sub-Contractors,09.04.2018,5100970990,"3,600.00",Rosgal Ltd
Manchester City Council,Highways Services,Payments to Sub-Contractors,09.04.2018,5100970914,"1,050.00",Groundwork Landscapes Ltd
Manchester City Council,Highways Services,Professional fees,09.04.2018,5100971264,"6,986.00",Turner & Townsend Cost
Manchester City Council,Highways Services,Professional fees,09.04.2018,5100971263,"4,940.27",Turner & Townsend Cost
Manchester City Council,Highways Services,Professional fees,09.04.2018,5100971266,"4,625.04",Turner & Townsend Cost
Manchester City Council,Highways Services,Telecoms Equip,09.04.2018,5100971132,710.00,Digital Exchange Products Ltd
Manchester City Council,General Fund,Levies,09.04.2018,1906003851,"70,436.71",Manchester Port Health Authority
Manchester City Council,Insurance Fund,Balance of Risks Insurance Premium,09.04.2018,1905955502,"3,875.18",New Moston Primary School
Manchester City Council,GMIST (Greater Mcr Integrated),Professional fees,09.04.2018,5100971328,"8,165.00",GMCA
Manchester City Council,Manchester Leisure,Training and Development,10.04.2018,5100971695,"2,000.00",Bond Solon Training
Manchester City Council,Manchester Leisure,External repairs and maintenance for buildings,10.04.2018,5100971642,845.00,Ashlea Ltd
Manchester City Council,Manchester Leisure,Rents,10.04.2018,1905997118,"3,599.62",Manchester Airport Plc
Manchester City Council,Manchester Leisure,Grounds Maintenance Costs,10.04.2018,5100971637,"9,709.00",Ashlea Ltd
Manchester City Council,Manchester Leisure,Equipment,10.04.2018,5100971886,"2,329.38",DBN Lighting
Manchester City Council,Manchester Leisure,Equipment,10.04.2018,5100971885,"1,168.75",DBN Lighting
Manchester City Council,Manchester Leisure,Furniture,10.04.2018,5100971752,"2,105.00",thedesignconcept
Manchester City Council,Manchester Leisure,Furniture,10.04.2018,5100971751,"1,930.00",thedesignconcept
Manchester City Council,Manchester Leisure,Furniture,10.04.2018,5100971753,"1,495.40",thedesignconcept
Manchester City Council,Manchester Leisure,Payments to Sub-Contractors,10.04.2018,5100971557,"4,800.00",Arboricultural Services Treework
Manchester City Council,Manchester Leisure,Payments to Sub-Contractors,10.04.2018,5100971571,595.00,Groundwork Landscapes Ltd
Manchester City Council,Manchester Leisure,"Clothes, Uniform and Laundry",10.04.2018,5100971652,600.75,Slater Menswear
Manchester City Council,Manchester Leisure,Professional fees,10.04.2018,5100971178,"27,660.00",Belle Vue Manchester
Manchester City Council,Manchester Leisure,Professional fees,10.04.2018,5100971649,"5,000.00",Curious Minds
Manchester City Council,Manchester Leisure,Professional fees,10.04.2018,5100971649,"2,500.00",Curious Minds
Manchester City Council,Manchester Leisure,Professional fees,10.04.2018,5100971781,"2,000.00",Greater Manchester Police
Manchester City Council,Manchester Leisure,Professional fees,10.04.2018,5100971873,"1,200.00",Interference Art
Manchester City Council,Manchester Leisure,Professional fees,10.04.2018,5100971650,"1,123.82",Curious Minds
Manchester City Council,Manchester Leisure,Professional fees,10.04.2018,5100971875,720.00,Zion Arts Centre Ltd
Manchester City Council,Manchester Leisure,Professional fees,10.04.2018,5100971874,550.00,Interference Art
Manchester City Council,Manchester Leisure,Cash Collection,10.04.2018,5100971800,"18,578.04",National Car Parks Ltd Season Ticke
Manchester City Council,Manchester Leisure,Grant and subscriptions awarded,10.04.2018,5100971786,"6,000.00",Manchester Hive Network Limited
Manchester City Council,Manchester Leisure,Grant and subscriptions awarded,10.04.2018,5100971821,"1,000.00",Console Code
Manchester City Council,Manchester Leisure,Payments for services,10.04.2018,5100971727,"1,820.00",Dance and Fitness Agency Ltd
Manchester City Council,Manchester Leisure,Works and associated costs for Land and Buildings,10.04.2018,5100971730,"1,300.00",Dynamik Sport Surfaces Ltd
Manchester City Council,Hospitality + Trading Services,Vehicle Repairs,10.04.2018,5100971809,685.91,Advanced Vehicle Technicians Ltd
Manchester City Council,Hospitality + Trading Services,Equipment,10.04.2018,1906003853,640.00,Mercury Power
Manchester City Council,Hospitality + Trading Services,Advertising,10.04.2018,5100971787,595.00,Edge Entertainment Consultants Ltd
Manchester City Council,Environment and Operations,Construction Works,10.04.2018,5100971082,"81,500.00",J.Hopkins (Contractors) Ltd.
Manchester City Council,Environment and Operations,Construction Works,10.04.2018,5100971061,"51,800.00",J.Hopkins (Contractors) Ltd.
Manchester City Council,Environment and Operations,Construction Works,10.04.2018,5100971454,"51,795.52",Bethell Construction Ltd
Manchester City Council,Environment and Operations,Construction Works,10.04.2018,5100971294,"47,301.75",Dowhigh Ltd
Manchester City Council,Environment and Operations,Construction Works,10.04.2018,5100971296,"29,165.00",Dowhigh Ltd
Manchester City Council,Environment and Operations,Construction Works,10.04.2018,5100971126,"1,758.31",GMCA
Manchester City Council,Environment and Operations,Construction Works,10.04.2018,5100971147,"1,522.26",GMCA
Manchester City Council,Environment and Operations,Construction Works,10.04.2018,5100971106,"1,442.19",GMCA
Manchester City Council,Adult Social Care,Rents,10.04.2018,5100971883,"5,921.03",Eeven Homes Ltd.
Manchester City Council,Adult Social Care,Grounds Maintenance Costs,10.04.2018,5100971514,900.00,Countrywide Grounds Maintenance Ltd
Manchester City Council,Adult Social Care,Transport Coach Hire,10.04.2018,5100970572,"22,174.00",Taxi Team Limited
Manchester City Council,Adult Social Care,Transport Coach Hire,10.04.2018,5100971729,"14,074.60",Parkway Cabs & Cars
Manchester City Council,Adult Social Care,Transport Coach Hire,10.04.2018,5100971835,"2,102.00",Nelson Transport
Manchester City Council,Adult Social Care,Transport Coach Hire,10.04.2018,5100971776,"1,821.10",Hastings Private Hire
Manchester City Council,Adult Social Care,Transport Coach Hire,10.04.2018,5100971783,"1,710.00",APL Coachhire
Manchester City Council,Adult Social Care,Transport Coach Hire,10.04.2018,5100971774,660.00,Hastings Private Hire
Manchester City Council,Adult Social Care,Equipment,10.04.2018,5100971655,"2,000.00",Tunstall Healthcare (UK) Ltd
Manchester City Council,Adult Social Care,Equipment,10.04.2018,5100971815,"1,995.00",After Adoption
Manchester City Council,Adult Social Care,Equipment,10.04.2018,5100971822,"1,000.00",Nurture Psychology Ltd
Manchester City Council,Adult Social Care,Equipment,10.04.2018,5100971829,591.00,Redacted Personal Information
Manchester City Council,Adult Social Care,Professional fees,10.04.2018,5100971828,"6,069.47",University Of Manchester
Manchester City Council,Adult Social Care,I T Provision,10.04.2018,5100971583,"5,687.00",Cloud Technology Solutions Ltd
Manchester City Council,Adult Social Care,Bed and Breakfast Accommodation Expenditure,10.04.2018,5100971713,"16,653.00",Redacted Personal Information
Manchester City Council,Adult Social Care,Third party payments relating to Voluntary Organisations,10.04.2018,5100971653,"1,255.51",Anchor Trust
Manchester City Council,Adult Social Care,Third party payments relating to Voluntary Organisations,10.04.2018,5100971653,930.03,Anchor Trust
Manchester City Council,Adult Social Care,Payments for services,10.04.2018,5100971508,"49,392.00",Potensial Ltd (T/A Potens)
Manchester City Council,Adult Social Care,Payments for services,10.04.2018,5100971510,"49,392.00",Potensial Ltd (T/A Potens)
Manchester City Council,Adult Social Care,Payments for services,10.04.2018,5100971519,"49,392.00",Potensial Ltd (T/A Potens)
Manchester City Council,Adult Social Care,Payments for services,10.04.2018,5100971780,"12,752.00",Time Specialist Support Ltd
Manchester City Council,Adult Social Care,Payments for services,10.04.2018,5100971782,"9,840.00",Time Specialist Support Ltd
Manchester City Council,Adult Social Care,Payments for services,10.04.2018,5100970991,"1,833.00",Diagrama Foundation
Manchester City Council,Adult Social Care,Supporting People Payments,10.04.2018,5100970608,"5,619.00",Barnardo's North West
Manchester City Council,Adult Social Care,Foster Payments,10.04.2018,1906003855,"3,348.00",Redacted Personal Information
Manchester City Council,Adult Social Care,Foster Payments,10.04.2018,1906005058,917.43,Redacted Personal Information
Manchester City Council,Adult Social Care,Supported Accommodation,10.04.2018,5100971865,"1,200.00",Manchester Settlement
Manchester City Council,Adult Social Care,Personal needs of client,10.04.2018,5100971889,"2,703.00",Newlyn Healthcare Limited
Manchester City Council,Adult Social Care,Temporary Care - Residential,10.04.2018,5100971465,"10,912.00",Potensial Ltd (T/A Potens)
Manchester City Council,Adult Social Care,Temporary Care - Residential,10.04.2018,5100971464,"9,856.00",Potensial Ltd (T/A Potens)
Manchester City Council,Adult Social Care,Temporary Care - Residential,10.04.2018,5100971471,"7,307.14",Potensial Ltd (T/A Potens)
Manchester City Council,Adult Social Care,Temporary Care - Residential,10.04.2018,5100971669,"7,307.14",Potensial Ltd (T/A Potens)
Manchester City Council,Adult Social Care,Temporary Care - Residential,10.04.2018,5100971466,"6,600.00",Potensial Ltd (T/A Potens)
Manchester City Council,Adult Social Care,Temporary Care - Residential,10.04.2018,5100971469,"6,600.00",Potensial Ltd (T/A Potens)
Manchester City Council,Adult Social Care,Temporary Care - Residential,10.04.2018,5100971700,"3,535.71",Potensial Ltd (T/A Potens)
Manchester City Council,Adult Social Care,Temporary Care - Residential,10.04.2018,5100971706,"1,056.00",Potensial Ltd (T/A Potens)
Manchester City Council,Corporate Services,Professional fees,10.04.2018,5100971181,"3,519.06",Keelagher Okey Associates Ltd t/a
Manchester City Council,Corporate Services,Professional fees,10.04.2018,5100971696,"3,285.00",ESRI (Uk) Ltd
Manchester City Council,Corporate Services,Professional fees,10.04.2018,5100970984,"1,716.00",Rider Levett Bucknall UK Ltd
Manchester City Council,Corporate Services,Professional fees,10.04.2018,5100971635,647.50,Faithful & Gould Ltd
Manchester City Council,Corporate Services,Grant and subscriptions awarded,10.04.2018,5100971089,830.00,Rating Publishing
Manchester City Council,Corporate Services,Works and associated costs for Land and Buildings,10.04.2018,5100971785,"23,645.00",Bruntwood Estates Alpha
Manchester City Council,Corporate Services,Works and associated costs for Land and Buildings,10.04.2018,5100971784,"6,155.00",Bruntwood Estates Alpha
Manchester City Council,Corporate Services,Works and associated costs for Land and Buildings,10.04.2018,5100971792,750.00,Integra Consulting Engineers Ltd
Manchester City Council,Corporate Services,Works and associated costs for Land and Buildings,10.04.2018,5100971651,"2,597.00",The Fountain Company Ltd
Manchester City Council,Corporate Services,Works and associated costs for Land and Buildings,10.04.2018,5100971755,"14,511.29",Manchester Working Ltd
Manchester City Council,Corporate Services,Works and associated costs for Land and Buildings,10.04.2018,5100971756,"6,537.45",Manchester Working Ltd
Manchester City Council,Housing General Fund,Building Works,10.04.2018,5100971832,"107,005.58",Wythenshawe Community Housing Group
Manchester City Council,Housing General Fund,Building Works,10.04.2018,1906003645,"4,496.88",Redacted Personal Information
Manchester City Council,Housing Revenue Account,Northwards Repairs Fee,10.04.2018,5100971864,"1,676,400.00",Northwards Housing Limited
Manchester City Council,Housing Revenue Account,Council Dwelling Adaptations,10.04.2018,5100971807,"-2,245.00",Hoist & Shower Chair Company
Manchester City Council,Housing Revenue Account,Investment Properties - Acquisition,10.04.2018,1906005057,"18,875.00",H M Revenues and Customs
Manchester City Council,Housing Revenue Account,Investment Properties - Fees,10.04.2018,5100971826,"1,000.00",Roger Hannah & Co
Manchester City Council,Chief Executives,Training and Development,10.04.2018,5100971382,"9,600.00",ServiceNow UK Ltd
Manchester City Council,Chief Executives,Grant Payments,10.04.2018,5100971646,"3,687.50",Venture Arts Ltd
Manchester City Council,Chief Executives,Professional fees,10.04.2018,5100971869,"8,160.00",Anwar Solutions Ltd
Manchester City Council,Chief Executives,Professional fees,10.04.2018,5100971485,"2,400.00",Redacted Personal Information
Manchester City Council,Chief Executives,Funeral and coroner related services,10.04.2018,1906003858,"1,650.00",MW Medical Reports Ltd
Manchester City Council,Chief Executives,Funeral and coroner related services,10.04.2018,1906003861,755.60,Redacted Personal Information
Manchester City Council,Chief Executives,Data Links,10.04.2018,1906002281,"24,723.29",BT PLC
Manchester City Council,Chief Executives,ICT Support & Maintenance,10.04.2018,5100971697,"102,304.09",Computacenter (UK) Ltd
Manchester City Council,Chief Executives,ICT Support & Maintenance,10.04.2018,5100971701,"2,600.08",Computacenter (UK) Ltd
Manchester City Council,Chief Executives,Licences Purchase,10.04.2018,1906004070,"8,100.00",MHR International UK Ltd
Manchester City Council,Chief Executives,Works and associated costs for Land and Buildings,10.04.2018,5100971836,"12,500.00",Buro Happold Limited
Manchester City Council,Chief Executives,Works and associated costs for Land and Buildings,10.04.2018,5100970530,"5,712.00",Turner & Townsend Cost
Manchester City Council,Chief Executives,Works and associated costs for Land and Buildings,10.04.2018,5100971834,"-12,500.00",Buro Happold Limited
Manchester City Council,Regeneration Finance,Rents,10.04.2018,1906003755,"33,777.81",Savills (UK) Ltd
Manchester City Council,Regeneration Finance,Rents,10.04.2018,1906003751,"9,756.44",Savills (UK) Ltd
Manchester City Council,Regeneration Finance,Contract Cleaning External,10.04.2018,5100971396,885.67,M & M Cleaning Services Ltd
Manchester City Council,Regeneration Finance,Professional fees,10.04.2018,5100971732,"3,000.00",Cushman & Wakefield
Manchester City Council,Regeneration Finance,Professional fees,10.04.2018,5100971524,"1,400.00",Strata Consulting Ltd
Manchester City Council,Regeneration Finance,I T Provision,10.04.2018,5100971533,"1,284.00",Data Space Limited
Manchester City Council,Highways Services,Grounds Maintenance Costs,10.04.2018,5100971674,"3,828.75",The Fountain Company Ltd
Manchester City Council,Highways Services,Grounds Maintenance Costs,10.04.2018,5100971673,"3,650.00",The Fountain Company Ltd
Manchester City Council,Highways Services,Grounds Maintenance Costs,10.04.2018,5100971671,"3,525.00",The Fountain Company Ltd
Manchester City Council,Highways Services,Grounds Maintenance Costs,10.04.2018,5100971670,"3,130.00",The Fountain Company Ltd
Manchester City Council,Highways Services,Grounds Maintenance Costs,10.04.2018,5100971678,"2,340.00",The Fountain Company Ltd
Manchester City Council,Highways Services,Grounds Maintenance Costs,10.04.2018,5100971680,"2,010.00",The Fountain Company Ltd
Manchester City Council,Highways Services,Grounds Maintenance Costs,10.04.2018,5100971675,"1,094.00",The Fountain Company Ltd
Manchester City Council,Highways Services,Payments to Sub-Contractors,10.04.2018,5100971534,"2,265.38",Building Design Partnership Limited
Manchester City Council,Highways Services,Compensation Payments,10.04.2018,1906005240,"10,000.00",Gorvins
Manchester City Council,GMIST (Greater Mcr Integrated),Storage Costs,10.04.2018,5100971079,"2,995.42",DeepStore
Manchester City Council,GMIST (Greater Mcr Integrated),Storage Costs,10.04.2018,5100971289,905.81,DeepStore
Manchester City Council,Manchester Leisure,Training and Development,11.04.2018,5100970415,600.00,Reform Radio CIC
Manchester City Council,Manchester Leisure,Equipment,11.04.2018,5100970767,895.00,Acoustics Noise & Vibration Ltd
Manchester City Council,Manchester Leisure,Furniture,11.04.2018,5100971539,"1,069.40",thedesignconcept
Manchester City Council,Manchester Leisure,Payments to Sub-Contractors,11.04.2018,5100971910,892.95,Osborne Richardson
Manchester City Council,Manchester Leisure,Professional fees,11.04.2018,5100971467,"15,000.00",Manchester County FA Ltd
Manchester City Council,Manchester Leisure,Professional fees,11.04.2018,5100971970,"5,000.00",Manchester Art Gallery Trust
Manchester City Council,Manchester Leisure,Professional fees,11.04.2018,1906002275,500.00,Eamonn O'Neal Ltd
Manchester City Council,Manchester Leisure,I T Provision,11.04.2018,5100971981,990.00,Civica UK Ltd
Manchester City Council,Manchester Leisure,Cash Collection,11.04.2018,5100971938,"11,715.33",National Car Parks Ltd Season Ticke
Manchester City Council,Manchester Leisure,Grant and subscriptions awarded,11.04.2018,5100972017,"4,430.00",North Manchester Sports Forum
Manchester City Council,Manchester Leisure,Special Events,11.04.2018,5100971948,"1,299.00",Clearview Event Services Limited
Manchester City Council,Manchester Leisure,Special Events,11.04.2018,5100971949,850.00,Clearview Event Services Limited
Manchester City Council,Hospitality + Trading Services,Contract Cleaning External,11.04.2018,5100971937,"26,673.59",Biffa Municipal Limited
Manchester City Council,Hospitality + Trading Services,Vehicle Fuel Costs,11.04.2018,5100971859,"17,463.60",Carlton Fuels Ltd
Manchester City Council,Hospitality + Trading Services,Insurance,11.04.2018,1906003740,"9,670.40",Zurich Municipal
Manchester City Council,Hospitality + Trading Services,Vehicle Hire Costs,11.04.2018,5100971965,"1,113.40",Fleet Dynamic Consultancy Ltd
Manchester City Council,Hospitality + Trading Services,Catering Provisions,11.04.2018,1906009181,-767.62,Brake Bros Foodservice Ltd
Manchester City Council,Environment and Operations,Construction Works,11.04.2018,5100971722,"2,007.51",GMCA
Manchester City Council,Environment and Operations,Construction Works,11.04.2018,5100971720,910.52,GMCA
Manchester City Council,Environment and Operations,Construction Works,11.04.2018,5100971723,833.96,GMCA
Manchester City Council,Adult Social Care,Basic Pay,11.04.2018,5100971895,"48,953.50",NHS Central Manchester CCG
Manchester City Council,Adult Social Care,Training and Development,11.04.2018,5100971972,"8,300.00",Caci Ltd
Manchester City Council,Adult Social Care,Rents,11.04.2018,5100971897,"89,002.29",Accommodation Links Ltd
Manchester City Council,Adult Social Care,Transport Coach Hire,11.04.2018,5100971902,"2,200.00",Hastings Private Hire
Manchester City Council,Adult Social Care,Transport Coach Hire,11.04.2018,5100971911,"2,145.00",Hastings Private Hire
Manchester City Council,Adult Social Care,Transport Coach Hire,11.04.2018,5100971804,"2,130.00",G.M Travel
Manchester City Council,Adult Social Care,Transport Coach Hire,11.04.2018,5100971121,"1,995.00",JKR Travel
Manchester City Council,Adult Social Care,Transport Coach Hire,11.04.2018,5100971905,"1,657.50",Hastings Private Hire
Manchester City Council,Adult Social Care,Transport Coach Hire,11.04.2018,5100971915,"1,267.50",Hastings Private Hire
Manchester City Council,Adult Social Care,Transport Coach Hire,11.04.2018,5100971908,875.00,Hastings Private Hire
Manchester City Council,Adult Social Care,Transport Coach Hire,11.04.2018,5100971907,836.90,Hastings Private Hire
Manchester City Council,Adult Social Care,Transport Coach Hire,11.04.2018,5100971903,600.00,Hastings Private Hire
Manchester City Council,Adult Social Care,Furniture,11.04.2018,5100972127,897.80,The Furnishing Service Ltd
Manchester City Council,Adult Social Care,Furniture,11.04.2018,5100972120,874.70,The Furnishing Service Ltd
Manchester City Council,Adult Social Care,Furniture,11.04.2018,5100972093,534.20,The Furnishing Service Ltd
Manchester City Council,Adult Social Care,Furniture,11.04.2018,5100972122,502.05,The Furnishing Service Ltd
Manchester City Council,Adult Social Care,"Clothes, Uniform and Laundry",11.04.2018,5100972070,750.00,Alliance Disposables Ltd
Manchester City Council,Adult Social Care,Professional fees,11.04.2018,5100971757,"50,060.24",One Education Ltd
Manchester City Council,Adult Social Care,Professional fees,11.04.2018,5100971758,"14,453.45",One Education Ltd
Manchester City Council,Adult Social Care,Bed and Breakfast Accommodation Expenditure,11.04.2018,5100971918,"6,549.00",Redacted Personal Information
Manchester City Council,Adult Social Care,Third party payments relating to Voluntary Organisations,11.04.2018,5100971966,"6,870.00",Great Places Housing Association
Manchester City Council,Adult Social Care,Third party payments relating to Voluntary Organisations,11.04.2018,5100972035,"2,281.00",LMCP Care Link
Manchester City Council,Adult Social Care,Third party payments relating to Voluntary Organisations,11.04.2018,5100972037,"1,430.54",LMCP Care Link
Manchester City Council,Adult Social Care,Personal needs of client,11.04.2018,5100972126,594.00,The Furnishing Service Ltd
Manchester City Council,Adult Social Care,Individual Budget Payment,11.04.2018,1906009273,"5,344.07",Redacted Personal Information
Manchester City Council,Childrens Services,Building Works,11.04.2018,5100972038,"574,629.81",Manchester Health Academy
Manchester City Council,Corporate Services,Catering,11.04.2018,5100972076,771.90,Manchester Central
Manchester City Council,Corporate Services,Audit Commission Fees,11.04.2018,5100971868,"8,812.00",Grant Thornton Uk LLP
Manchester City Council,Corporate Services,Professional fees,11.04.2018,5100971319,"10,000.00",SQW
Manchester City Council,Corporate Services,Professional fees,11.04.2018,5100971622,"8,399.20",Turner & Townsend Cost
Manchester City Council,Corporate Services,Professional fees,11.04.2018,5100971625,"7,980.00",Turner & Townsend Cost
Manchester City Council,Corporate Services,Professional fees,11.04.2018,5100971968,"7,560.00",Mace Ltd
Manchester City Council,Corporate Services,Professional fees,11.04.2018,5100971648,"6,903.45",AECOM Limited
Manchester City Council,Corporate Services,Fees,11.04.2018,5100971805,"1,480.00",Pannone Corporate LLP
Manchester City Council,Corporate Services,I T Provision,11.04.2018,5100971956,"20,677.12",IHS (Global) Ltd
Manchester City Council,Corporate Services,I T Provision,11.04.2018,5100971872,"14,897.00",WNS Global Services (UK) Ltd
Manchester City Council,Corporate Services,Surplus property Fees,11.04.2018,5100971882,"1,347.00",Chubb Fire & Security Ltd
Manchester City Council,Housing General Fund,Building Works,11.04.2018,5100971986,"41,342.97",One Manchester Limited
Manchester City Council,Housing General Fund,Building Works,11.04.2018,1906009274,"8,550.00",Abensons Solicitors
Manchester City Council,Housing Revenue Account,Council Dwelling Adaptations,11.04.2018,5100971958,"11,277.00",Pollock Lifts Ltd
Manchester City Council,Housing Revenue Account,Council Dwelling Adaptations,11.04.2018,5100971951,632.57,IG Doors Ltd
Manchester City Council,Housing Revenue Account,Works and associated costs for Land and Buildings,11.04.2018,5100971941,"494,463.05",Willmott Dixon Construction
Manchester City Council,Chief Executives,Agency staff provision,11.04.2018,5100971954,"1,400.00",Redacted Personal Information
Manchester City Council,Chief Executives,Grant Payments,11.04.2018,5100972007,"7,500.00",Contact Theatre Company
Manchester City Council,Chief Executives,Grant Payments,11.04.2018,5100971926,"5,000.00",Manchester Camerata
Manchester City Council,Chief Executives,Professional fees,11.04.2018,5100971923,"5,268.30",Greengage Consulting Ltd
Manchester City Council,Chief Executives,Funeral and coroner related services,11.04.2018,5100972012,"2,574.00",Kane Funeral Services
Manchester City Council,Chief Executives,I T Provision,11.04.2018,1906003849,"9,104.98",Vodafone (Ex C&W)
Manchester City Council,Chief Executives,I T Provision,11.04.2018,1906003847,"3,617.91",Vodafone (Ex C&W)
Manchester City Council,Chief Executives,ICT Support & Maintenance,11.04.2018,5100971518,"4,716.00",Esteem
Manchester City Council,Chief Executives,ICT Support & Maintenance,11.04.2018,5100971491,"3,884.00",Softbox Ltd
Manchester City Council,Chief Executives,I T Provision,11.04.2018,5100972016,"4,343.04",Advanced Legal Solutions Ltd
Manchester City Council,Chief Executives,I T Provision,11.04.2018,5100971995,"4,176.00",Advanced Legal Solutions Ltd
Manchester City Council,Chief Executives,Advertising,11.04.2018,5100972018,787.50,The Law Society
Manchester City Council,Chief Executives,Examination Fees,11.04.2018,5100972024,"1,630.00",ROAR Forensics Ltd
Manchester City Council,Chief Executives,Examination Fees,11.04.2018,5100972026,"1,090.00",ROAR Forensics Ltd
Manchester City Council,Chief Executives,Funeral and coroner related services,11.04.2018,5100972002,"1,385.31",Salford Royal Hospitals Nhs Trust
Manchester City Council,Chief Executives,Works and associated costs for Land and Buildings,11.04.2018,5100971967,"2,000.00",Omega Fire Engineering
Manchester City Council,Chief Executives,Compensation Payments,11.04.2018,5100971892,"12,621.67",Eversheds Llp
Manchester City Council,Regeneration Finance,External repairs and maintenance for buildings,11.04.2018,5100972011,"7,003.90",Northwards Housing Limited
Manchester City Council,Highways Services,Security,11.04.2018,5100972019,"11,600.00",NSL Ltd
Manchester City Council,Highways Services,Security,11.04.2018,5100972025,"2,210.00",NSL Ltd
Manchester City Council,Highways Services,Security,11.04.2018,5100972023,"1,394.00",NSL Ltd
Manchester City Council,Highways Services,Building Materials for direct delivery,11.04.2018,5100972066,"9,214.82",Marshalls Mono Ltd
Manchester City Council,Highways Services,Purchase of stores for re-distribution,11.04.2018,5100972031,899.70,Encore Diamond (UK) Ltd
Manchester City Council,Insurance Fund,Insurance,11.04.2018,1906003875,"5,000.00",PSG Law Limited
Manchester City Council,Manchester Leisure,Labour Charges,12.04.2018,5100972375,"2,696.87",Bury M.B.C.
Manchester City Council,Manchester Leisure,Electricity,12.04.2018,1906010304,"1,354.67",Npower
Manchester City Council,Manchester Leisure,Electricity,12.04.2018,1906010307,"1,249.52",Npower
Manchester City Council,Manchester Leisure,Electricity,12.04.2018,1906010317,511.71,Npower
Manchester City Council,Manchester Leisure,Rents,12.04.2018,5100972174,"1,020.00",Norbrook Youth Club
Manchester City Council,Manchester Leisure,Equipment,12.04.2018,5100972241,"11,934.00",Craemer Uk Ltd
Manchester City Council,Manchester Leisure,Equipment,12.04.2018,5100972219,"5,462.00",Eurowire Containers Ltd
Manchester City Council,Manchester Leisure,Equipment,12.04.2018,5100972060,651.00,Wicksteed Leisure Ltd
Manchester City Council,Manchester Leisure,Building Materials for direct delivery,12.04.2018,5100971486,"2,554.50",Bpi Recycled Products Plc
Manchester City Council,Manchester Leisure,Reuse credits,12.04.2018,5100972387,833.33,Biffa Municipal Limited
Manchester City Council,Manchester Leisure,Professional fees,12.04.2018,5100972390,"13,750.00",Biffa Municipal Limited
Manchester City Council,Manchester Leisure,Professional fees,12.04.2018,5100972394,"5,721.28",Biffa Municipal Limited
Manchester City Council,Manchester Leisure,Professional fees,12.04.2018,5100972376,"3,647.00",University Of Manchester
Manchester City Council,Manchester Leisure,Grant and subscriptions awarded,12.04.2018,1906004604,"20,696.66",Facets Consulting ltd
Manchester City Council,Manchester Leisure,Grant and subscriptions awarded,12.04.2018,5100972217,"5,000.00",The Manchester Men's Room
Manchester City Council,Manchester Leisure,Grant and subscriptions awarded,12.04.2018,1906004602,"2,494.17",Europia
Manchester City Council,Manchester Leisure,Grant and subscriptions awarded,12.04.2018,1906002069,"2,100.00",Publicus Ltd
Manchester City Council,Manchester Leisure,Grant and subscriptions awarded,12.04.2018,5100972208,"2,000.00",Flourish Together CIC
Manchester City Council,Manchester Leisure,Library Materials Acquisition,12.04.2018,1906004643,"16,430.00",British Standards Institution
Manchester City Council,Manchester Leisure,Library Materials Acquisition,12.04.2018,1906004644,"1,982.56",Cramer Music Ltd
Manchester City Council,Manchester Leisure,Library Materials Acquisition,12.04.2018,1906004642,"1,963.32",Martin Lavell Limited
Manchester City Council,Manchester Leisure,Library Materials Acquisition,12.04.2018,1906004739,"1,508.20",Bolinda UK Limited
Manchester City Council,Manchester Leisure,Library Materials Acquisition,12.04.2018,1906004723,"1,241.73",Peters Bookselling Services
Manchester City Council,Manchester Leisure,Library Materials Acquisition,12.04.2018,1906004670,742.02,Askews and Holts
Manchester City Council,Manchester Leisure,Library Materials Acquisition,12.04.2018,1906004657,612.92,Askews and Holts
Manchester City Council,Manchester Leisure,Library Materials Acquisition,12.04.2018,1906004738,552.67,Bolinda UK Limited
Manchester City Council,Manchester Leisure,Library Materials Acquisition,12.04.2018,1906004705,536.80,Askews and Holts
Manchester City Council,Manchester Leisure,Library Materials Acquisition,12.04.2018,1906004654,511.69,Askews and Holts
Manchester City Council,Manchester Leisure,Special Events,12.04.2018,5100972377,"2,028.13",NAD Services & Consultancy Ltd
Manchester City Council,Manchester Leisure,Third party payments to other Local Authorities,12.04.2018,5100972237,500.00,Manchester Metropolitan University
Manchester City Council,Hospitality + Trading Services,Electricity,12.04.2018,1906010252,"28,388.38",Npower
Manchester City Council,Hospitality + Trading Services,Electricity,12.04.2018,1906010263,"14,457.91",Npower
Manchester City Council,Hospitality + Trading Services,Electricity,12.04.2018,1906010264,"5,952.51",Npower
Manchester City Council,Hospitality + Trading Services,Electricity,12.04.2018,1906010258,"3,314.53",Npower
Manchester City Council,Hospitality + Trading Services,Electricity,12.04.2018,1906010250,"2,139.68",Npower
Manchester City Council,Hospitality + Trading Services,Electricity,12.04.2018,1906010262,"1,599.24",Npower
Manchester City Council,Hospitality + Trading Services,Vehicle Hire Costs,12.04.2018,5100972169,600.00,Peter Douglass Platforms
Manchester City Council,Hospitality + Trading Services,Vehicle Hire Costs,12.04.2018,5100972161,-600.00,Peter Douglass Platforms
Manchester City Council,Hospitality + Trading Services,Catering Provisions,12.04.2018,1906010518,547.64,Brake Bros Foodservice Ltd
Manchester City Council,Environment and Operations,Construction Works,12.04.2018,5100971575,"27,442.76",CityFibre Limited
Manchester City Council,Adult Social Care,Training and Development,12.04.2018,5100972172,"1,155.00",Wythenshawe Community Initiative
Manchester City Council,Adult Social Care,Training and Development,12.04.2018,5100972159,"1,014.75",Wythenshawe Community Initiative
Manchester City Council,Adult Social Care,Training and Development,12.04.2018,5100972168,680.63,Wythenshawe Community Initiative
Manchester City Council,Adult Social Care,Electricity,12.04.2018,1906010276,962.04,Npower
Manchester City Council,Adult Social Care,Electricity,12.04.2018,1906010318,942.62,Npower
Manchester City Council,Adult Social Care,Electricity,12.04.2018,1906010297,913.83,Npower
Manchester City Council,Adult Social Care,Electricity,12.04.2018,1906010281,843.77,Npower
Manchester City Council,Adult Social Care,Electricity,12.04.2018,1906010311,633.18,Npower
Manchester City Council,Adult Social Care,Rents,12.04.2018,5100972436,"99,813.38",Mack Residential Letting Ltd
Manchester City Council,Adult Social Care,Rents,12.04.2018,5100972207,"17,056.61",Housing Social Ltd
Manchester City Council,Adult Social Care,Rents,12.04.2018,5100971236,"16,405.03",Housing Social Ltd
Manchester City Council,Adult Social Care,Rents,12.04.2018,5100972420,769.00,Greater Manchester Police Sports &
Manchester City Council,Adult Social Care,Rents,12.04.2018,1906009157,750.00,Happy Homes Uk Ltd
Manchester City Council,Adult Social Care,Water Service Charges - Unmetered,12.04.2018,1906010490,"1,579.07",United Utilities Water Plc
Manchester City Council,Adult Social Care,Water Service Charges - Unmetered,12.04.2018,1906010402,"1,127.09",United Utilities Water Plc
Manchester City Council,Adult Social Care,Water Service Charges - Unmetered,12.04.2018,1906010362,"1,104.77",United Utilities Water Plc
Manchester City Council,Adult Social Care,Water Service Charges - Unmetered,12.04.2018,1906010360,"1,021.07",United Utilities Water Plc
Manchester City Council,Adult Social Care,Water Service Charges - Unmetered,12.04.2018,1906010481,"1,021.07",United Utilities Water Plc
Manchester City Council,Adult Social Care,Water Service Charges - Unmetered,12.04.2018,1906010484,"1,021.07",United Utilities Water Plc
Manchester City Council,Adult Social Care,Water Service Charges - Unmetered,12.04.2018,1906010404,856.46,United Utilities Water Plc
Manchester City Council,Adult Social Care,Water Service Charges - Unmetered,12.04.2018,1906010399,750.44,United Utilities Water Plc
Manchester City Council,Adult Social Care,Water Service Charges - Unmetered,12.04.2018,1906010405,750.44,United Utilities Water Plc
Manchester City Council,Adult Social Care,Water Service Charges - Unmetered,12.04.2018,1906010401,744.86,United Utilities Water Plc
Manchester City Council,Adult Social Care,Water Service Charges - Unmetered,12.04.2018,1906010400,703.01,United Utilities Water Plc
Manchester City Council,Adult Social Care,Water Service Charges - Unmetered,12.04.2018,1906010408,691.85,United Utilities Water Plc
Manchester City Council,Adult Social Care,Water Service Charges - Unmetered,12.04.2018,1906010409,691.85,United Utilities Water Plc
Manchester City Council,Adult Social Care,Water Service Charges - Unmetered,12.04.2018,1906010392,677.90,United Utilities Water Plc
Manchester City Council,Adult Social Care,Water Service Charges - Unmetered,12.04.2018,1906010406,630.47,United Utilities Water Plc
Manchester City Council,Adult Social Care,Water Service Charges - Unmetered,12.04.2018,1906010407,630.47,United Utilities Water Plc
Manchester City Council,Adult Social Care,Water Service Charges - Unmetered,12.04.2018,1906010486,630.47,United Utilities Water Plc
Manchester City Council,Adult Social Care,Water Service Charges - Unmetered,12.04.2018,1906010420,563.51,United Utilities Water Plc
Manchester City Council,Adult Social Care,Water Service Charges - Unmetered,12.04.2018,1906010488,549.56,United Utilities Water Plc
Manchester City Council,Adult Social Care,Water Service Charges - Unmetered,12.04.2018,1906010485,538.40,United Utilities Water Plc
Manchester City Council,Adult Social Care,Water Service Charges - Unmetered,12.04.2018,1906010397,504.92,United Utilities Water Plc
Manchester City Council,Adult Social Care,Water Service Charges - Unmetered,12.04.2018,1906010411,504.92,United Utilities Water Plc
Manchester City Council,Adult Social Care,Water Service Charges - Unmetered,12.04.2018,1906010416,504.92,United Utilities Water Plc
Manchester City Council,Adult Social Care,Water Service Charges - Unmetered,12.04.2018,1906010417,504.92,United Utilities Water Plc
Manchester City Council,Adult Social Care,Water Service Charges - Unmetered,12.04.2018,1906010418,504.92,United Utilities Water Plc
Manchester City Council,Adult Social Care,Transport Coach Hire,12.04.2018,5100971125,"21,105.00",JCT Travel Ltd
Manchester City Council,Adult Social Care,Transport Coach Hire,12.04.2018,5100972408,"5,775.00",D.J. Minibus Travel
Manchester City Council,Adult Social Care,Transport Coach Hire,12.04.2018,5100971150,"5,510.00",Royton Minibuses Ltd
Manchester City Council,Adult Social Care,Transport Coach Hire,12.04.2018,5100972010,"4,565.00",Redacted Personal Information
Manchester City Council,Adult Social Care,Transport Coach Hire,12.04.2018,5100972369,"2,247.00",Redacted Personal Information
Manchester City Council,Adult Social Care,Transport Coach Hire,12.04.2018,5100972366,"1,498.00",Redacted Personal Information
Manchester City Council,Adult Social Care,Transport Coach Hire,12.04.2018,5100972160,-700.00,JCT Travel Ltd
Manchester City Council,Adult Social Care,Equipment,12.04.2018,5100972050,"2,000.00",After Adoption
Manchester City Council,Adult Social Care,Equipment,12.04.2018,5100972437,"1,380.80",Drive Devilbiss Healthcare Ltd
Manchester City Council,Adult Social Care,Equipment,12.04.2018,5100972052,"-2,000.00",After Adoption
Manchester City Council,Adult Social Care,Publications,12.04.2018,5100972182,640.00,Aim Project
Manchester City Council,Adult Social Care,Professional fees,12.04.2018,5100972259,"3,494.00",AECOM Limited
Manchester City Council,Adult Social Care,Professional fees,12.04.2018,5100972260,"2,261.00",AECOM Limited
Manchester City Council,Adult Social Care,Landline Telephone Charges,12.04.2018,1906009040,642.76,Bt Featurenet Payment Centre
Manchester City Council,Adult Social Care,I T Provision,12.04.2018,5100972413,"175,840.28",Capita Business Services Ltd
Manchester City Council,Adult Social Care,Grant and subscriptions awarded,12.04.2018,5100972385,"5,000.00",Manchester Alliance For
Manchester City Council,Adult Social Care,Private Finance and Public Private partnership initiatives,12.04.2018,5100971568,"75,874.03",NU3PS
Manchester City Council,Adult Social Care,Private Finance and Public Private partnership initiatives,12.04.2018,5100972246,"-75,874.03",NU3PS
Manchester City Council,Adult Social Care,Bed and Breakfast Accommodation Expenditure,12.04.2018,5100972311,"4,085.00",The Mount Guest House
Manchester City Council,Adult Social Care,Third party payments to other Local Authorities,12.04.2018,5100972425,"16,441.29",Stockport Metropolitan Borough
Manchester City Council,Adult Social Care,Third party payments to other Local Authorities,12.04.2018,5100972427,"14,369.98",Stockport Metropolitan Borough
Manchester City Council,Adult Social Care,Third party payments to other Local Authorities,12.04.2018,5100972423,"12,552.62",Stockport Metropolitan Borough
Manchester City Council,Adult Social Care,Third party payments to Health Authority,12.04.2018,5100972380,"1,500.00",Central Mcr Uni Hospital t/a
Manchester City Council,Adult Social Care,Third party payments to Health Authority,12.04.2018,1906001928,557.00,Royal Liverpool & B/green UH NHS T
Manchester City Council,Adult Social Care,Third party payments relating to Voluntary Organisations,12.04.2018,5100972438,"40,000.00",Coram Voice
Manchester City Council,Adult Social Care,Third party payments relating to Voluntary Organisations,12.04.2018,5100972230,"3,074.25",LMCP Care Link
Manchester City Council,Adult Social Care,Third party payments relating to Voluntary Organisations,12.04.2018,5100972378,"2,677.83",Breakthrough Uk Ltd
Manchester City Council,Adult Social Care,Payments for services,12.04.2018,5100972274,"19,993.69",H.G. Care Services Ltd
Manchester City Council,Adult Social Care,Payments for services,12.04.2018,5100972273,"10,590.02",H.G. Care Services Ltd
Manchester City Council,Adult Social Care,Payments for services,12.04.2018,5100972289,"3,961.00",Turning Point
Manchester City Council,Adult Social Care,Payments for services,12.04.2018,5100972291,"3,262.00",Turning Point
Manchester City Council,Adult Social Care,Payments for services,12.04.2018,5100972289,"2,330.00",Turning Point
Manchester City Council,Adult Social Care,Carer Support Payments ,12.04.2018,5100972301,"29,224.04",Carewatch Care Service
Manchester City Council,Adult Social Care,Personal needs of client,12.04.2018,5100972150,"2,286.00",Sunrise Medical Ltd
Manchester City Council,Adult Social Care,Personal needs of client,12.04.2018,5100972077,"1,239.00",Care & Independence Ltd
Manchester City Council,Adult Social Care,Personal Needs of Residents - Other Amenities,12.04.2018,5100972409,"4,280.80",Barnardo's North West
Manchester City Council,Childrens Services,Building Works,12.04.2018,5100972253,"843,551.30",The Co-op Academy of Manchester
Manchester City Council,Childrens Services,Building Works,12.04.2018,5100972253,"152,894.20",The Co-op Academy of Manchester
Manchester City Council,Corporate Services,Training and Development,12.04.2018,5100972261,"2,225.00",University Of Salford
Manchester City Council,Corporate Services,Electricity,12.04.2018,1906010243,"3,599.69",Npower
Manchester City Council,Corporate Services,Electricity,12.04.2018,1906010324,"1,554.59",Npower
Manchester City Council,Corporate Services,Electricity,12.04.2018,1906010323,"1,502.72",Npower
Manchester City Council,Corporate Services,Electricity,12.04.2018,1906010294,"1,109.14",Npower
Manchester City Council,Corporate Services,Electricity,12.04.2018,1906010283,725.41,Npower
Manchester City Council,Corporate Services,Electricity,12.04.2018,1906010313,717.75,Npower
Manchester City Council,Corporate Services,Electricity,12.04.2018,1906010314,716.68,Npower
Manchester City Council,Corporate Services,Electricity,12.04.2018,1906010315,716.03,Npower
Manchester City Council,Corporate Services,Electricity,12.04.2018,1906010302,670.89,Npower
Manchester City Council,Corporate Services,Electricity,12.04.2018,1906010316,541.18,Npower
Manchester City Council,Corporate Services,Electricity,12.04.2018,1906010286,528.11,Npower
Manchester City Council,Corporate Services,Electricity,12.04.2018,1906010282,502.28,Npower
Manchester City Council,Corporate Services,Electricity,12.04.2018,1700079894,-831.10,Npower
Manchester City Council,Corporate Services,Water Service Charges - Unmetered,12.04.2018,1906010419,"1,439.57",United Utilities Water Plc
Manchester City Council,Corporate Services,Water Service Charges - Unmetered,12.04.2018,1906010489,518.87,United Utilities Water Plc
Manchester City Council,Corporate Services,Water Service Charges - Unmetered,12.04.2018,1906010374,516.08,United Utilities Water Plc
Manchester City Council,Corporate Services,Storage Costs,12.04.2018,5100972183,"6,202.25",Box-It (NW)
Manchester City Council,Corporate Services,Equipment,12.04.2018,5100972171,563.00,CLES
Manchester City Council,Corporate Services,Grant Payments,12.04.2018,5100972392,"4,745.00",L G Futures
Manchester City Council,Corporate Services,Professional fees,12.04.2018,5100972398,"12,000.00",Price Waterhouse Coopers LLP
Manchester City Council,Corporate Services,Professional fees,12.04.2018,5100971629,"7,908.00",Turner & Townsend Cost
Manchester City Council,Corporate Services,Professional fees,12.04.2018,5100972033,"6,900.00",Mace Ltd
Manchester City Council,Corporate Services,Professional fees,12.04.2018,5100971979,"6,750.00",Gleeds Management Services Limited
Manchester City Council,Corporate Services,Professional fees,12.04.2018,5100971969,"6,510.00",Mace Ltd
Manchester City Council,Corporate Services,Professional fees,12.04.2018,5100971693,"6,491.25",Turner & Townsend Project
Manchester City Council,Corporate Services,Professional fees,12.04.2018,5100971617,"6,450.00",Turner & Townsend Cost
Manchester City Council,Corporate Services,Professional fees,12.04.2018,5100972157,"6,048.00",Turner & Townsend Project
Manchester City Council,Corporate Services,Professional fees,12.04.2018,5100972165,"5,544.00",Turner & Townsend Project
Manchester City Council,Corporate Services,Professional fees,12.04.2018,5100971627,"4,678.83",Turner & Townsend Cost
Manchester City Council,Corporate Services,Professional fees,12.04.2018,5100972170,"4,032.00",Turner & Townsend Project
Manchester City Council,Corporate Services,Professional fees,12.04.2018,5100972162,"3,528.00",Turner & Townsend Project
Manchester City Council,Corporate Services,Professional fees,12.04.2018,5100971633,"3,360.00",Turner & Townsend Cost
Manchester City Council,Corporate Services,Professional fees,12.04.2018,5100972153,"2,016.00",Turner & Townsend Project
Manchester City Council,Corporate Services,Professional fees,12.04.2018,5100972167,"-3,360.00",Turner & Townsend Cost
Manchester City Council,Corporate Services,Professional fees,12.04.2018,5100972164,"-4,678.83",Turner & Townsend Cost
Manchester City Council,Corporate Services,Professional fees,12.04.2018,5100972163,"-6,450.00",Turner & Townsend Cost
Manchester City Council,Corporate Services,Professional fees,12.04.2018,5100972166,"-7,908.00",Turner & Townsend Cost
Manchester City Council,Corporate Services,Postage,12.04.2018,5100971848,"7,779.56",Royal Mail Group Plc
Manchester City Council,Corporate Services,Postage,12.04.2018,5100971243,"1,237.04",Royal Mail Group Plc
Manchester City Council,Corporate Services,Third party payments relating to Voluntary Organisations,12.04.2018,5100972244,"90,000.00",GMCA
Manchester City Council,Corporate Services,Works and associated costs for Land and Buildings,12.04.2018,5100972199,"145,000.00",Purcell Miller Tritton LLP
Manchester City Council,Corporate Services,Works and associated costs for Land and Buildings,12.04.2018,5100972212,"84,850.00",Ove Arup & Partners Ltd
Manchester City Council,Corporate Services,Works and associated costs for Land and Buildings,12.04.2018,5100972216,"42,095.45",Faithful & Gould Ltd
Manchester City Council,Corporate Services,Works and associated costs for Land and Buildings,12.04.2018,5100972218,"40,840.00",Mace Ltd
Manchester City Council,Corporate Services,Works and associated costs for Land and Buildings,12.04.2018,5100972202,"26,003.05",Ramboll UK Limited
Manchester City Council,Corporate Services,Works and associated costs for Land and Buildings,12.04.2018,5100972221,"21,434.00",Mace Ltd
Manchester City Council,Corporate Services,Works and associated costs for Land and Buildings,12.04.2018,5100972197,"7,249.91",Planit
Manchester City Council,Corporate Services,Works and associated costs for Land and Buildings,12.04.2018,5100972211,"5,133.00",Ove Arup & Partners Ltd
Manchester City Council,Corporate Services,Works and associated costs for Land and Buildings,12.04.2018,5100972209,"4,357.50",Ove Arup & Partners Ltd
Manchester City Council,Corporate Services,Works and associated costs for Land and Buildings,12.04.2018,5100972201,"2,500.00",Purcell Miller Tritton LLP
Manchester City Council,Corporate Services,Works and associated costs for Land and Buildings,12.04.2018,5100972190,"1,750.00",Ove Arup & Partners Ltd
Manchester City Council,Corporate Services,Works and associated costs for Land and Buildings,12.04.2018,5100971187,"77,621.77",Engie Regeration Limited t/a
Manchester City Council,Corporate Services,Works and associated costs for Land and Buildings,12.04.2018,5100971494,"56,493.58",Cruden Group Ltd
Manchester City Council,Corporate Services,Works and associated costs for Land and Buildings,12.04.2018,5100971495,"18,657.76",Cruden Group Ltd
Manchester City Council,Housing General Fund,Capital Receipts,12.04.2018,1906005081,"14,350.00",Redrow Homes Lancashire
Manchester City Council,Housing General Fund,Capital Receipts,12.04.2018,1906005084,"9,972.50",Redrow Homes Lancashire
Manchester City Council,Housing General Fund,Capital Receipts,12.04.2018,1906005083,"8,570.00",Redrow Homes Lancashire
Manchester City Council,Housing Revenue Account,Rent Refund,12.04.2018,1906009282,"1,900.00",Redacted Personal Information
Manchester City Council,Housing Revenue Account,Water Service Charges - Metered,12.04.2018,1906010493,538.40,Water Plus Limited
Manchester City Council,Housing Revenue Account,Council Dwelling Adaptations,12.04.2018,5100972372,"29,817.49",Manchester Working Ltd
Manchester City Council,Housing Revenue Account,Council Dwelling Adaptations,12.04.2018,5100972293,"29,456.02",Manchester Working Ltd
Manchester City Council,Housing Revenue Account,Council Dwelling Adaptations,12.04.2018,5100972372,"24,988.59",Manchester Working Ltd
Manchester City Council,Housing Revenue Account,Council Dwelling Adaptations,12.04.2018,5100972381,"24,344.99",Manchester Working Ltd
Manchester City Council,Housing Revenue Account,Council Dwelling Adaptations,12.04.2018,5100972381,"11,870.93",Manchester Working Ltd
Manchester City Council,Housing Revenue Account,Council Dwelling Adaptations,12.04.2018,5100972410,"9,146.06",Vista Panels Ltd
Manchester City Council,Housing Revenue Account,Council Dwelling Adaptations,12.04.2018,5100972370,"8,964.29",IG Doors Ltd
Manchester City Council,Housing Revenue Account,Council Dwelling Adaptations,12.04.2018,5100972402,"8,066.05",Vista Panels Ltd
Manchester City Council,Housing Revenue Account,Council Dwelling Adaptations,12.04.2018,5100972371,"6,837.26",Manchester Working Ltd
Manchester City Council,Housing Revenue Account,Council Dwelling Adaptations,12.04.2018,5100972428,"6,658.62",JTC Furniture Group
Manchester City Council,Housing Revenue Account,Council Dwelling Adaptations,12.04.2018,5100972405,"6,114.98",Vista Panels Ltd
Manchester City Council,Housing Revenue Account,Council Dwelling Adaptations,12.04.2018,5100972430,"4,170.79",JTC Furniture Group
Manchester City Council,Housing Revenue Account,Council Dwelling Adaptations,12.04.2018,5100972388,"3,559.81",IG Doors Ltd
Manchester City Council,Housing Revenue Account,Council Dwelling Adaptations,12.04.2018,5100972397,"3,271.13",IG Doors Ltd
Manchester City Council,Housing Revenue Account,Council Dwelling Adaptations,12.04.2018,5100972318,"2,873.01",SIG Roofing Supplies
Manchester City Council,Housing Revenue Account,Council Dwelling Adaptations,12.04.2018,5100972433,"2,215.23",Vista Panels Ltd
Manchester City Council,Housing Revenue Account,Council Dwelling Adaptations,12.04.2018,5100972393,"1,994.43",Pts Plumbing Trade Supplies
Manchester City Council,Housing Revenue Account,Council Dwelling Adaptations,12.04.2018,5100972422,"1,698.94",Rexel UK Ltd
Manchester City Council,Housing Revenue Account,Council Dwelling Adaptations,12.04.2018,5100972371,"1,627.25",Manchester Working Ltd
Manchester City Council,Housing Revenue Account,Council Dwelling Adaptations,12.04.2018,5100972306,"1,571.23",IG Doors Ltd
Manchester City Council,Housing Revenue Account,Council Dwelling Adaptations,12.04.2018,5100972391,"1,538.64",Pts Plumbing Trade Supplies
Manchester City Council,Housing Revenue Account,Council Dwelling Adaptations,12.04.2018,5100972432,"1,211.11",JTC Furniture Group
Manchester City Council,Housing Revenue Account,Council Dwelling Adaptations,12.04.2018,5100972412,744.45,Vista Panels Ltd
Manchester City Council,Housing Revenue Account,Council Dwelling Adaptations,12.04.2018,5100972395,561.44,Pts Plumbing Trade Supplies
Manchester City Council,Housing Revenue Account,Council Dwelling Adaptations,12.04.2018,5100972305,534.46,IG Doors Ltd
Manchester City Council,Chief Executives,Rents,12.04.2018,5100972283,"1,177.83",Manchester Creative Digital Assets
Manchester City Council,Chief Executives,Rents,12.04.2018,5100972360,"-1,177.83",Manchester Creative Digital Assets
Manchester City Council,Chief Executives,Grant Payments,12.04.2018,5100972304,"-5,557.50",Manchester Histories
Manchester City Council,Chief Executives,Postage,12.04.2018,5100971846,657.67,Royal Mail Group Plc
Manchester City Council,Chief Executives,Landline Telephone Charges,12.04.2018,1906005056,"256,344.51",BT PLC
Manchester City Council,Chief Executives,I T Provision,12.04.2018,5100970959,"1,134.72",CDW Limited
Manchester City Council,Chief Executives,Subsistence and Conference Expenses,12.04.2018,5100972327,836.68,Cresta World Travel Ltd
Manchester City Council,Chief Executives,Advertising,12.04.2018,5100972298,"11,643.13",Trinity Mirror NW2 Ltd
Manchester City Council,Chief Executives,Advertising,12.04.2018,5100972298,"6,909.87",Trinity Mirror NW2 Ltd
Manchester City Council,Regeneration Finance,Gas,12.04.2018,1906010359,"1,425.83",Total Gas & Power
Manchester City Council,Regeneration Finance,Electricity,12.04.2018,1906010254,"40,778.63",Npower
Manchester City Council,Regeneration Finance,Electricity,12.04.2018,1906010256,"37,845.70",Npower
Manchester City Council,Regeneration Finance,Electricity,12.04.2018,1906010255,"26,293.68",Npower
Manchester City Council,Regeneration Finance,Electricity,12.04.2018,1906010253,"23,478.95",Npower
Manchester City Council,Regeneration Finance,Electricity,12.04.2018,1906010245,"20,669.86",Npower
Manchester City Council,Regeneration Finance,Electricity,12.04.2018,1906010268,"18,131.21",Npower
Manchester City Council,Regeneration Finance,Electricity,12.04.2018,1906010251,"17,562.03",Npower
Manchester City Council,Regeneration Finance,Electricity,12.04.2018,1906010267,"16,064.24",Npower
Manchester City Council,Regeneration Finance,Electricity,12.04.2018,1906010246,"10,221.45",Npower
Manchester City Council,Regeneration Finance,Electricity,12.04.2018,1906010271,"9,316.49",Npower
Manchester City Council,Regeneration Finance,Electricity,12.04.2018,1906010242,"8,982.34",Npower
Manchester City Council,Regeneration Finance,Electricity,12.04.2018,1906010244,"8,064.66",Npower
Manchester City Council,Regeneration Finance,Electricity,12.04.2018,1906010261,"6,635.19",Npower
Manchester City Council,Regeneration Finance,Electricity,12.04.2018,1906010241,"6,275.26",Npower
Manchester City Council,Regeneration Finance,Electricity,12.04.2018,1906010273,"4,000.12",Npower
Manchester City Council,Regeneration Finance,Electricity,12.04.2018,1906010248,"3,685.22",Npower
Manchester City Council,Regeneration Finance,Electricity,12.04.2018,1906010266,"2,554.96",Npower
Manchester City Council,Regeneration Finance,Electricity,12.04.2018,1906010272,"2,350.64",Npower
Manchester City Council,Regeneration Finance,Electricity,12.04.2018,1906010309,"2,143.99",Npower
Manchester City Council,Regeneration Finance,Electricity,12.04.2018,1906010247,"1,888.57",Npower
Manchester City Council,Regeneration Finance,Electricity,12.04.2018,1906010303,"1,851.20",Npower
Manchester City Council,Regeneration Finance,Electricity,12.04.2018,1906010320,"1,803.75",Npower
Manchester City Council,Regeneration Finance,Electricity,12.04.2018,1906010269,"1,741.41",Npower
Manchester City Council,Regeneration Finance,Electricity,12.04.2018,1906010249,"1,634.20",Npower
Manchester City Council,Regeneration Finance,Electricity,12.04.2018,1906010265,"1,386.27",Npower
Manchester City Council,Regeneration Finance,Electricity,12.04.2018,1906010240,"1,228.62",Npower
Manchester City Council,Regeneration Finance,Electricity,12.04.2018,1906010259,"1,188.56",Npower
Manchester City Council,Regeneration Finance,Electricity,12.04.2018,1906010277,"1,159.07",Npower
Manchester City Council,Regeneration Finance,Electricity,12.04.2018,1906010239,"1,127.06",Npower
Manchester City Council,Regeneration Finance,Electricity,12.04.2018,1906010296,978.63,Npower
Manchester City Council,Regeneration Finance,Electricity,12.04.2018,1906010308,973.19,Npower
Manchester City Council,Regeneration Finance,Electricity,12.04.2018,1906010310,851.22,Npower
Manchester City Council,Regeneration Finance,Electricity,12.04.2018,1906010292,699.71,Npower
Manchester City Council,Regeneration Finance,Electricity,12.04.2018,1906010305,551.27,Npower
Manchester City Council,Regeneration Finance,Electricity,12.04.2018,1700079886,-987.50,Npower
Manchester City Council,Regeneration Finance,Electricity,12.04.2018,1700079887,"-19,949.71",Npower
Manchester City Council,Regeneration Finance,Electricity,12.04.2018,1700079889,"-21,803.91",Npower
Manchester City Council,Regeneration Finance,Electricity,12.04.2018,1700079888,"-23,374.89",Npower
Manchester City Council,Regeneration Finance,Rents,12.04.2018,1906009022,"8,723.63",DUK Property Management Ltd
Manchester City Council,Regeneration Finance,Rents,12.04.2018,1906009023,"3,972.38",DUK Property Management Ltd
Manchester City Council,Regeneration Finance,Water Service Charges - Unmetered,12.04.2018,1906010396,965.27,United Utilities Water Plc
Manchester City Council,Regeneration Finance,Security,12.04.2018,5100972374,"1,440.00",Video Receiving Centre Ltd
Manchester City Council,Regeneration Finance,Furniture,12.04.2018,5100972346,"1,066.50",The Furnishing Service Ltd
Manchester City Council,Regeneration Finance,General Office expenses,12.04.2018,5100972213,"4,053.70",Ove Arup & Partners Ltd
Manchester City Council,Regeneration Finance,General Office expenses,12.04.2018,5100972199,879.75,Purcell Miller Tritton LLP
Manchester City Council,Regeneration Finance,Professional fees,12.04.2018,5100972215,"1,378.00",Ove Arup & Partners Ltd
Manchester City Council,Regeneration Finance,Professional fees,12.04.2018,5100972362,675.00,Kings Chambers
Manchester City Council,Regeneration Finance,Professional fees,12.04.2018,5100972193,505.00,Tep-The Environment Partnership
Manchester City Council,Highways Services,Training and Development,12.04.2018,5100972418,"7,326.00",Skills Training Centre Ltd
Manchester City Council,Highways Services,Electricity,12.04.2018,1906010270,"3,490.28",Npower
Manchester City Council,Highways Services,Electricity,12.04.2018,1906010306,"1,063.70",Npower
Manchester City Council,Highways Services,Refuse Collection,12.04.2018,5100972384,"109,619.98",Balfour Beatty Living Places Ltd
Manchester City Council,Highways Services,Collection Commission,12.04.2018,5100972421,"10,159.37",Verrus (UK) T/A paybyphone
Manchester City Council,Manchester Leisure,Goods Received Invoice Received,13.04.2018,5100972479,"1,300.00",Dynamik Sport Surfaces Ltd
Manchester City Council,Manchester Leisure,Goods Received Invoice Received,13.04.2018,5100972653,"-1,300.00",Dynamik Sport Surfaces Ltd
Manchester City Council,Manchester Leisure,Contract Cleaning External,13.04.2018,5100972594,"1,727.76",GTS Steam Cleaners
Manchester City Council,Manchester Leisure,Refuse Collection,13.04.2018,5100971516,"178,000.00",Biffa Municipal Limited
Manchester City Council,Manchester Leisure,Hire of Premises,13.04.2018,5100972600,"-1,462.92",University Of Manchester
Manchester City Council,Manchester Leisure,Equipment,13.04.2018,5100972471,"1,060.18",Wessex Pictures
Manchester City Council,Manchester Leisure,Payments to Sub-Contractors,13.04.2018,5100972646,680.00,Britain in Bloom North West
Manchester City Council,Manchester Leisure,Hire of Equipment,13.04.2018,5100972548,715.00,Network Audio
Manchester City Council,Manchester Leisure,Professional fees,13.04.2018,5100972257,"100,000.00",Nova International Ltd
Manchester City Council,Manchester Leisure,Professional fees,13.04.2018,5100972254,"50,000.00",Nova International Ltd
Manchester City Council,Manchester Leisure,Professional fees,13.04.2018,5100972447,742.80,Harrow Green
Manchester City Council,Manchester Leisure,Testing Fees,13.04.2018,5100972444,538.00,County Scientific Services
Manchester City Council,Manchester Leisure,I T Provision,13.04.2018,5100972456,630.00,Ncc Services Limited
Manchester City Council,Manchester Leisure,Grant and subscriptions awarded,13.04.2018,5100971540,"7,607.00",Learning Partnerships
Manchester City Council,Manchester Leisure,Grant and subscriptions awarded,13.04.2018,5100972619,"2,000.00",Old Moat Youth Outreach Project
Manchester City Council,Manchester Leisure,Grant and subscriptions awarded,13.04.2018,5100972465,"1,484.40",Simply Cycling - Wyth Wheelers
Manchester City Council,Manchester Leisure,Grant and subscriptions awarded,13.04.2018,5100972593,"1,000.00",Christ Church Harpurhey PCC
Manchester City Council,Manchester Leisure,Grant and subscriptions awarded,13.04.2018,5100972470,"1,000.00",Miners Community Arts & Music
Manchester City Council,Manchester Leisure,Special Events,13.04.2018,5100972495,"54,114.80",Walk The Plank Ltd
Manchester City Council,Manchester Leisure,Special Events,13.04.2018,5100972497,"12,333.60",Walk The Plank Ltd
Manchester City Council,Manchester Leisure,Third party payments to other Local Authorities,13.04.2018,5100971988,"3,803.50",Fircroft College of Adult Education
Manchester City Council,Manchester Leisure,Payments for services,13.04.2018,5100971574,"14,830.75",Eastlands Trust Limited
Manchester City Council,Manchester Leisure,Payments for services,13.04.2018,5100972560,900.00,Dance and Fitness Agency Ltd
Manchester City Council,Manchester Leisure,Expenditure re Internal Trading Ordered Externally,13.04.2018,5100972568,795.46,Manchester Cathedral
Manchester City Council,Manchester Leisure,Legal Fees,13.04.2018,5100971773,"8,750.00",Kings Chambers
Manchester City Council,Hospitality + Trading Services,Training and Development,13.04.2018,5100972620,"1,297.05",Redacted Personal Information
Manchester City Council,Hospitality + Trading Services,Vehicle Hire Costs,13.04.2018,5100972626,"1,993.20",Enterprise Flex-E-Rent
Manchester City Council,Hospitality + Trading Services,Hire of Machinery,13.04.2018,5100972472,"3,899.57",F.R.Sharrock Ltd
Manchester City Council,Hospitality + Trading Services,Hire of Machinery,13.04.2018,5100972463,"1,038.50",R & M Developments Ltd
Manchester City Council,Hospitality + Trading Services,Hire of Machinery,13.04.2018,5100972473,"1,038.50",R & M Developments Ltd
Manchester City Council,Hospitality + Trading Services,Hire of Machinery,13.04.2018,5100972474,"1,038.50",R & M Developments Ltd
Manchester City Council,Hospitality + Trading Services,Hire of Machinery,13.04.2018,5100972459,"1,012.50",R & M Developments Ltd
Manchester City Council,Hospitality + Trading Services,Hire of Machinery,13.04.2018,5100972476,"1,012.50",R & M Developments Ltd
Manchester City Council,Hospitality + Trading Services,Catering Provisions,13.04.2018,1906010826,580.15,Brake Bros Foodservice Ltd
Manchester City Council,Hospitality + Trading Services,Catering Provisions,13.04.2018,1906010812,577.04,Brake Bros Foodservice Ltd
Manchester City Council,Environment and Operations,Professional fees,13.04.2018,5100972541,"3,960.00",Smile Mediation
Manchester City Council,Environment and Operations,Professional fees,13.04.2018,5100972543,595.00,Solution Talk LLP
Manchester City Council,Adult Social Care,Seconded Employees,13.04.2018,5100970759,"7,979.70",Uni Hospital of South Mcr
Manchester City Council,Adult Social Care,Training and Development,13.04.2018,5100972509,850.00,Just Psychology CIC
Manchester City Council,Adult Social Care,Transport Coach Hire,13.04.2018,5100970768,"4,410.00",Colin Rea Transport
Manchester City Council,Adult Social Care,Transport Coach Hire,13.04.2018,5100971115,"3,724.00",Saltax Ltd
Manchester City Council,Adult Social Care,Transport Coach Hire,13.04.2018,5100971634,"2,546.00",Connect Cars Ltd
Manchester City Council,Adult Social Care,Transport Coach Hire,13.04.2018,5100971482,"2,400.00",DMC Travel
Manchester City Council,Adult Social Care,Transport Coach Hire,13.04.2018,5100971478,"2,310.00",DMC Travel
Manchester City Council,Adult Social Care,Transport Coach Hire,13.04.2018,5100971638,"1,920.00",Connect Cars Ltd
Manchester City Council,Adult Social Care,Transport Coach Hire,13.04.2018,5100971632,"1,425.00",Connect Cars Ltd
Manchester City Council,Adult Social Care,Equipment,13.04.2018,5100971778,"4,218.00",NRS Healthcare
Manchester City Council,Adult Social Care,Professional fees,13.04.2018,5100971424,"720,000.00",Young Manchester
Manchester City Council,Adult Social Care,Professional fees,13.04.2018,5100972468,"3,135.00",Assoc of Directors of Childrens Svs
Manchester City Council,Adult Social Care,Professional fees,13.04.2018,5100972507,"1,100.00",Manchester Metropolitan University
Manchester City Council,Adult Social Care,Professional fees,13.04.2018,5100972482,950.00,Afruca
Manchester City Council,Adult Social Care,Subsistence and Conference Expenses,13.04.2018,5100971891,"17,193.00",Salford City Council
Manchester City Council,Adult Social Care,Bed and Breakfast Accommodation Expenditure,13.04.2018,5100972515,"10,794.00",Redacted Personal Information
Manchester City Council,Adult Social Care,Bed and Breakfast Accommodation Expenditure,13.04.2018,5100971914,"7,755.00",Redacted Personal Information
Manchester City Council,Adult Social Care,Bed and Breakfast Accommodation Expenditure,13.04.2018,5100972516,"6,939.00",Redacted Personal Information
Manchester City Council,Adult Social Care,Bed and Breakfast Accommodation Expenditure,13.04.2018,5100972469,"3,090.00",The Mount Guest House
Manchester City Council,Adult Social Care,Removal and Storage of Furniture,13.04.2018,5100972562,578.68,BCL
Manchester City Council,Adult Social Care,Removal and Storage of Furniture,13.04.2018,5100972563,528.14,BCL
Manchester City Council,Adult Social Care,Third party payments to other Local Authorities,13.04.2018,5100972505,"1,715.85",Bolton Mbc
Manchester City Council,Adult Social Care,Third party payments to Health Authority,13.04.2018,5100971890,"116,500.00",Salford City Council
Manchester City Council,Adult Social Care,Third party payments relating to Voluntary Organisations,13.04.2018,5100972535,"12,000.00",Barnardo's North West
Manchester City Council,Adult Social Care,Third party payments relating to Voluntary Organisations,13.04.2018,5100971504,"2,523.16",St Lukes Art Project
Manchester City Council,Adult Social Care,Payments for services,13.04.2018,5100971942,"2,304.00",Northgate Public Services (UK) Ltd
Manchester City Council,Adult Social Care,Foster Payments,13.04.2018,1906010975,532.00,Wendy Emare
Manchester City Council,Adult Social Care,Home Care ,13.04.2018,1906005094,"6,600.00",AJM Robertson Consulting Limited
Manchester City Council,Corporate Services,Professional fees,13.04.2018,5100972294,"7,908.00",Turner & Townsend Cost
Manchester City Council,Corporate Services,Professional fees,13.04.2018,5100972292,"6,450.00",Turner & Townsend Cost
Manchester City Council,Corporate Services,Professional fees,13.04.2018,5100972295,"4,678.83",Turner & Townsend Cost
Manchester City Council,Corporate Services,I T Provision,13.04.2018,5100972180,"27,120.00",Cadassist
Manchester City Council,Housing General Fund,Building Works,13.04.2018,5100972475,"26,402.22",Wythenshawe Community Housing Group
Manchester City Council,Housing General Fund,Building Works,13.04.2018,1906010974,"5,128.00",Abensons Solicitors
Manchester City Council,Housing Revenue Account,Northwards Management Fee,13.04.2018,5100972557,"27,198.11",Northwards Housing Limited
Manchester City Council,Housing Revenue Account,Subsistence and Conference Expenses,13.04.2018,5100972521,"2,315.80",Local Partnerships LLP
Manchester City Council,Housing Revenue Account,Private Finance and Public Private partnership initiatives,13.04.2018,5100972552,"446,967.16",Grove Village Ltd
Manchester City Council,Housing Revenue Account,Council Dwelling Adaptations,13.04.2018,5100972528,"10,223.05",Manchester Working Ltd
Manchester City Council,Housing Revenue Account,Council Dwelling Adaptations,13.04.2018,5100972650,"9,101.51",IG Doors Ltd
Manchester City Council,Housing Revenue Account,Council Dwelling Adaptations,13.04.2018,5100972606,"7,914.81",Pts Plumbing Trade Supplies
Manchester City Council,Housing Revenue Account,Council Dwelling Adaptations,13.04.2018,5100972607,"5,806.41",Pts Plumbing Trade Supplies
Manchester City Council,Housing Revenue Account,Council Dwelling Adaptations,13.04.2018,5100972530,"5,592.36",Manchester Working Ltd
Manchester City Council,Housing Revenue Account,Council Dwelling Adaptations,13.04.2018,5100972611,"3,312.72",Pts Plumbing Trade Supplies
Manchester City Council,Housing Revenue Account,Council Dwelling Adaptations,13.04.2018,5100972614,"3,040.32",Pts Plumbing Trade Supplies
Manchester City Council,Housing Revenue Account,Council Dwelling Adaptations,13.04.2018,5100972656,"2,509.16",IG Doors Ltd
Manchester City Council,Housing Revenue Account,Council Dwelling Adaptations,13.04.2018,5100972654,"1,098.37",IG Doors Ltd
Manchester City Council,Chief Executives,Basic Pay,13.04.2018,5100972184,"1,600.00",Redacted Personal Information
Manchester City Council,Chief Executives,Basic Pay,13.04.2018,5100972188,"1,600.00",Redacted Personal Information
Manchester City Council,Chief Executives,Basic Pay,13.04.2018,5100972186,"1,460.00",Redacted Personal Information
Manchester City Council,Chief Executives,Agency staff provision,13.04.2018,5100972574,"9,245.45",Reed Employment Plc
Manchester City Council,Chief Executives,Agency staff provision,13.04.2018,5100972547,"8,033.61",Cadence Resourcing Ltd
Manchester City Council,Chief Executives,Agency staff provision,13.04.2018,5100972542,"1,459.34",Deekay Technical Recruitment Ltd
Manchester City Council,Chief Executives,Hire of Equipment,13.04.2018,5100972625,998.00,Jigsaw Systems Limited
Manchester City Council,Chief Executives,Advertising,13.04.2018,5100972540,"1,000.00",Global Radio Services Ltd
Manchester City Council,Chief Executives,Licences Purchase,13.04.2018,5100971888,"3,255.00",Cloud Technology Solutions Ltd
Manchester City Council,Regeneration Finance,Training and Development,13.04.2018,5100971511,899.00,QA Ltd
Manchester City Council,Regeneration Finance,Contract Cleaning External,13.04.2018,5100971400,"1,776.88",M & M Cleaning Services Ltd
Manchester City Council,Regeneration Finance,Security,13.04.2018,5100972440,"420,000.00",Group 4 Total Security Ltd T/A G4S
Manchester City Council,Regeneration Finance,Security,13.04.2018,5100972440,"4,469.84",Group 4 Total Security Ltd T/A G4S
Manchester City Council,Regeneration Finance,Payments to Sub-Contractors,13.04.2018,5100972510,"4,540.94",Custodian Monitoring
Manchester City Council,Highways Services,Grounds Maintenance Costs,13.04.2018,5100972489,"1,973.00",A T G Access Ltd
Manchester City Council,Highways Services,Equipment,13.04.2018,5100972503,889.80,Fabrikat (Nottingham) Limited
Manchester City Council,Highways Services,Equipment,13.04.2018,5100972503,869.80,Fabrikat (Nottingham) Limited
Manchester City Council,Highways Services,Building Materials for direct delivery,13.04.2018,1906011015,"2,686.40",Benchmark Building Supplies Ltd
Manchester City Council,Highways Services,Building Materials for direct delivery,13.04.2018,1906011014,"1,532.80",Benchmark Building Supplies Ltd
Manchester City Council,Highways Services,Building Materials for direct delivery,13.04.2018,5100972630,502.50,F T Factors
Manchester City Council,Highways Services,Payments to Sub-Contractors,13.04.2018,5100972517,744.12,Northern Marking Limited
Manchester City Council,General Fund,Levies,13.04.2018,1906010977,"5,456,188.00",GMCA
Manchester City Council,Manchester Leisure,External repairs and maintenance for buildings,16.04.2018,5100972833,"38,087.45",Manchester Working Ltd
Manchester City Council,Manchester Leisure,Refuse Collection,16.04.2018,5100972483,"132,562.92",Redgate Holdings Ltd
Manchester City Council,Manchester Leisure,Cleaning Equipment and Materials,16.04.2018,5100972506,"16,454.04",Redgate Holdings Ltd
Manchester City Council,Manchester Leisure,Cleaning Equipment and Materials,16.04.2018,5100972508,"1,980.00",Redgate Holdings Ltd
Manchester City Council,Manchester Leisure,Grounds Maintenance Costs,16.04.2018,5100972504,"10,660.12",Redgate Holdings Ltd
Manchester City Council,Manchester Leisure,Car Parking Permits,16.04.2018,5100972880,"4,069.55",National Car Parks Ltd Season Ticke
Manchester City Council,Manchester Leisure,Equipment,16.04.2018,1906010757,"3,945.83",Redacted Personal Information
Manchester City Council,Manchester Leisure,Disposables,16.04.2018,5100972499,"1,538.55",Redgate Holdings Ltd
Manchester City Council,Manchester Leisure,Disposables,16.04.2018,5100972309,751.30,Redgate Holdings Ltd
Manchester City Council,Manchester Leisure,Payments to Sub-Contractors,16.04.2018,5100973079,"1,885.00",Clean-Up UK Limited
Manchester City Council,Manchester Leisure,Payments to Sub-Contractors,16.04.2018,5100973080,"1,475.00",Clean-Up UK Limited
Manchester City Council,Manchester Leisure,Hire of Equipment,16.04.2018,5100971901,"6,500.00",DBN Lighting
Manchester City Council,Manchester Leisure,Hire of Equipment,16.04.2018,5100971613,"1,225.00",Biffa Municipal Limited
Manchester City Council,Manchester Leisure,Training and Development,16.04.2018,5100972850,"1,059.30",Ocr
Manchester City Council,Manchester Leisure,Liquid Container Recycling,16.04.2018,5100972496,"6,444.44",Redgate Holdings Ltd
Manchester City Council,Manchester Leisure,Liquid Container Recycling,16.04.2018,5100972493,796.43,Redgate Holdings Ltd
Manchester City Council,Manchester Leisure,Recycling Facilities,16.04.2018,5100972481,"17,768.31",Redgate Holdings Ltd
Manchester City Council,Manchester Leisure,Recycling Facilities,16.04.2018,5100972478,785.28,Redgate Holdings Ltd
Manchester City Council,Manchester Leisure,Grant Payments,16.04.2018,5100972668,"3,500.00",Cheshire East Borough Council
Manchester City Council,Manchester Leisure,Professional fees,16.04.2018,1906005226,"9,465.00",University Of the Arts London
Manchester City Council,Manchester Leisure,Professional fees,16.04.2018,5100972837,"6,024.60",ForWorks
Manchester City Council,Manchester Leisure,Professional fees,16.04.2018,5100972811,"2,306.14",ForWorks
Manchester City Council,Manchester Leisure,Professional fees,16.04.2018,5100972751,904.74,Redacted Personal Information
Manchester City Council,Manchester Leisure,Professional fees,16.04.2018,1906011911,500.00,Artimbarc Partners Limited
Manchester City Council,Manchester Leisure,Mobilephone Charges,16.04.2018,1906010972,"15,000.00",Friends Of Plant Hill Park
Manchester City Council,Manchester Leisure,Grant and subscriptions awarded,16.04.2018,5100971984,"286,883.00",University Of Manchester
Manchester City Council,Manchester Leisure,Grant and subscriptions awarded,16.04.2018,5100972570,"7,607.00",Rochdale MBC
Manchester City Council,Manchester Leisure,Grant and subscriptions awarded,16.04.2018,5100972766,"2,369.00",Knowsley Council
Manchester City Council,Manchester Leisure,Grant and subscriptions awarded,16.04.2018,5100972719,600.00,The Lesbian & Gay Foundation
Manchester City Council,Manchester Leisure,Grant and subscriptions awarded,16.04.2018,5100972927,500.00,Duke of Lancaster Regimental Museum
Manchester City Council,Manchester Leisure,Tipping Charges - Tonnage,16.04.2018,5100972502,"57,326.73",Redgate Holdings Ltd
Manchester City Council,Manchester Leisure,Tipping Charges - Tonnage,16.04.2018,5100972313,"27,847.03",Redgate Holdings Ltd
Manchester City Council,Manchester Leisure,Tipping Charges - Skips,16.04.2018,5100972501,"17,689.58",Redgate Holdings Ltd
Manchester City Council,Manchester Leisure,Third party payments to other Local Authorities,16.04.2018,5100972030,"11,410.50",Bolton College
Manchester City Council,Manchester Leisure,Third party payments to other Local Authorities,16.04.2018,5100972569,"7,607.00",Rochdale Mbc
Manchester City Council,Manchester Leisure,Works and associated costs for Land and Buildings,16.04.2018,5100972748,"42,361.16",ISG Construction Limited
Manchester City Council,Manchester Leisure,Works and associated costs for Land and Buildings,16.04.2018,5100972368,"636,222.02",ISG Construction Limited
Manchester City Council,Manchester Leisure,Works and associated costs for Land and Buildings,16.04.2018,5100972373,"133,716.03",ISG Construction Limited
Manchester City Council,Manchester Leisure,Works and associated costs for Land and Buildings,16.04.2018,5100972636,"115,356.23",ISG Construction Limited
Manchester City Council,Manchester Leisure,Works and associated costs for Land and Buildings,16.04.2018,5100972399,"15,000.00",ENGIE Regeneration Ltd
Manchester City Council,Hospitality + Trading Services,External repairs and maintenance for buildings,16.04.2018,5100972688,"1,067.95",Siemens Financial Services Ltd
Manchester City Council,Hospitality + Trading Services,Contract Cleaning External,16.04.2018,5100971606,"1,530.00",Biffa Municipal Limited
Manchester City Council,Hospitality + Trading Services,Contract Cleaning External,16.04.2018,5100971603,"1,224.00",Biffa Municipal Limited
Manchester City Council,Hospitality + Trading Services,Vehicle Hire Costs,16.04.2018,5100972807,"1,700.00",Peter Douglass Platforms
Manchester City Council,Hospitality + Trading Services,Vehicle Hire Costs,16.04.2018,5100972803,"1,260.00",Peter Douglass Platforms
Manchester City Council,Hospitality + Trading Services,Hire of Machinery,16.04.2018,5100972932,"1,136.00",R & M Developments Ltd
Manchester City Council,Hospitality + Trading Services,Hire of Machinery,16.04.2018,5100972776,"1,054.88",R & M Developments Ltd
Manchester City Council,Hospitality + Trading Services,Hire of Machinery,16.04.2018,5100972775,"1,034.26",R & M Developments Ltd
Manchester City Council,Hospitality + Trading Services,Hire of Machinery,16.04.2018,5100972764,830.80,R & M Developments Ltd
Manchester City Council,Hospitality + Trading Services,Hire of Machinery,16.04.2018,5100972765,830.80,R & M Developments Ltd
Manchester City Council,Hospitality + Trading Services,Hire of Machinery,16.04.2018,5100972758,810.00,R & M Developments Ltd
Manchester City Council,Hospitality + Trading Services,Hire of Machinery,16.04.2018,5100972762,810.00,R & M Developments Ltd
Manchester City Council,Hospitality + Trading Services,Hire of Machinery,16.04.2018,5100972863,765.48,Kensite Services Ltd
Manchester City Council,Hospitality + Trading Services,Grant Payments,16.04.2018,5100972400,795.00,Nabma
Manchester City Council,Environment and Operations,Professional fees,16.04.2018,5100972546,"1,390.00",Solution Talk LLP
Manchester City Council,Adult Social Care,Training and Development,16.04.2018,5100972262,850.00,Manchester Metropolitan University
Manchester City Council,Adult Social Care,External repairs and maintenance for buildings,16.04.2018,5100972830,"8,895.65",Manchester Working Ltd
Manchester City Council,Adult Social Care,External repairs and maintenance for buildings,16.04.2018,5100972786,"2,958.00",Hoist & Shower Chair Company
Manchester City Council,Adult Social Care,External repairs and maintenance for buildings,16.04.2018,5100972823,500.00,Manchester Working Ltd
Manchester City Council,Adult Social Care,Rents,16.04.2018,5100972673,"4,699.42",Riverside ECHG
Manchester City Council,Adult Social Care,Rents,16.04.2018,5100972676,"2,484.86",Riverside ECHG
Manchester City Council,Adult Social Care,Rents,16.04.2018,1906011046,550.00,Redacted Personal Information
Manchester City Council,Adult Social Care,Travel,16.04.2018,1905968435,"2,176.20",R.S.P. Ltd Br Business Systems Ltd
Manchester City Council,Adult Social Care,Travel,16.04.2018,1905968435,"1,114.55",R.S.P. Ltd Br Business Systems Ltd
Manchester City Council,Adult Social Care,Transport Coach Hire,16.04.2018,5100972524,"5,019.00",Redacted Personal Information
Manchester City Council,Adult Social Care,Transport Coach Hire,16.04.2018,5100971765,"1,000.00",Cresta Car Hire
Manchester City Council,Adult Social Care,Transport Coach Hire,16.04.2018,5100971768,911.50,Cresta Car Hire
Manchester City Council,Adult Social Care,Transport Coach Hire,16.04.2018,5100971770,836.00,Cresta Car Hire
Manchester City Council,Adult Social Care,Transport Coach Hire,16.04.2018,5100971767,812.60,Cresta Car Hire
Manchester City Council,Adult Social Care,Transport Coach Hire,16.04.2018,5100971769,760.50,Cresta Car Hire
Manchester City Council,Adult Social Care,Transport Coach Hire,16.04.2018,5100971764,756.00,Cresta Car Hire
Manchester City Council,Adult Social Care,Transport Coach Hire,16.04.2018,5100971766,720.00,Cresta Car Hire
Manchester City Council,Adult Social Care,Equipment,16.04.2018,5100972210,808.50,Connevans Ltd
Manchester City Council,Adult Social Care,Furniture,16.04.2018,5100973123,"14,858.27",The Furnishing Service Ltd
Manchester City Council,Adult Social Care,Furniture,16.04.2018,5100973137,"4,984.00",The Furnishing Service Ltd
Manchester City Council,Adult Social Care,Furniture,16.04.2018,5100971127,"4,757.67",Manchester Working Ltd
Manchester City Council,Adult Social Care,Furniture,16.04.2018,5100971131,"3,120.00",Manchester Working Ltd
Manchester City Council,Adult Social Care,Furniture,16.04.2018,5100973124,625.78,The Furnishing Service Ltd
Manchester City Council,Adult Social Care,Grant Payments,16.04.2018,5100972781,"13,455.00",Virtual College Ltd
Manchester City Council,Adult Social Care,General Office expenses,16.04.2018,1905995285,"2,000.00",Trafford M B C
Manchester City Council,Adult Social Care,Professional fees,16.04.2018,5100972769,"5,885.50",North West Regional Youth Work Unit
Manchester City Council,Adult Social Care,Professional fees,16.04.2018,5100972692,"4,500.00",Education Counts
Manchester City Council,Adult Social Care,Professional fees,16.04.2018,5100972672,"3,814.80",EC Safeguarding Consultancy Ltd
Manchester City Council,Adult Social Care,Professional fees,16.04.2018,5100972674,"3,814.80",EC Safeguarding Consultancy Ltd
Manchester City Council,Adult Social Care,Professional fees,16.04.2018,5100972736,"2,524.15",Wythenshawe Community Housing Group
Manchester City Council,Adult Social Care,Professional fees,16.04.2018,5100972740,900.00,Arnoldsolutions
Manchester City Council,Adult Social Care,Professional fees,16.04.2018,5100972787,747.00,Redacted Personal Information
Manchester City Council,Adult Social Care,Professional fees,16.04.2018,1906003871,512.73,DNA Legal
Manchester City Council,Adult Social Care,Funeral and coroner related services,16.04.2018,5100972205,"2,432.00",Greater Manchester Funeral Service
Manchester City Council,Adult Social Care,Funeral and coroner related services,16.04.2018,5100972203,"2,132.00",Greater Manchester Funeral Service
Manchester City Council,Adult Social Care,Funeral and coroner related services,16.04.2018,5100972226,"1,409.00",Greater Manchester Funeral Service
Manchester City Council,Adult Social Care,Bed and Breakfast Accommodation Expenditure,16.04.2018,5100972429,"16,835.00",Redacted Personal Information
Manchester City Council,Adult Social Care,Bed and Breakfast Accommodation Expenditure,16.04.2018,5100972708,"5,659.56",K L Properties
Manchester City Council,Adult Social Care,Bed and Breakfast Accommodation Expenditure,16.04.2018,5100972704,"5,371.87",K L Properties
Manchester City Council,Adult Social Care,Third party payments to other Local Authorities,16.04.2018,5100972886,"23,610.00",Stockport Metropolitan Borough
Manchester City Council,Adult Social Care,Third party payments to other Local Authorities,16.04.2018,5100972881,"23,385.00",Oldham Borough Council
Manchester City Council,Adult Social Care,Third party payments to other Local Authorities,16.04.2018,5100972834,"8,349.60",Rochdale MBC
Manchester City Council,Adult Social Care,Third party payments to other Local Authorities,16.04.2018,5100972921,556.50,Stockton-On Tees Borough Council
Manchester City Council,Adult Social Care,Third party payments to Health Authority,16.04.2018,1905994964,"2,308.14",Chelsea & Westminster Hosp NHSFT
Manchester City Council,Adult Social Care,Third party payments to Health Authority,16.04.2018,1905995257,804.00,Leeds City Council
Manchester City Council,Adult Social Care,Third party payments relating to Voluntary Organisations,16.04.2018,5100972196,"3,195.43",Stockport Metropolitan Borough
Manchester City Council,Adult Social Care,Foster Payments,16.04.2018,1906013407,"2,577.83",Redacted Personal Information
Manchester City Council,Adult Social Care,Carer Support Payments ,16.04.2018,5100972799,"33,726.24",Homecare Support
Manchester City Council,Adult Social Care,Carer Support Payments ,16.04.2018,5100972796,"20,731.91",Homecare Support
Manchester City Council,Adult Social Care,Personal needs of client,16.04.2018,5100972210,"3,574.21",Connevans Ltd
Manchester City Council,Adult Social Care,Personal needs of client,16.04.2018,5100972240,"2,234.00",Sunrise Medical Ltd
Manchester City Council,Adult Social Care,Personal needs of client,16.04.2018,5100972777,"1,284.00",Care & Independence Ltd
Manchester City Council,Adult Social Care,Personal needs of client,16.04.2018,5100972780,"1,179.00",Care & Independence Ltd
Manchester City Council,Adult Social Care,Personal needs of client,16.04.2018,5100973215,528.75,The Furnishing Service Ltd
Manchester City Council,Adult Social Care,Legal Fees,16.04.2018,1906010969,"2,200.00",Redacted Personal Information
Manchester City Council,Childrens Services,Works and associated costs for Land and Buildings,16.04.2018,5100972559,"5,616.02",Laing O'Rourke Construction Ltd
Manchester City Council,Childrens Services,Works and associated costs for Land and Buildings,16.04.2018,5100972638,"1,071,718.04",ISG Construction Limited
Manchester City Council,Childrens Services,Works and associated costs for Land and Buildings,16.04.2018,5100972643,"321,026.32",ISG Construction Limited
Manchester City Council,Childrens Services,Works and associated costs for Land and Buildings,16.04.2018,5100972491,"18,612.06",Herbert T Forrest Ltd
Manchester City Council,Childrens Services,Works and associated costs for Land and Buildings,16.04.2018,5100972239,"13,527.34",Cruden Group Ltd
Manchester City Council,Corporate Services,General Payments not otherwise categorised,16.04.2018,1906010673,"10,934.79",Teachers Pensions
Manchester City Council,Corporate Services,Training and Development,16.04.2018,5100972724,"2,500.00",North West Employers Ltd
Manchester City Council,Corporate Services,Rents,16.04.2018,1905997124,"19,029.37",Regus Management (UK) Ltd
Manchester City Council,Corporate Services,Professional fees,16.04.2018,5100972448,550.00,Redacted Personal Information
Manchester City Council,Corporate Services,Postage,16.04.2018,5100972617,"27,578.40",Royal Mail Group Plc
Manchester City Council,Corporate Services,Data Links,16.04.2018,5100972875,"1,040.00",The Loop t/a Gamma Telecom Ltd
Manchester City Council,Corporate Services,I T Provision,16.04.2018,5100972396,"1,800.00",SAP UK & Eire User Group
Manchester City Council,Corporate Services,I T Provision,16.04.2018,5100972610,"118,835.25",Capita Business Services Ltd
Manchester City Council,Corporate Services,Grant and subscriptions awarded,16.04.2018,5100972249,"1,095.00",I.R.R.V. Services Ltd
Manchester City Council,Corporate Services,Welfare Provision Service Awards,16.04.2018,5100973167,"1,024.03",The Furnishing Service Ltd
Manchester City Council,Corporate Services,Welfare Provision Service Awards,16.04.2018,5100973211,"1,002.71",The Furnishing Service Ltd
Manchester City Council,Corporate Services,Welfare Provision Service Awards,16.04.2018,5100973168,973.03,The Furnishing Service Ltd
Manchester City Council,Corporate Services,Welfare Provision Service Awards,16.04.2018,5100973213,753.00,The Furnishing Service Ltd
Manchester City Council,Corporate Services,Welfare Provision Service Awards,16.04.2018,5100973190,710.00,The Furnishing Service Ltd
Manchester City Council,Corporate Services,Welfare Provision Service Awards,16.04.2018,5100973204,710.00,The Furnishing Service Ltd
Manchester City Council,Corporate Services,Welfare Provision Service Awards,16.04.2018,5100973185,688.68,The Furnishing Service Ltd
Manchester City Council,Corporate Services,Welfare Provision Service Awards,16.04.2018,5100973194,688.68,The Furnishing Service Ltd
Manchester City Council,Corporate Services,Welfare Provision Service Awards,16.04.2018,5100973216,662.00,The Furnishing Service Ltd
Manchester City Council,Corporate Services,Welfare Provision Service Awards,16.04.2018,5100973210,661.72,The Furnishing Service Ltd
Manchester City Council,Corporate Services,Welfare Provision Service Awards,16.04.2018,5100973154,646.03,The Furnishing Service Ltd
Manchester City Council,Corporate Services,Welfare Provision Service Awards,16.04.2018,5100973164,646.03,The Furnishing Service Ltd
Manchester City Council,Corporate Services,Welfare Provision Service Awards,16.04.2018,5100973202,587.50,The Furnishing Service Ltd
Manchester City Council,Corporate Services,Welfare Provision Service Awards,16.04.2018,5100973144,584.00,The Furnishing Service Ltd
Manchester City Council,Corporate Services,Welfare Provision Service Awards,16.04.2018,5100973183,584.00,The Furnishing Service Ltd
Manchester City Council,Corporate Services,Welfare Provision Service Awards,16.04.2018,5100973203,584.00,The Furnishing Service Ltd
Manchester City Council,Corporate Services,Welfare Provision Service Awards,16.04.2018,5100973175,580.61,The Furnishing Service Ltd
Manchester City Council,Corporate Services,Welfare Provision Service Awards,16.04.2018,5100973143,562.68,The Furnishing Service Ltd
Manchester City Council,Corporate Services,Welfare Provision Service Awards,16.04.2018,5100973189,562.68,The Furnishing Service Ltd
Manchester City Council,Corporate Services,Welfare Provision Service Awards,16.04.2018,5100973147,552.00,The Furnishing Service Ltd
Manchester City Council,Corporate Services,Welfare Provision Service Awards,16.04.2018,5100973176,541.03,The Furnishing Service Ltd
Manchester City Council,Corporate Services,Welfare Provision Service Awards,16.04.2018,5100973174,520.03,The Furnishing Service Ltd
Manchester City Council,Corporate Services,Welfare Provision Service Awards,16.04.2018,5100973212,514.68,The Furnishing Service Ltd
Manchester City Council,Corporate Services,Works and associated costs for Land and Buildings,16.04.2018,5100971934,"251,849.53",Vinci Construction UK Ltd
Manchester City Council,Corporate Services,Works and associated costs for Land and Buildings,16.04.2018,5100972894,"1,290.00",The Fountain Company Ltd
Manchester City Council,Corporate Services,Works and associated costs for Land and Buildings,16.04.2018,5100972882,520.00,The Fountain Company Ltd
Manchester City Council,Housing General Fund,Council Dwellings - Demolition,16.04.2018,5100972243,"2,123.16",Cruden Group Ltd
Manchester City Council,Housing General Fund,Works and associated costs for Land and Buildings,16.04.2018,5100972940,"1,715.50",Pinsent Masons LLP
Manchester City Council,Housing Revenue Account,Responsive Repairs Work,16.04.2018,1905995282,"4,329.77",Northwards Housing Limited
Manchester City Council,Housing Revenue Account,Grounds Maintenance Costs,16.04.2018,5100971600,"5,070.10",Biffa Municipal Limited
Manchester City Council,Housing Revenue Account,I T Provision,16.04.2018,5100972859,885.00,Aareon UK Ltd
Manchester City Council,Housing Revenue Account,I T Provision,16.04.2018,5100972852,750.00,Aareon UK Ltd
Manchester City Council,Housing Revenue Account,Private Finance and Public Private partnership initiatives,16.04.2018,5100972670,"33,450.34",Manchester Energy Company Limited
Manchester City Council,Housing Revenue Account,Council Dwelling Fees,16.04.2018,5100972431,"155,966.00",Northwards Housing Limited
Manchester City Council,Housing Revenue Account,Council Dwelling Adaptations,16.04.2018,5100972936,"44,777.75",Northwards Housing Limited
Manchester City Council,Housing Revenue Account,Council Dwelling Adaptations,16.04.2018,5100972660,"7,893.68",Pts Plumbing Trade Supplies
Manchester City Council,Housing Revenue Account,Council Dwelling Adaptations,16.04.2018,5100972658,"4,410.84",Pts Plumbing Trade Supplies
Manchester City Council,Housing Revenue Account,Council Dwelling Adaptations,16.04.2018,5100972675,"1,356.42",Rexel UK Ltd
Manchester City Council,Housing Revenue Account,Council Dwelling Adaptations,16.04.2018,5100972667,"1,131.99",Nova Group Ltd
Manchester City Council,Housing Revenue Account,Council Dwelling Adaptations,16.04.2018,5100972659,947.02,Pts Plumbing Trade Supplies
Manchester City Council,Housing Revenue Account,Council Dwelling Adaptations,16.04.2018,5100972664,934.99,Nova Group Ltd
Manchester City Council,Housing Revenue Account,Council Dwelling Adaptations,16.04.2018,5100972665,905.69,Nova Group Ltd
Manchester City Council,Housing Revenue Account,Council Dwelling Adaptations,16.04.2018,5100972671,710.40,Rexel UK Ltd
Manchester City Council,Chief Executives,Agency staff provision,16.04.2018,5100972810,"19,008.00",Penna PLC
Manchester City Council,Chief Executives,Agency staff provision,16.04.2018,5100972789,"6,782.64",NES UK Limited
Manchester City Council,Chief Executives,Agency staff provision,16.04.2018,5100972539,"5,524.99",NonStop Recruitment Ltd
Manchester City Council,Chief Executives,Agency staff provision,16.04.2018,5100972320,"4,852.00",Medicare First
Manchester City Council,Chief Executives,Payments to Sub-Contractors,16.04.2018,5100972756,717.48,Redacted Personal Information
Manchester City Council,Chief Executives,Hire of Equipment,16.04.2018,5100972411,"2,249.39",Mercury AV Ltd
Manchester City Council,Chief Executives,Grant Payments,16.04.2018,5100972310,"5,557.50",Manchester Histories
Manchester City Council,Chief Executives,Printing,16.04.2018,5100972809,"1,190.00",Mail Solutions
Manchester City Council,Chief Executives,Printing,16.04.2018,5100972666,518.00,Mail Solutions
Manchester City Council,Chief Executives,Printing,16.04.2018,5100973082,515.00,Astra Signs
Manchester City Council,Chief Executives,Professional fees,16.04.2018,5100972821,"9,300.00",Robertson Cooper Ltd
Manchester City Council,Chief Executives,Professional fees,16.04.2018,5100972581,"2,600.00",Softcat
Manchester City Council,Chief Executives,Professional fees,16.04.2018,5100971779,"1,406.25",Oldham Borough Council
Manchester City Council,Chief Executives,Postage,16.04.2018,5100972923,"99,761.19",Royal Mail Group Plc
Manchester City Council,Chief Executives,Data Links,16.04.2018,5100972878,"2,445.00",The Loop t/a Gamma Telecom Ltd
Manchester City Council,Chief Executives,Advertising,16.04.2018,5100972710,"1,683.93",Global Radio Services Ltd
Manchester City Council,Chief Executives,Advertising,16.04.2018,5100972712,"1,502.67",Global Radio Services Ltd
Manchester City Council,Chief Executives,Licences Purchase,16.04.2018,5100972685,"5,720.00",Texthelp Systems Ltd
Manchester City Council,Chief Executives,Works and associated costs for Land and Buildings,16.04.2018,5100972225,"2,233.56",Vinci Construction UK Ltd
Manchester City Council,Regeneration Finance,External repairs and maintenance for buildings,16.04.2018,5100972827,"12,470.08",Manchester Working Ltd
Manchester City Council,Regeneration Finance,Refuse Collection,16.04.2018,5100971597,"15,000.00",Biffa Municipal Limited
Manchester City Council,Regeneration Finance,Grounds Maintenance Costs,16.04.2018,5100971594,"5,572.90",Biffa Municipal Limited
Manchester City Council,Regeneration Finance,Grounds Maintenance Costs,16.04.2018,5100971595,715.00,Biffa Municipal Limited
Manchester City Council,Highways Services,Refuse Collection,16.04.2018,5100971900,"10,773.75",Biffa Municipal Limited
Manchester City Council,Highways Services,Grounds Maintenance Costs,16.04.2018,5100972892,"1,666.00",The Fountain Company Ltd
Manchester City Council,Highways Services,Grounds Maintenance Costs,16.04.2018,5100972885,520.00,The Fountain Company Ltd
Manchester City Council,Highways Services,Grounds Maintenance Costs,16.04.2018,5100972899,520.00,The Fountain Company Ltd
Manchester City Council,Highways Services,Payments to Sub-Contractors,16.04.2018,5100972998,"36,197.66",Clearway Drainage Systems Ltd
Manchester City Council,Highways Services,Professional fees,16.04.2018,5100971879,"7,512.00",Wilde Consultants Ltd
Manchester City Council,Highways Services,Professional fees,16.04.2018,5100971881,"5,491.53",Wilde Consultants Ltd
Manchester City Council,Highways Services,Professional fees,16.04.2018,5100971876,"5,488.95",Wilde Consultants Ltd
Manchester City Council,Highways Services,Professional fees,16.04.2018,5100971877,"3,586.08",Wilde Consultants Ltd
Manchester City Council,Highways Services,Private Finance and Public Private partnership initiatives,16.04.2018,5100972532,"635,450.49",Amey Highways Lighting (Manchester)
Manchester City Council,Manchester Leisure,External repairs and maintenance for buildings,17.04.2018,5100972753,950.00,Keebuilders Uk Ltd
Manchester City Council,Manchester Leisure,External repairs and maintenance for buildings,17.04.2018,5100972754,555.00,Keebuilders Uk Ltd
Manchester City Council,Manchester Leisure,Equipment,17.04.2018,5100972406,505.14,Machine Mart Ltd
Manchester City Council,Manchester Leisure,Equipment,17.04.2018,5100973553,500.00,Neopost Ltd (Credifon)
Manchester City Council,Manchester Leisure,Professional fees,17.04.2018,5100973297,"7,042.07",Clearview Event Services Limited
Manchester City Council,Manchester Leisure,Professional fees,17.04.2018,5100973030,"2,977.83",Redacted Personal Information
Manchester City Council,Manchester Leisure,I T Provision,17.04.2018,5100973351,"4,199.17",Blackbaud Europe Ltd
Manchester City Council,Manchester Leisure,Grant and subscriptions awarded,17.04.2018,5100973269,800.00,Lidgate Grove Res Assoc
Manchester City Council,Manchester Leisure,Special Events,17.04.2018,1906010968,"2,500.00",Many Many Monkeys
Manchester City Council,Manchester Leisure,Third party payments relating to Voluntary Organisations,17.04.2018,5100973239,"1,883.00",Healthy Me Healthy Communities
Manchester City Council,Manchester Leisure,Works and associated costs for Land and Buildings,17.04.2018,5100973016,"776,605.58",ISG Construction Limited
Manchester City Council,Manchester Leisure,Legal Fees,17.04.2018,5100972968,525.00,Cornerstone Barristers
Manchester City Council,Libraries and Theatres,Training and Development,17.04.2018,5100973112,950.00,North West Employers Ltd
Manchester City Council,Hospitality + Trading Services,Rents,17.04.2018,1906010752,"1,368.75",Booker Ltd
Manchester City Council,Hospitality + Trading Services,Equipment,17.04.2018,5100973292,767.76,Arco Group Ltd
Manchester City Council,Hospitality + Trading Services,Hire of Machinery,17.04.2018,5100973352,830.80,R & M Developments Ltd
Manchester City Council,Hospitality + Trading Services,Hire of Machinery,17.04.2018,5100973354,830.80,R & M Developments Ltd
Manchester City Council,Hospitality + Trading Services,Hire of Machinery,17.04.2018,5100973350,810.00,R & M Developments Ltd
Manchester City Council,Hospitality + Trading Services,Hire of Machinery,17.04.2018,5100973356,810.00,R & M Developments Ltd
Manchester City Council,Hospitality + Trading Services,Hire of Machinery,17.04.2018,5100973323,623.10,R & M Developments Ltd
Manchester City Council,Hospitality + Trading Services,Catering Provisions,17.04.2018,1906013496,922.88,Brake Bros Foodservice Ltd
Manchester City Council,Hospitality + Trading Services,Catering Provisions,17.04.2018,1906013497,647.24,Brake Bros Foodservice Ltd
Manchester City Council,Hospitality + Trading Services,Catering Provisions,17.04.2018,1906013567,608.12,Ralph Livesey Ltd
Manchester City Council,Hospitality + Trading Services,Catering Provisions,17.04.2018,1906013574,522.40,Ralph Livesey Ltd
Manchester City Council,Hospitality + Trading Services,Professional fees,17.04.2018,5100973206,"20,382.49",Jacobs UK Ltd
Manchester City Council,Hospitality + Trading Services,Compensation Payments,17.04.2018,1906003852,"12,609.33",Slater & Gordon (UK) LLP
Manchester City Council,Hospitality + Trading Services,Compensation Payments,17.04.2018,1906003865,"2,189.72",Department For Work & Pensions
Manchester City Council,Environment and Operations,Infrastructure Fees,17.04.2018,1905992794,900.00,BPE Solicitors LLP
Manchester City Council,Environment and Operations,Construction Works,17.04.2018,5100972266,"163,769.83",Dowhigh Ltd
Manchester City Council,Environment and Operations,Construction Works,17.04.2018,5100972265,"109,683.25",Dowhigh Ltd
Manchester City Council,Environment and Operations,Construction Works,17.04.2018,5100972467,"100,500.00",J.Hopkins (Contractors) Ltd.
Manchester City Council,Environment and Operations,Construction Works,17.04.2018,5100972933,"65,701.50",Bethell Construction Ltd
Manchester City Council,Environment and Operations,Construction Works,17.04.2018,5100972973,"61,191.33",Bethell Construction Ltd
Manchester City Council,Environment and Operations,Construction Works,17.04.2018,5100971980,"55,300.00",J.Hopkins (Contractors) Ltd.
Manchester City Council,Environment and Operations,Construction Works,17.04.2018,5100972960,"42,421.25",Bethell Construction Ltd
Manchester City Council,Environment and Operations,Construction Works,17.04.2018,5100972485,"39,746.79",Cubic Transportation Systems (ITMS)
Manchester City Council,Environment and Operations,Construction Works,17.04.2018,5100972232,"37,406.09",Dowhigh Ltd
Manchester City Council,Environment and Operations,Construction Works,17.04.2018,5100972175,"26,995.46",J.Hopkins (Contractors) Ltd.
Manchester City Council,Environment and Operations,Construction Works,17.04.2018,5100972937,"24,905.96",Bethell Construction Ltd
Manchester City Council,Environment and Operations,Construction Works,17.04.2018,5100972995,"23,662.64",Bethell Construction Ltd
Manchester City Council,Environment and Operations,Construction Works,17.04.2018,5100972270,"21,149.72",Dowhigh Ltd
Manchester City Council,Environment and Operations,Construction Works,17.04.2018,5100972055,"19,989.99",Bethell Construction Ltd
Manchester City Council,Environment and Operations,Construction Works,17.04.2018,5100972964,"16,700.00",Bethell Construction Ltd
Manchester City Council,Environment and Operations,Construction Works,17.04.2018,5100972271,"13,580.21",Dowhigh Ltd
Manchester City Council,Environment and Operations,Construction Works,17.04.2018,5100973004,"10,861.66",Bethell Construction Ltd
Manchester City Council,Environment and Operations,Construction Works,17.04.2018,5100972980,"10,752.46",Bethell Construction Ltd
Manchester City Council,Environment and Operations,Construction Works,17.04.2018,5100972890,"8,793.24",Bethell Construction Ltd
Manchester City Council,Environment and Operations,Construction Works,17.04.2018,5100972895,"8,009.70",Bethell Construction Ltd
Manchester City Council,Environment and Operations,Construction Works,17.04.2018,5100972462,"7,831.03",J.Hopkins (Contractors) Ltd.
Manchester City Council,Environment and Operations,Construction Works,17.04.2018,5100972905,"7,632.23",Bethell Construction Ltd
Manchester City Council,Environment and Operations,Construction Works,17.04.2018,5100972263,"6,650.98",Dowhigh Ltd
Manchester City Council,Environment and Operations,Construction Works,17.04.2018,5100972908,"6,308.77",Bethell Construction Ltd
Manchester City Council,Environment and Operations,Construction Works,17.04.2018,5100972929,"6,199.05",Bethell Construction Ltd
Manchester City Council,Environment and Operations,Construction Works,17.04.2018,5100972277,"5,489.38",Dowhigh Ltd
Manchester City Council,Environment and Operations,Construction Works,17.04.2018,5100972914,"3,714.80",Bethell Construction Ltd
Manchester City Council,Environment and Operations,Construction Works,17.04.2018,5100972264,"3,581.80",Dowhigh Ltd
Manchester City Council,Environment and Operations,Construction Works,17.04.2018,5100972267,"3,461.54",Dowhigh Ltd
Manchester City Council,Environment and Operations,Construction Works,17.04.2018,5100972268,"3,396.43",Dowhigh Ltd
Manchester City Council,Environment and Operations,Construction Works,17.04.2018,5100972053,522.50,Bethell Construction Ltd
Manchester City Council,Adult Social Care,Training and Development,17.04.2018,5100973101,"1,280.00",Edge Hill University
Manchester City Council,Adult Social Care,Training and Development,17.04.2018,5100972950,825.00,Wythenshawe Community Initiative
Manchester City Council,Adult Social Care,External repairs and maintenance for buildings,17.04.2018,5100973111,500.00,Manchester Working Ltd
Manchester City Council,Adult Social Care,Rents,17.04.2018,5100973360,"66,482.29",Accommodation Links Ltd
Manchester City Council,Adult Social Care,Rents,17.04.2018,5100973364,"4,499.16",AJD Property Limited
Manchester City Council,Adult Social Care,Rents,17.04.2018,5100973353,"1,905.64",AJD Property Limited
Manchester City Council,Adult Social Care,Transport Coach Hire,17.04.2018,5100973255,"12,795.66",MCR Blackcab Ltd
Manchester City Council,Adult Social Care,Transport Coach Hire,17.04.2018,5100973252,"11,839.48",MCR Blackcab Ltd
Manchester City Council,Adult Social Care,Transport Coach Hire,17.04.2018,5100973219,"3,947.16",MCR Blackcab Ltd
Manchester City Council,Adult Social Care,Transport Coach Hire,17.04.2018,5100973220,"3,570.05",MCR Blackcab Ltd
Manchester City Council,Adult Social Care,Transport Coach Hire,17.04.2018,5100973217,"3,178.45",MCR Blackcab Ltd
Manchester City Council,Adult Social Care,Equipment,17.04.2018,5100971668,599.80,Connevans Ltd
Manchester City Council,Adult Social Care,"Clothes, Uniform and Laundry",17.04.2018,5100973303,750.00,Alliance Disposables Ltd
Manchester City Council,Adult Social Care,"Clothes, Uniform and Laundry",17.04.2018,5100973306,675.00,Alliance Disposables Ltd
Manchester City Council,Adult Social Care,Professional fees,17.04.2018,5100972984,"16,899.33",Independent Life Solutions
Manchester City Council,Adult Social Care,Professional fees,17.04.2018,5100973024,"5,368.78",Independent Life Solutions
Manchester City Council,Adult Social Care,Professional fees,17.04.2018,5100972955,"3,600.00",Redacted Personal Information
Manchester City Council,Adult Social Care,Professional fees,17.04.2018,5100973047,"3,300.00",North West Regional Youth Work Unit
Manchester City Council,Adult Social Care,Professional fees,17.04.2018,5100970382,"3,132.50",Edwina Grant Associates Ltd
Manchester City Council,Adult Social Care,Professional fees,17.04.2018,5100972985,"2,183.00",Independent Life Solutions
Manchester City Council,Adult Social Care,Professional fees,17.04.2018,1906013450,"1,810.87",STEFFAS AND ASSOCIATES PC
Manchester City Council,Adult Social Care,Professional fees,17.04.2018,5100972988,"1,690.00",Independent Life Solutions
Manchester City Council,Adult Social Care,Professional fees,17.04.2018,5100973022,885.00,Independent Life Solutions
Manchester City Council,Adult Social Care,Professional fees,17.04.2018,1906013380,700.00,Redacted Personal Information
Manchester City Council,Adult Social Care,Professional fees,17.04.2018,1906013367,594.11,Pickering Psychology Services Ltd
Manchester City Council,Adult Social Care,Landline Telephone Charges,17.04.2018,1906009034,"1,137.00",Bt Payphones
Manchester City Council,Adult Social Care,I T Provision,17.04.2018,5100973300,"3,320.00",Me Learning Limited
Manchester City Council,Adult Social Care,Private Finance and Public Private partnership initiatives,17.04.2018,5100972247,"38,310.66",NU3PS
Manchester City Council,Adult Social Care,Private Finance and Public Private partnership initiatives,17.04.2018,5100972247,"37,563.37",NU3PS
Manchester City Council,Adult Social Care,Bed and Breakfast Accommodation Expenditure,17.04.2018,5100973359,"55,059.60",Cromwood Ltd
Manchester City Council,Adult Social Care,Bed and Breakfast Accommodation Expenditure,17.04.2018,5100972526,"10,992.00",Redacted Personal Information
Manchester City Council,Adult Social Care,Bed and Breakfast Accommodation Expenditure,17.04.2018,5100973308,"9,750.00",Park Crescent Hotel Ltd
Manchester City Council,Adult Social Care,Bed and Breakfast Accommodation Expenditure,17.04.2018,5100973301,"2,530.00",The Hawthorn Hotel
Manchester City Council,Adult Social Care,Bed and Breakfast Accommodation Expenditure,17.04.2018,5100973299,"1,296.00",The Hawthorn Hotel
Manchester City Council,Adult Social Care,Third party payments to other Local Authorities,17.04.2018,5100973100,"3,723.70",Trafford M B C
Manchester City Council,Adult Social Care,Third party payments to other Local Authorities,17.04.2018,5100973341,"3,300.00",Blackburn With Darwen Borough Counc
Manchester City Council,Adult Social Care,Third party payments relating to Voluntary Organisations,17.04.2018,5100973003,"16,121.50",The Lesbian & Gay Foundation
Manchester City Council,Adult Social Care,Third party payments relating to Voluntary Organisations,17.04.2018,5100972739,"7,003.00",Redacted Personal Information
Manchester City Council,Adult Social Care,Third party payments relating to Voluntary Organisations,17.04.2018,5100973336,"6,446.43",Gaddum Centre
Manchester City Council,Adult Social Care,Third party payments relating to Voluntary Organisations,17.04.2018,5100972947,"6,349.50",The Big Life Company
Manchester City Council,Adult Social Care,Third party payments relating to Voluntary Organisations,17.04.2018,5100973021,"4,390.00",Independent Choices Gtr Manchester
Manchester City Council,Adult Social Care,Third party payments relating to Voluntary Organisations,17.04.2018,5100973046,"1,520.25",4CT Limited
Manchester City Council,Adult Social Care,Third party payments relating to Voluntary Organisations,17.04.2018,5100970361,800.00,City South Manchester Housing Trust
Manchester City Council,Adult Social Care,Payments for services,17.04.2018,5100973274,"34,743.00",Creative Support Ltd
Manchester City Council,Adult Social Care,Payments for services,17.04.2018,5100973333,"14,107.51",Belmont School Ltd
Manchester City Council,Adult Social Care,Payments for services,17.04.2018,5100973335,"13,999.22",Belmont School Ltd
Manchester City Council,Adult Social Care,Payments for services,17.04.2018,5100973348,"6,501.27",Lakeside School
Manchester City Council,Adult Social Care,Payments for services,17.04.2018,5100973366,"6,311.91",Lakeside School
Manchester City Council,Adult Social Care,Payments for services,17.04.2018,5100973339,"5,598.66",Belmont School Ltd
Manchester City Council,Adult Social Care,Payments for services,17.04.2018,5100973267,"4,704.00",Potensial Ltd (T/A Potens)
Manchester City Council,Adult Social Care,Payments for services,17.04.2018,5100973279,"4,704.00",Potensial Ltd (T/A Potens)
Manchester City Council,Adult Social Care,Payments for services,17.04.2018,5100973345,"4,433.00",Cumberland & Westmorland
Manchester City Council,Adult Social Care,Payments for services,17.04.2018,5100973346,"3,105.00",Chaigeley Education Foundation
Manchester City Council,Adult Social Care,Payments for services,17.04.2018,5100973363,"1,760.00",Keys Childcare Ltd
Manchester City Council,Adult Social Care,Payments for services,17.04.2018,5100973365,"1,760.00",Keys Childcare Ltd
Manchester City Council,Adult Social Care,Payments for services,17.04.2018,5100973270,"1,120.00",Potensial Ltd (T/A Potens)
Manchester City Council,Adult Social Care,Payments for services,17.04.2018,5100973272,"1,120.00",Potensial Ltd (T/A Potens)
Manchester City Council,Adult Social Care,Payments for services,17.04.2018,5100973367,960.00,Teaching Personnel Ltd
Manchester City Council,Adult Social Care,Payments for services,17.04.2018,5100973277,560.00,Potensial Ltd (T/A Potens)
Manchester City Council,Adult Social Care,Payments for services,17.04.2018,5100973278,560.00,Potensial Ltd (T/A Potens)
Manchester City Council,Adult Social Care,Supporting People Payments,17.04.2018,5100973114,"2,462.74",Child Action Northwest
Manchester City Council,Adult Social Care,Supporting People Payments,17.04.2018,5100973114,"1,765.56",Child Action Northwest
Manchester City Council,Childrens Services,Works and associated costs for Land and Buildings,17.04.2018,5100973006,"60,100.70",Conlon Construction Ltd
Manchester City Council,Corporate Services,Vehicle Hire Costs,17.04.2018,1906013453,"1,555.50",City Car Club Ltd
Manchester City Council,Corporate Services,Vehicle Hire Costs,17.04.2018,1700079915,"-1,535.50",City Car Club Ltd
Manchester City Council,Corporate Services,Professional fees,17.04.2018,5100973075,"17,480.00",Turner & Townsend Project
Manchester City Council,Corporate Services,Professional fees,17.04.2018,5100971871,"6,600.00",Nexus Real Estate
Manchester City Council,Corporate Services,Charges for Services,17.04.2018,1906013436,"1,500.00",Tree Of Life Centre Wythenshawe
Manchester City Council,Corporate Services,Works and associated costs for Land and Buildings,17.04.2018,1906013451,"72,750.00",H M Revenues and Customs
Manchester City Council,Corporate Services,Works and associated costs for Land and Buildings,17.04.2018,5100970374,"1,620.00",BMS Software (Northern) Ltd
Manchester City Council,Corporate Services,Works and associated costs for Land and Buildings,17.04.2018,5100973425,"-1,620.00",BMS Software (Northern) Ltd
Manchester City Council,Corporate Services,Works and associated costs for Land and Buildings,17.04.2018,5100973293,"62,142.30",Manchester Working Ltd
Manchester City Council,Housing Revenue Account,Landline Telephone Charges,17.04.2018,1906009030,607.00,Bt Payphones
Manchester City Council,Housing Revenue Account,Council Dwelling Adaptations,17.04.2018,5100973099,"7,116.00",Hoist & Shower Chair Company
Manchester City Council,Housing Revenue Account,Council Dwelling Adaptations,17.04.2018,5100973097,"2,823.00",Hoist & Shower Chair Company
Manchester City Council,Housing Revenue Account,Council Dwelling Adaptations,17.04.2018,5100973109,950.00,Avro Hallows TMO Ltd
Manchester City Council,Chief Executives,Agency staff provision,17.04.2018,5100973072,"4,521.26",Search Consultancy Ltd
Manchester City Council,Chief Executives,Agency staff provision,17.04.2018,5100971931,"1,291.50",Venn Group Ltd
Manchester City Council,Chief Executives,Agency staff provision,17.04.2018,5100972477,"1,132.93",Venn Group Ltd
Manchester City Council,Chief Executives,Agency staff provision,17.04.2018,5100971612,958.69,Venn Group Ltd
Manchester City Council,Chief Executives,Hire of Equipment,17.04.2018,5100973282,671.97,Xerox (Uk) Ltd
Manchester City Council,Chief Executives,Printing,17.04.2018,5100971936,"1,700.00",Z-Card Ltd
Manchester City Council,Chief Executives,Printing,17.04.2018,5100973014,644.00,Chapel Press Ltd
Manchester City Council,Chief Executives,Publications,17.04.2018,5100973283,"10,920.00",Precise Media Monitoring Ltd
Manchester City Council,Chief Executives,Publications,17.04.2018,5100973108,"1,878.90",John Smith & Son (Glasgow) Ltd T/A
Manchester City Council,Chief Executives,Funeral and coroner related services,17.04.2018,5100972800,"17,590.10",Central Mcr Uni Hospital t/a
Manchester City Council,Chief Executives,Funeral and coroner related services,17.04.2018,5100972798,"12,922.97",Central Mcr Uni Hospital t/a
Manchester City Council,Chief Executives,Funeral and coroner related services,17.04.2018,5100972798,627.74,Central Mcr Uni Hospital t/a
Manchester City Council,Chief Executives,Postage,17.04.2018,5100972951,"18,248.00",Dx Network Services Ltd
Manchester City Council,Chief Executives,Postage,17.04.2018,5100972953,"2,062.00",Dx Network Services Ltd
Manchester City Council,Chief Executives,Data Links,17.04.2018,5100972983,"2,733.00",The Loop t/a Gamma Telecom Ltd
Manchester City Council,Chief Executives,Data Links,17.04.2018,5100972977,"1,750.00",The Loop t/a Gamma Telecom Ltd
Manchester City Council,Chief Executives,Advertising,17.04.2018,5100973223,"12,000.00",Trinity Mirror NW2 Ltd
Manchester City Council,Chief Executives,Advertising,17.04.2018,5100973275,"2,000.00",Trinity Mirror NW2 Ltd
Manchester City Council,Chief Executives,Advertising,17.04.2018,5100973049,"1,400.00",Guardian News and Media Limited
Manchester City Council,Chief Executives,Advertising,17.04.2018,5100973056,877.50,TES Global Ltd
Manchester City Council,Chief Executives,Examination Fees,17.04.2018,5100972800,"2,998.88",Central Mcr Uni Hospital t/a
Manchester City Council,Chief Executives,Examination Fees,17.04.2018,5100972798,"2,177.90",Central Mcr Uni Hospital t/a
Manchester City Council,Chief Executives,Funeral and coroner related services,17.04.2018,5100972800,"50,801.66",Central Mcr Uni Hospital t/a
Manchester City Council,Chief Executives,Funeral and coroner related services,17.04.2018,5100972798,"34,535.03",Central Mcr Uni Hospital t/a
Manchester City Council,Chief Executives,Expenditure re Internal Trading Ordered Externally,17.04.2018,5100973084,"2,241.05",Electoral Reform Services Ltd
Manchester City Council,Chief Executives,Works and associated costs for Land and Buildings,17.04.2018,5100973010,"41,745.50",Addleshaw Goddard Solicitors
Manchester City Council,Chief Executives,Works and associated costs for Land and Buildings,17.04.2018,5100973012,"19,199.50",Addleshaw Goddard Solicitors
Manchester City Council,Chief Executives,Works and associated costs for Land and Buildings,17.04.2018,5100973019,"5,733.00",Nabarro LLP
Manchester City Council,Chief Executives,Compensation Payments,17.04.2018,1906013345,500.00,Redacted Personal Information
Manchester City Council,Regeneration Finance,Training and Development,17.04.2018,5100973067,650.00,JFPC Ltd
Manchester City Council,Regeneration Finance,External repairs and maintenance for buildings,17.04.2018,5100973293,"1,965.76",Manchester Working Ltd
Manchester City Council,Regeneration Finance,Stationery,17.04.2018,5100973555,891.20,Banner Group Limited
Manchester City Council,Regeneration Finance,Professional fees,17.04.2018,5100972949,"30,235.00",Urban Splash
Manchester City Council,Regeneration Finance,Professional fees,17.04.2018,5100972556,"26,920.12",Kpmg Llp
Manchester City Council,Regeneration Finance,Professional fees,17.04.2018,5100972554,"10,895.05",Kpmg Llp
Manchester City Council,Regeneration Finance,Professional fees,17.04.2018,5100971555,"7,300.00",Ove Arup & Partners Ltd
Manchester City Council,Regeneration Finance,Postage,17.04.2018,5100973559,"10,000.00",Neopost Ltd (Credifon)
Manchester City Council,Highways Services,External repairs and maintenance for buildings,17.04.2018,5100973026,"9,930.02",Manchester Working Ltd
Manchester City Council,Highways Services,Security,17.04.2018,5100973062,632.00,Central Locksmiths
Manchester City Council,Highways Services,Payments to Sub-Contractors,17.04.2018,5100973000,"11,995.00",Clearway Drainage Systems Ltd
Manchester City Council,Highways Services,Compensation Payments,17.04.2018,1906004075,"7,596.58",Unionline
Manchester City Council,Highways Services,Compensation Payments,17.04.2018,1906013395,"5,825.00",AWS Solicitors
Manchester City Council,Highways Services,Compensation Payments,17.04.2018,1906009032,618.00,Redacted Personal Information
Manchester City Council,Highways Services,Compensation Payments,17.04.2018,1906004075,"10,520.87",Unionline
